Workbook

Sheet Archiwum_Plan
A1: Data | B1: Zmiana | C1: Numer detalu | D1: Planowana Ilość | E1: Zrealizowana ilość | F1: Dzień: | G1: Miesiąc: | H1: Tydzień | I1: Rok: | J1: Miesiąc2
A2: 43102 | B2: Zmiana B | C2: 894 | D2: 1450 | E2: 1200 | F2: =IF(A2="","",DAY(A2)) -> 2 | G2: =IFERROR(VLOOKUP(IF(A2="","",MONTH(A2)),$P$3:$Q$14,2,FALSE),"") -> Styczeń | H2: =WEEKNUM(Tabela14[[#This Row],[Data]],2) -> 1 | I2: =IF(A2="","",YEAR(A2)) -> 2018 | J2: =G2 -> Styczeń
A3: 43102 | B3: Zmiana B | C3: 2494417 | D3: 51 | E3: 130 | F3: 2 | G3: Styczeń | H3: =WEEKNUM(Tabela14[[#This Row],[Data]],2) -> 1 | I3: 2018 | J3: Styczeń | P3: 1 | Q3: Styczeń
A4: 43102 | B4: Zmiana B | C4: 319 | D4: 490 | E4: 200 | F4: 2 | G4: Styczeń | H4: =WEEKNUM(Tabela14[[#This Row],[Data]],2) -> 1 | I4: 2018 | J4: Styczeń | P4: 2 | Q4: Luty
A5: 43102 | B5: Zmiana B | C5: 101 | D5: 339 | E5: 200 | F5: 2 | G5: Styczeń | H5: =WEEKNUM(Tabela14[[#This Row],[Data]],2) -> 1 | I5: 2018 | J5: Styczeń | P5: 3 | Q5: Marzec
A6: 43102 | B6: Zmiana B | C6: 76 | D6: 1048 | E6: 1008 | F6: 2 | G6: Styczeń | H6: =WEEKNUM(Tabela14[[#This Row],[Data]],2) -> 1 | I6: 2018 | J6: Styczeń | P6: 4 | Q6: Kwiecień
A7: 43102 | B7: Zmiana B | C7: 498 | D7: 733 | E7: 783 | F7: 2 | G7: Styczeń | H7: =WEEKNUM(Tabela14[[#This Row],[Data]],2) -> 1 | I7: 2018 | J7: Styczeń | P7: 5 | Q7: Maj
A8: 43102 | B8: Zmiana B | C8: 326 | D8: 1488 | E8: 1586 | F8: 2 | G8: Styczeń | H8: =WEEKNUM(Tabela14[[#This Row],[Data]],2) -> 1 | I8: 2018 | J8: Styczeń | P8: 6 | Q8: Czerwiec
A9: 43103 | B9: Zmiana A | C9: 33503F | D9: 317 | E9: 250 | F9: 3 | G9: Styczeń | H9: =WEEKNUM(Tabela14[[#This Row],[Data]],2) -> 1 | I9: 2018 | J9: Styczeń | P9: 7 | Q9: Lipiec
A10: 43103 | B10: Zmiana A | C10: 708F | D10: 64 | E10: 144 | F10: 3 | G10: Styczeń | H10: =WEEKNUM(Tabela14[[#This Row],[Data]],2) -> 1 | I10: 2018 | J10: Styczeń | P10: 8 | Q10: Sierpień
A11: 43103 | B11: Zmiana A | C11: 326 | D11: 1045 | E11: 992 | F11: 3 | G11: Styczeń | H11: =WEEKNUM(Tabela14[[#This Row],[Data]],2) -> 1 | I11: 2018 | J11: Styczeń | P11: 9 | Q11: Wrzesień
A12: 43103 | B12: Zmiana A | C12: 498 | D12: 1721 | E12: 1675 | F12: 3 | G12: Styczeń | H12: =WEEKNUM(Tabela14[[#This Row],[Data]],2) -> 1 | I12: 2018 | J12: Styczeń | P12: 10 | Q12: Październik
A13: 43103 | B13: Zmiana A | C13: 334F | D13: 728 | E13: 764 | F13: 3 | G13: Styczeń | H13: =WEEKNUM(Tabela14[[#This Row],[Data]],2) -> 1 | I13: 2018 | J13: Styczeń | P13: 11 | Q13: Listopad
A14: 43103 | B14: Zmiana A | C14: 570 | D14: 515 | E14: 340 | F14: 3 | G14: Styczeń | H14: =WEEKNUM(Tabela14[[#This Row],[Data]],2) -> 1 | I14: 2018 | J14: Styczeń | P14: 12 | Q14: Grudzień
A15: 43103 | B15: Zmiana A | C15: 414 | D15: 118 | E15: 100 | F15: 3 | G15: Styczeń | H15: =WEEKNUM(Tabela14[[#This Row],[Data]],2) -> 1 | I15: 2018 | J15: Styczeń
A16: 43103 | B16: Zmiana A | C16: 2505258 | D16: 514 | E16: 600 | F16: 3 | G16: Styczeń | H16: =WEEKNUM(Tabela14[[#This Row],[Data]],2) -> 1 | I16: 2018 | J16: Styczeń
A17: 43103 | B17: Zmiana A | C17: 812 | D17: 172 | E17: 250 | F17: 3 | G17: Styczeń | H17: =WEEKNUM(Tabela14[[#This Row],[Data]],2) -> 1 | I17: 2018 | J17: Styczeń
A18: 43103 | B18: Zmiana A | C18: 562 | D18: 222 | E18: 100 | F18: 3 | G18: Styczeń | H18: =WEEKNUM(Tabela14[[#This Row],[Data]],2) -> 1 | I18: 2018 | J18: Styczeń
A19: 43103 | B19: Zmiana A | C19: 192 | D19: 533 | E19: 500 | F19: 3 | G19: Styczeń | H19: =WEEKNUM(Tabela14[[#This Row],[Data]],2) -> 1 | I19: 2018 | J19: Styczeń
A20: 43103 | B20: Zmiana A | C20: 761 | D20: 52 | E20: 150 | F20: 3 | G20: Styczeń | H20: =WEEKNUM(Tabela14[[#This Row],[Data]],2) -> 1 | I20: 2018 | J20: Styczeń
A21: 43103 | B21: Zmiana A | C21: 888 | D21: 450 | E21: 400 | F21: 3 | G21: Styczeń | H21: =WEEKNUM(Tabela14[[#This Row],[Data]],2) -> 1 | I21: 2018 | J21: Styczeń
A22: 43103 | B22: Zmiana A | C22: 101 | D22: 1028 | E22: 800 | F22: 3 | G22: Styczeń | H22: =WEEKNUM(Tabela14[[#This Row],[Data]],2) -> 1 | I22: 2018 | J22: Styczeń
A23: 43103 | B23: Zmiana A | C23: 2408709 | D23: 93 | E23: 150 | F23: 3 | G23: Styczeń | H23: =WEEKNUM(Tabela14[[#This Row],[Data]],2) -> 1 | I23: 2018 | J23: Styczeń
A24: 43103 | B24: Zmiana A | C24: 514 | D24: 10412 | E24: 10500 | F24: 3 | G24: Styczeń | H24: =WEEKNUM(Tabela14[[#This Row],[Data]],2) -> 1 | I24: 2018 | J24: Styczeń
A25: 43103 | B25: Zmiana B | C25: 356 | D25: 241 | E25: 99 | F25: 3 | G25: Styczeń | H25: =WEEKNUM(Tabela14[[#This Row],[Data]],2) -> 1 | I25: 2018 | J25: Styczeń
A26: 43103 | B26: Zmiana B | C26: 198 | D26: 476 | E26: 301 | F26: 3 | G26: Styczeń | H26: =WEEKNUM(Tabela14[[#This Row],[Data]],2) -> 1 | I26: 2018 | J26: Styczeń
A27: 43103 | B27: Zmiana B | C27: 845 | D27: 2266 | E27: 2000 | F27: 3 | G27: Styczeń | H27: =WEEKNUM(Tabela14[[#This Row],[Data]],2) -> 1 | I27: 2018 | J27: Styczeń
A28: 43103 | B28: Zmiana B | C28: 746 | D28: 653 | E28: 400 | F28: 3 | G28: Styczeń | H28: =WEEKNUM(Tabela14[[#This Row],[Data]],2) -> 1 | I28: 2018 | J28: Styczeń
A29: 43103 | B29: Zmiana B | C29: 33501f | D29: 440 | E29: 219 | F29: 3 | G29: Styczeń | H29: =WEEKNUM(Tabela14[[#This Row],[Data]],2) -> 1 | I29: 2018 | J29: Styczeń
A30: 43103 | B30: Zmiana B | C30: 933 | D30: 603 | E30: 550 | F30: 3 | G30: Styczeń | H30: =WEEKNUM(Tabela14[[#This Row],[Data]],2) -> 1 | I30: 2018 | J30: Styczeń
A31: 43103 | B31: Zmiana B | C31: 2418977 | D31: 263 | E31: 180 | F31: 3 | G31: Styczeń | H31: =WEEKNUM(Tabela14[[#This Row],[Data]],2) -> 1 | I31: 2018 | J31: Styczeń
A32: 43103 | B32: Zmiana C | C32: 791 | D32: 111 | E32: 200 | F32: 3 | G32: Styczeń | H32: =WEEKNUM(Tabela14[[#This Row],[Data]],2) -> 1 | I32: 2018 | J32: Styczeń
A33: 43103 | B33: Zmiana C | C33: 780 | D33: 192 | E33: 120 | F33: 3 | G33: Styczeń | H33: =WEEKNUM(Tabela14[[#This Row],[Data]],2) -> 1 | I33: 2018 | J33: Styczeń
A34: 43103 | B34: Zmiana C | C34: 933 | D34: 378 | E34: 300 | F34: 3 | G34: Styczeń | H34: =WEEKNUM(Tabela14[[#This Row],[Data]],2) -> 1 | I34: 2018 | J34: Styczeń
A35: 43103 | B35: Zmiana C | C35: 498 | D35: 2564 | E35: 2393 | F35: 3 | G35: Styczeń | H35: =WEEKNUM(Tabela14[[#This Row],[Data]],2) -> 1 | I35: 2018 | J35: Styczeń
A36: 43103 | B36: Zmiana C | C36: 269 | D36: 1051 | E36: 810 | F36: 3 | G36: Styczeń | H36: =WEEKNUM(Tabela14[[#This Row],[Data]],2) -> 1 | I36: 2018 | J36: Styczeń
A37: 43103 | B37: Zmiana C | C37: 310 | D37: 866 | E37: 600 | F37: 3 | G37: Styczeń | H37: =WEEKNUM(Tabela14[[#This Row],[Data]],2) -> 1 | I37: 2018 | J37: Styczeń
A38: 43103 | B38: Zmiana C | C38: 895 | D38: 192 | E38: 210 | F38: 3 | G38: Styczeń | H38: =WEEKNUM(Tabela14[[#This Row],[Data]],2) -> 1 | I38: 2018 | J38: Styczeń
A39: 43104 | B39: Zmiana B | C39: 252 | D39: 214 | E39: 252 | F39: 4 | G39: Styczeń | H39: =WEEKNUM(Tabela14[[#This Row],[Data]],2) -> 1 | I39: 2018 | J39: Styczeń
A40: 43104 | B40: Zmiana B | C40: 2296305 | D40: 676 | E40: 400 | F40: 4 | G40: Styczeń | H40: =WEEKNUM(Tabela14[[#This Row],[Data]],2) -> 1 | I40: 2018 | J40: Styczeń
A41: 43104 | B41: Zmiana B | C41: 69 | D41: 174 | E41: 261 | F41: 4 | G41: Styczeń | H41: =WEEKNUM(Tabela14[[#This Row],[Data]],2) -> 1 | I41: 2018 | J41: Styczeń
A42: 43104 | B42: Zmiana B | C42: 498 | D42: 982 | E42: 1001 | F42: 4 | G42: Styczeń | H42: =WEEKNUM(Tabela14[[#This Row],[Data]],2) -> 1 | I42: 2018 | J42: Styczeń
A43: 43104 | B43: Zmiana B | C43: 119 | D43: 361 | E43: 240 | F43: 4 | G43: Styczeń | H43: =WEEKNUM(Tabela14[[#This Row],[Data]],2) -> 1 | I43: 2018 | J43: Styczeń
A44: 43104 | B44: Zmiana B | C44: 812 | D44: 729 | E44: 798 | F44: 4 | G44: Styczeń | H44: =WEEKNUM(Tabela14[[#This Row],[Data]],2) -> 1 | I44: 2018 | J44: Styczeń
A45: 43104 | B45: Zmiana B | C45: 2451635 | D45: 36 | E45: 33 | F45: 4 | G45: Styczeń | H45: =WEEKNUM(Tabela14[[#This Row],[Data]],2) -> 1 | I45: 2018 | J45: Styczeń
A46: 43104 | B46: Zmiana B | C46: 2334641 | D46: 243 | E46: 147 | F46: 4 | G46: Styczeń | H46: =WEEKNUM(Tabela14[[#This Row],[Data]],2) -> 1 | I46: 2018 | J46: Styczeń
A47: 43104 | B47: Zmiana B | C47: 498 | D47: 2075 | E47: 2170 | F47: 4 | G47: Styczeń | H47: =WEEKNUM(Tabela14[[#This Row],[Data]],2) -> 1 | I47: 2018 | J47: Styczeń
A48: 43104 | B48: Zmiana B | C48: 26144994 | D48: 233 | E48: 98 | F48: 4 | G48: Styczeń | H48: =WEEKNUM(Tabela14[[#This Row],[Data]],2) -> 1 | I48: 2018 | J48: Styczeń
A49: 43104 | B49: Zmiana B | C49: 812 | D49: 75 | E49: 121 | F49: 4 | G49: Styczeń | H49: =WEEKNUM(Tabela14[[#This Row],[Data]],2) -> 1 | I49: 2018 | J49: Styczeń
A50: 43105 | B50: Zmiana A | C50: 197 | D50: 297 | E50: 3 | F50: 5 | G50: Styczeń | H50: =WEEKNUM(Tabela14[[#This Row],[Data]],2) -> 1 | I50: 2018 | J50: Styczeń
A51: 43105 | B51: Zmiana A | C51: 2451635 | D51: 348 | E51: 230 | F51: 5 | G51: Styczeń | H51: =WEEKNUM(Tabela14[[#This Row],[Data]],2) -> 1 | I51: 2018 | J51: Styczeń
A52: 43105 | B52: Zmiana A | C52: 356 | D52: 329 | E52: 110 | F52: 5 | G52: Styczeń | H52: =WEEKNUM(Tabela14[[#This Row],[Data]],2) -> 1 | I52: 2018 | J52: Styczeń
A53: 43105 | B53: Zmiana A | C53: 39 | D53: 307 | E53: 20 | F53: 5 | G53: Styczeń | H53: =WEEKNUM(Tabela14[[#This Row],[Data]],2) -> 1 | I53: 2018 | J53: Styczeń
A54: 43105 | B54: Zmiana A | C54: 467 | D54: 282 | E54: 13 | F54: 5 | G54: Styczeń | H54: =WEEKNUM(Tabela14[[#This Row],[Data]],2) -> 1 | I54: 2018 | J54: Styczeń
A55: 43105 | B55: Zmiana A | C55: 843 | D55: 105 | E55: 10 | F55: 5 | G55: Styczeń | H55: =WEEKNUM(Tabela14[[#This Row],[Data]],2) -> 1 | I55: 2018 | J55: Styczeń
A56: 43105 | B56: Zmiana A | C56: 896 | D56: 111 | E56: 25 | F56: 5 | G56: Styczeń | H56: =WEEKNUM(Tabela14[[#This Row],[Data]],2) -> 1 | I56: 2018 | J56: Styczeń
A57: 43105 | B57: Zmiana A | C57: 498 | D57: 2345 | E57: 2400 | F57: 5 | G57: Styczeń | H57: =WEEKNUM(Tabela14[[#This Row],[Data]],2) -> 1 | I57: 2018 | J57: Styczeń
A58: 43105 | B58: Zmiana A | C58: 26144994 | D58: 328 | E58: 189 | F58: 5 | G58: Styczeń | H58: =WEEKNUM(Tabela14[[#This Row],[Data]],2) -> 1 | I58: 2018 | J58: Styczeń
A59: 43105 | B59: Zmiana A | C59: 119 | D59: 875 | E59: 600 | F59: 5 | G59: Styczeń | H59: =WEEKNUM(Tabela14[[#This Row],[Data]],2) -> 1 | I59: 2018 | J59: Styczeń
A60: 43105 | B60: Zmiana A | C60: 571 | D60: 686 | E60: 540 | F60: 5 | G60: Styczeń | H60: =WEEKNUM(Tabela14[[#This Row],[Data]],2) -> 1 | I60: 2018 | J60: Styczeń
A61: 43105 | B61: Zmiana A | C61: 2451636 | D61: 261 | E61: 180 | F61: 5 | G61: Styczeń | H61: =WEEKNUM(Tabela14[[#This Row],[Data]],2) -> 1 | I61: 2018 | J61: Styczeń
A62: 43105 | B62: Zmiana B | C62: 198 | D62: 381 | E62: 164 | F62: 5 | G62: Styczeń | H62: =WEEKNUM(Tabela14[[#This Row],[Data]],2) -> 1 | I62: 2018 | J62: Styczeń
A63: 43105 | B63: Zmiana B | C63: 812 | D63: 1126 | E63: 861 | F63: 5 | G63: Styczeń | H63: =WEEKNUM(Tabela14[[#This Row],[Data]],2) -> 1 | I63: 2018 | J63: Styczeń
A64: 43105 | B64: Zmiana B | C64: 570 | D64: 655 | E64: 360 | F64: 5 | G64: Styczeń | H64: =WEEKNUM(Tabela14[[#This Row],[Data]],2) -> 1 | I64: 2018 | J64: Styczeń
A65: 43105 | B65: Zmiana B | C65: 1533713 | D65: 116 | E65: 50 | F65: 5 | G65: Styczeń | H65: =WEEKNUM(Tabela14[[#This Row],[Data]],2) -> 1 | I65: 2018 | J65: Styczeń
A66: 43105 | B66: Zmiana B | C66: 467 | D66: 11 | E66: 7 | F66: =IF(A66="","",DAY(A66)) -> 5 | G66: =IFERROR(VLOOKUP(IF(A66="","",MONTH(A66)),$P$3:$Q$14,2,FALSE),"") -> Styczeń | H66: =WEEKNUM(Tabela14[[#This Row],[Data]],2) -> 1 | I66: =IF(A66="","",YEAR(A66)) -> 2018 | J66: =G66 -> Styczeń
A67: 43105 | B67: Zmiana B | C67: 2418976 | D67: 358 | E67: 90 | F67: 5 | G67: Styczeń | H67: =WEEKNUM(Tabela14[[#This Row],[Data]],2) -> 1 | I67: 2018 | J67: Styczeń
A68: 43105 | B68: Zmiana B | C68: 437 | D68: 86 | E68: 175 | F68: 5 | G68: Styczeń | H68: =WEEKNUM(Tabela14[[#This Row],[Data]],2) -> 1 | I68: 2018 | J68: Styczeń
A69: 43105 | B69: Zmiana C | C69: 2297015 | D69: 636 | E69: 377 | F69: 5 | G69: Styczeń | H69: =WEEKNUM(Tabela14[[#This Row],[Data]],2) -> 1 | I69: 2018 | J69: Styczeń
A70: 43105 | B70: Zmiana C | C70: 179 | D70: 1041 | E70: 919 | F70: 5 | G70: Styczeń | H70: =WEEKNUM(Tabela14[[#This Row],[Data]],2) -> 1 | I70: 2018 | J70: Styczeń
A71: 43105 | B71: Zmiana C | C71: 2297015 | D71: 276 | E71: 13 | F71: 5 | G71: Styczeń | H71: =WEEKNUM(Tabela14[[#This Row],[Data]],2) -> 1 | I71: 2018 | J71: Styczeń
A72: 43105 | B72: Zmiana C | C72: 498 | D72: 2232 | E72: 1982 | F72: 5 | G72: Styczeń | H72: =WEEKNUM(Tabela14[[#This Row],[Data]],2) -> 1 | I72: 2018 | J72: Styczeń
A73: 43105 | B73: Zmiana C | C73: 26144994 | D73: 578 | E73: 378 | F73: 5 | G73: Styczeń | H73: =WEEKNUM(Tabela14[[#This Row],[Data]],2) -> 1 | I73: 2018 | J73: Styczeń
A74: 43105 | B74: Zmiana C | C74: 791 | D74: 174 | E74: 71 | F74: 5 | G74: Styczeń | H74: =WEEKNUM(Tabela14[[#This Row],[Data]],2) -> 1 | I74: 2018 | J74: Styczeń
A75: 43105 | B75: Zmiana C | C75: 780 | D75: 123 | E75: 60 | F75: 5 | G75: Styczeń | H75: =WEEKNUM(Tabela14[[#This Row],[Data]],2) -> 1 | I75: 2018 | J75: Styczeń
A76: 43108 | B76: Zmiana A | C76: 2632895 | D76: 164 | E76: 38 | F76: 8 | G76: Styczeń | H76: =WEEKNUM(Tabela14[[#This Row],[Data]],2) -> 2 | I76: 2018 | J76: Styczeń
A77: 43108 | B77: Zmiana A | C77: 721F | D77: 293 | E77: 70 | F77: 8 | G77: Styczeń | H77: =WEEKNUM(Tabela14[[#This Row],[Data]],2) -> 2 | I77: 2018 | J77: Styczeń
A78: 43108 | B78: Zmiana A | C78: 26144994 | D78: 681 | E78: 757 | F78: 8 | G78: Styczeń | H78: =WEEKNUM(Tabela14[[#This Row],[Data]],2) -> 2 | I78: 2018 | J78: Styczeń
A79: 43108 | B79: Zmiana A | C79: 498 | D79: 1691 | E79: 1779 | F79: 8 | G79: Styczeń | H79: =WEEKNUM(Tabela14[[#This Row],[Data]],2) -> 2 | I79: 2018 | J79: Styczeń
A80: 43108 | B80: Zmiana A | C80: 705F | D80: 126 | E80: 60 | F80: 8 | G80: Styczeń | H80: =WEEKNUM(Tabela14[[#This Row],[Data]],2) -> 2 | I80: 2018 | J80: Styczeń
A81: 43108 | B81: Zmiana A | C81: 179 | D81: 265 | E81: 31 | F81: 8 | G81: Styczeń | H81: =WEEKNUM(Tabela14[[#This Row],[Data]],2) -> 2 | I81: 2018 | J81: Styczeń
A82: 43108 | B82: Zmiana A | C82: 162 | D82: 67 | E82: 6 | F82: 8 | G82: Styczeń | H82: =WEEKNUM(Tabela14[[#This Row],[Data]],2) -> 2 | I82: 2018 | J82: Styczeń
A83: 43108 | B83: Zmiana A | C83: 469 | D83: 226 | E83: 1 | F83: 8 | G83: Styczeń | H83: =WEEKNUM(Tabela14[[#This Row],[Data]],2) -> 2 | I83: 2018 | J83: Styczeń
A84: 43108 | B84: Zmiana A | C84: 526 | D84: 6 | E84: 2 | F84: 8 | G84: Styczeń | H84: =WEEKNUM(Tabela14[[#This Row],[Data]],2) -> 2 | I84: 2018 | J84: Styczeń
A85: 43108 | B85: Zmiana A | C85: 719F | D85: 293 | E85: 10 | F85: 8 | G85: Styczeń | H85: =WEEKNUM(Tabela14[[#This Row],[Data]],2) -> 2 | I85: 2018 | J85: Styczeń
A86: 43108 | B86: Zmiana A | C86: 593 | D86: 270 | E86: 3 | F86: 8 | G86: Styczeń | H86: =WEEKNUM(Tabela14[[#This Row],[Data]],2) -> 2 | I86: 2018 | J86: Styczeń
A87: 43108 | B87: Zmiana A | C87: 817 | D87: 272 | E87: 1 | F87: 8 | G87: Styczeń | H87: =WEEKNUM(Tabela14[[#This Row],[Data]],2) -> 2 | I87: 2018 | J87: Styczeń
A88: 43108 | B88: Zmiana A | C88: 2505258 | D88: 113 | E88: 6 | F88: 8 | G88: Styczeń | H88: =WEEKNUM(Tabela14[[#This Row],[Data]],2) -> 2 | I88: 2018 | J88: Styczeń
A89: 43108 | B89: Zmiana A | C89: 2296305 | D89: 444 | E89: 300 | F89: 8 | G89: Styczeń | H89: =WEEKNUM(Tabela14[[#This Row],[Data]],2) -> 2 | I89: 2018 | J89: Styczeń
A90: 43108 | B90: Zmiana A | C90: 334F | D90: 1112 | E90: 897 | F90: 8 | G90: Styczeń | H90: =WEEKNUM(Tabela14[[#This Row],[Data]],2) -> 2 | I90: 2018 | J90: Styczeń
A91: 43108 | B91: Zmiana A | C91: 97 | D91: 224 | E91: 60 | F91: 8 | G91: Styczeń | H91: =WEEKNUM(Tabela14[[#This Row],[Data]],2) -> 2 | I91: 2018 | J91: Styczeń
A92: 43108 | B92: Zmiana A | C92: 717F | D92: 55 | E92: 82 | F92: 8 | G92: Styczeń | H92: =WEEKNUM(Tabela14[[#This Row],[Data]],2) -> 2 | I92: 2018 | J92: Styczeń
A93: 43108 | B93: Zmiana B | C93: 702 | D93: 304 | E93: 27 | F93: 8 | G93: Styczeń | H93: =WEEKNUM(Tabela14[[#This Row],[Data]],2) -> 2 | I93: 2018 | J93: Styczeń
A94: 43108 | B94: Zmiana B | C94: 498 | D94: 1032 | E94: 1015 | F94: 8 | G94: Styczeń | H94: =WEEKNUM(Tabela14[[#This Row],[Data]],2) -> 2 | I94: 2018 | J94: Styczeń
A95: 43108 | B95: Zmiana B | C95: 2310044 | D95: 552 | E95: 264 | F95: 8 | G95: Styczeń | H95: =WEEKNUM(Tabela14[[#This Row],[Data]],2) -> 2 | I95: 2018 | J95: Styczeń
A96: 43108 | B96: Zmiana B | C96: 705F | D96: 9 | E96: 20 | F96: 8 | G96: Styczeń | H96: =WEEKNUM(Tabela14[[#This Row],[Data]],2) -> 2 | I96: 2018 | J96: Styczeń
A97: 43108 | B97: Zmiana B | C97: 198 | D97: 492 | E97: 462 | F97: 8 | G97: Styczeń | H97: =WEEKNUM(Tabela14[[#This Row],[Data]],2) -> 2 | I97: 2018 | J97: Styczeń
A98: 43108 | B98: Zmiana B | C98: 2310044 | D98: 6 | E98: 72 | F98: 8 | G98: Styczeń | H98: =WEEKNUM(Tabela14[[#This Row],[Data]],2) -> 2 | I98: 2018 | J98: Styczeń
A99: 43108 | B99: Zmiana B | C99: 526 | D99: 279 | E99: 13 | F99: 8 | G99: Styczeń | H99: =WEEKNUM(Tabela14[[#This Row],[Data]],2) -> 2 | I99: 2018 | J99: Styczeń
A100: 43108 | B100: Zmiana B | C100: 26144994 | D100: 1179 | E100: 936 | F100: 8 | G100: Styczeń | H100: =WEEKNUM(Tabela14[[#This Row],[Data]],2) -> 2 | I100: 2018 | J100: Styczeń
A101: 43108 | B101: Zmiana B | C101: 634 | D101: 302 | E101: 137 | F101: 8 | G101: Styczeń | H101: =WEEKNUM(Tabela14[[#This Row],[Data]],2) -> 2 | I101: 2018 | J101: Styczeń
A102: 43108 | B102: Zmiana B | C102: 2310044 | D102: 353 | E102: 168 | F102: 8 | G102: Styczeń | H102: =WEEKNUM(Tabela14[[#This Row],[Data]],2) -> 2 | I102: 2018 | J102: Styczeń
A103: 43108 | B103: Zmiana B | C103: 326 | D103: 530 | E103: 599 | F103: 8 | G103: Styczeń | H103: =WEEKNUM(Tabela14[[#This Row],[Data]],2) -> 2 | I103: 2018 | J103: Styczeń
A104: 43108 | B104: Zmiana B | C104: 2432300 | D104: 1001 | E104: 1000 | F104: 8 | G104: Styczeń | H104: =WEEKNUM(Tabela14[[#This Row],[Data]],2) -> 2 | I104: 2018 | J104: Styczeń
A105: 43108 | B105: Zmiana B | C105: 269 | D105: 344 | E105: 70 | F105: 8 | G105: Styczeń | H105: =WEEKNUM(Tabela14[[#This Row],[Data]],2) -> 2 | I105: 2018 | J105: Styczeń
A106: 43108 | B106: Zmiana B | C106: 2494417 | D106: 297 | E106: 111 | F106: 8 | G106: Styczeń | H106: =WEEKNUM(Tabela14[[#This Row],[Data]],2) -> 2 | I106: 2018 | J106: Styczeń
A107: 43108 | B107: Zmiana B | C107: 2310044 | D107: 348 | E107: 168 | F107: 8 | G107: Styczeń | H107: =WEEKNUM(Tabela14[[#This Row],[Data]],2) -> 2 | I107: 2018 | J107: Styczeń
A108: 43108 | B108: Zmiana C | C108: 326 | D108: 1959 | E108: 1991 | F108: 8 | G108: Styczeń | H108: =WEEKNUM(Tabela14[[#This Row],[Data]],2) -> 2 | I108: 2018 | J108: Styczeń
A109: 43108 | B109: Zmiana C | C109: 26144994 | D109: 584 | E109: 379 | F109: 8 | G109: Styczeń | H109: =WEEKNUM(Tabela14[[#This Row],[Data]],2) -> 2 | I109: 2018 | J109: Styczeń
A110: 43108 | B110: Zmiana C | C110: 839 | D110: 390 | E110: 213 | F110: 8 | G110: Styczeń | H110: =WEEKNUM(Tabela14[[#This Row],[Data]],2) -> 2 | I110: 2018 | J110: Styczeń
A111: 43109 | B111: Zmiana A | C111: 708F | D111: 699 | E111: 589 | F111: 9 | G111: Styczeń | H111: =WEEKNUM(Tabela14[[#This Row],[Data]],2) -> 2 | I111: 2018 | J111: Styczeń
A112: 43109 | B112: Zmiana A | C112: 26144994 | D112: 330 | E112: 270 | F112: 9 | G112: Styczeń | H112: =WEEKNUM(Tabela14[[#This Row],[Data]],2) -> 2 | I112: 2018 | J112: Styczeń
A113: 43109 | B113: Zmiana A | C113: 498 | D113: 1998 | E113: 2023 | F113: 9 | G113: Styczeń | H113: =WEEKNUM(Tabela14[[#This Row],[Data]],2) -> 2 | I113: 2018 | J113: Styczeń
A114: 43109 | B114: Zmiana A | C114: 717F | D114: 378 | E114: 409 | F114: 9 | G114: Styczeń | H114: =WEEKNUM(Tabela14[[#This Row],[Data]],2) -> 2 | I114: 2018 | J114: Styczeń
A115: 43109 | B115: Zmiana A | C115: 2067417 | D115: 106 | E115: 10 | F115: 9 | G115: Styczeń | H115: =WEEKNUM(Tabela14[[#This Row],[Data]],2) -> 2 | I115: 2018 | J115: Styczeń
A116: 43109 | B116: Zmiana A | C116: 418 | D116: 50 | E116: 10 | F116: 9 | G116: Styczeń | H116: =WEEKNUM(Tabela14[[#This Row],[Data]],2) -> 2 | I116: 2018 | J116: Styczeń
A117: 43109 | B117: Zmiana A | C117: 800-569488-F | D117: 46 | E117: 60 | F117: 9 | G117: Styczeń | H117: =WEEKNUM(Tabela14[[#This Row],[Data]],2) -> 2 | I117: 2018 | J117: Styczeń
A118: 43109 | B118: Zmiana A | C118: 2001723 | D118: 71 | E118: 40 | F118: 9 | G118: Styczeń | H118: =WEEKNUM(Tabela14[[#This Row],[Data]],2) -> 2 | I118: 2018 | J118: Styczeń
A119: 43109 | B119: Zmiana A | C119: 894 | D119: 224 | E119: 170 | F119: 9 | G119: Styczeń | H119: =WEEKNUM(Tabela14[[#This Row],[Data]],2) -> 2 | I119: 2018 | J119: Styczeń
A120: 43109 | B120: Zmiana A | C120: 2297015 | D120: 390 | E120: 273 | F120: 9 | G120: Styczeń | H120: =WEEKNUM(Tabela14[[#This Row],[Data]],2) -> 2 | I120: 2018 | J120: Styczeń
A121: 43109 | B121: Zmiana A | C121: 359 | D121: 2 | E121: 8 | F121: 9 | G121: Styczeń | H121: =WEEKNUM(Tabela14[[#This Row],[Data]],2) -> 2 | I121: 2018 | J121: Styczeń
A122: 43109 | B122: Zmiana A | C122: 701 | D122: 267 | E122: 27 | F122: 9 | G122: Styczeń | H122: =WEEKNUM(Tabela14[[#This Row],[Data]],2) -> 2 | I122: 2018 | J122: Styczeń
A123: 43109 | B123: Zmiana A | C123: 701 | D123: 59 | E123: 4 | F123: 9 | G123: Styczeń | H123: =WEEKNUM(Tabela14[[#This Row],[Data]],2) -> 2 | I123: 2018 | J123: Styczeń
A124: 43109 | B124: Zmiana A | C124: 2408708 | D124: 501 | E124: 271 | F124: 9 | G124: Styczeń | H124: =WEEKNUM(Tabela14[[#This Row],[Data]],2) -> 2 | I124: 2018 | J124: Styczeń
A125: 43109 | B125: Zmiana A | C125: 160 | D125: 563 | E125: 375 | F125: 9 | G125: Styczeń | H125: =WEEKNUM(Tabela14[[#This Row],[Data]],2) -> 2 | I125: 2018 | J125: Styczeń
A126: 43109 | B126: Zmiana A | C126: 710F | D126: 76 | E126: 60 | F126: 9 | G126: Styczeń | H126: =WEEKNUM(Tabela14[[#This Row],[Data]],2) -> 2 | I126: 2018 | J126: Styczeń
A127: 43109 | B127: Zmiana A | C127: 888 | D127: 123 | E127: 50 | F127: 9 | G127: Styczeń | H127: =WEEKNUM(Tabela14[[#This Row],[Data]],2) -> 2 | I127: 2018 | J127: Styczeń
A128: 43109 | B128: Zmiana A | C128: 37 | D128: 170 | E128: 100 | F128: 9 | G128: Styczeń | H128: =WEEKNUM(Tabela14[[#This Row],[Data]],2) -> 2 | I128: 2018 | J128: Styczeń
A129: 43109 | B129: Zmiana A | C129: 1533713 | D129: 67 | E129: 15 | F129: 9 | G129: Styczeń | H129: =WEEKNUM(Tabela14[[#This Row],[Data]],2) -> 2 | I129: 2018 | J129: Styczeń
A130: 43109 | B130: Zmiana B | C130: 356 | D130: 113 | E130: 70 | F130: =IF(A130="","",DAY(A130)) -> 9 | G130: =IFERROR(VLOOKUP(IF(A130="","",MONTH(A130)),$P$3:$Q$14,2,FALSE),"") -> Styczeń | H130: =WEEKNUM(Tabela14[[#This Row],[Data]],2) -> 2 | I130: =IF(A130="","",YEAR(A130)) -> 2018 | J130: =G130 -> Styczeń
A131: 43109 | B131: Zmiana B | C131: 845 | D131: 282 | E131: 40 | F131: 9 | G131: Styczeń | H131: =WEEKNUM(Tabela14[[#This Row],[Data]],2) -> 2 | I131: 2018 | J131: Styczeń
A132: 43109 | B132: Zmiana B | C132: 844 | D132: 19 | E132: 80 | F132: 9 | G132: Styczeń | H132: =WEEKNUM(Tabela14[[#This Row],[Data]],2) -> 2 | I132: 2018 | J132: Styczeń
A133: 43109 | B133: Zmiana B | C133: 2494417 | D133: 409 | E133: 259 | F133: 9 | G133: Styczeń | H133: =WEEKNUM(Tabela14[[#This Row],[Data]],2) -> 2 | I133: 2018 | J133: Styczeń
A134: 43109 | B134: Zmiana B | C134: 498 | D134: 1027 | E134: 738 | F134: 9 | G134: Styczeń | H134: =WEEKNUM(Tabela14[[#This Row],[Data]],2) -> 2 | I134: 2018 | J134: Styczeń
A135: 43109 | B135: Zmiana B | C135: 326 | D135: 1253 | E135: 983 | F135: 9 | G135: Styczeń | H135: =WEEKNUM(Tabela14[[#This Row],[Data]],2) -> 2 | I135: 2018 | J135: Styczeń
A136: 43109 | B136: Zmiana B | C136: 543 | D136: 599 | E136: 375 | F136: 9 | G136: Styczeń | H136: =WEEKNUM(Tabela14[[#This Row],[Data]],2) -> 2 | I136: 2018 | J136: Styczeń
A137: 43109 | B137: Zmiana B | C137: 2297015 | D137: 320 | E137: 403 | F137: 9 | G137: Styczeń | H137: =WEEKNUM(Tabela14[[#This Row],[Data]],2) -> 2 | I137: 2018 | J137: Styczeń
A138: 43109 | B138: Zmiana B | C138: 275 | D138: 220 | E138: 9 | F138: 9 | G138: Styczeń | H138: =WEEKNUM(Tabela14[[#This Row],[Data]],2) -> 2 | I138: 2018 | J138: Styczeń
A139: 43109 | B139: Zmiana C | C139: 326 | D139: 2676 | E139: 2384 | F139: 9 | G139: Styczeń | H139: =WEEKNUM(Tabela14[[#This Row],[Data]],2) -> 2 | I139: 2018 | J139: Styczeń
A140: 43109 | B140: Zmiana C | C140: 140 | D140: 184 | E140: 60 | F140: 9 | G140: Styczeń | H140: =WEEKNUM(Tabela14[[#This Row],[Data]],2) -> 2 | I140: 2018 | J140: Styczeń
A141: 43109 | B141: Zmiana C | C141: 2001994 | D141: 286 | E141: 36 | F141: 9 | G141: Styczeń | H141: =WEEKNUM(Tabela14[[#This Row],[Data]],2) -> 2 | I141: 2018 | J141: Styczeń
A142: 43109 | B142: Zmiana C | C142: 2451635 | D142: 239 | E142: 250 | F142: 9 | G142: Styczeń | H142: =WEEKNUM(Tabela14[[#This Row],[Data]],2) -> 2 | I142: 2018 | J142: Styczeń
A143: 43109 | B143: Zmiana C | C143: 2334641 | D143: 146 | E143: 36 | F143: 9 | G143: Styczeń | H143: =WEEKNUM(Tabela14[[#This Row],[Data]],2) -> 2 | I143: 2018 | J143: Styczeń
A144: 43109 | B144: Zmiana C | C144: 307 | D144: 228 | E144: 20 | F144: 9 | G144: Styczeń | H144: =WEEKNUM(Tabela14[[#This Row],[Data]],2) -> 2 | I144: 2018 | J144: Styczeń
A145: 43109 | B145: Zmiana C | C145: 310 | D145: 121 | E145: 30 | F145: 9 | G145: Styczeń | H145: =WEEKNUM(Tabela14[[#This Row],[Data]],2) -> 2 | I145: 2018 | J145: Styczeń
A146: 43109 | B146: Zmiana C | C146: 724 | D146: 307 | E146: 30 | F146: 9 | G146: Styczeń | H146: =WEEKNUM(Tabela14[[#This Row],[Data]],2) -> 2 | I146: 2018 | J146: Styczeń
A147: 43109 | B147: Zmiana C | C147: 103 | D147: 43 | E147: 15 | F147: 9 | G147: Styczeń | H147: =WEEKNUM(Tabela14[[#This Row],[Data]],2) -> 2 | I147: 2018 | J147: Styczeń
A148: 43110 | B148: Zmiana A | C148: 300F | D148: 304 | E148: 121 | F148: 10 | G148: Styczeń | H148: =WEEKNUM(Tabela14[[#This Row],[Data]],2) -> 2 | I148: 2018 | J148: Styczeń
A149: 43110 | B149: Zmiana A | C149: 554 | D149: 194 | E149: 10 | F149: 10 | G149: Styczeń | H149: =WEEKNUM(Tabela14[[#This Row],[Data]],2) -> 2 | I149: 2018 | J149: Styczeń
A150: 43110 | B150: Zmiana A | C150: 545 | D150: 63 | E150: 6 | F150: 10 | G150: Styczeń | H150: =WEEKNUM(Tabela14[[#This Row],[Data]],2) -> 2 | I150: 2018 | J150: Styczeń
A151: 43110 | B151: Zmiana A | C151: 996 | D151: 295 | E151: 60 | F151: 10 | G151: Styczeń | H151: =WEEKNUM(Tabela14[[#This Row],[Data]],2) -> 2 | I151: 2018 | J151: Styczeń
A152: 43110 | B152: Zmiana A | C152: 713F | D152: 294 | E152: 120 | F152: 10 | G152: Styczeń | H152: =WEEKNUM(Tabela14[[#This Row],[Data]],2) -> 2 | I152: 2018 | J152: Styczeń
A153: 43110 | B153: Zmiana A | C153: 2505258 | D153: 283 | E153: 6 | F153: 10 | G153: Styczeń | H153: =WEEKNUM(Tabela14[[#This Row],[Data]],2) -> 2 | I153: 2018 | J153: Styczeń
A154: 43110 | B154: Zmiana A | C154: 702 | D154: 166 | E154: 12 | F154: 10 | G154: Styczeń | H154: =WEEKNUM(Tabela14[[#This Row],[Data]],2) -> 2 | I154: 2018 | J154: Styczeń
A155: 43110 | B155: Zmiana A | C155: 767 | D155: 205 | E155: 36 | F155: 10 | G155: Styczeń | H155: =WEEKNUM(Tabela14[[#This Row],[Data]],2) -> 2 | I155: 2018 | J155: Styczeń
A156: 43110 | B156: Zmiana A | C156: 593 | D156: 11 | E156: 40 | F156: 10 | G156: Styczeń | H156: =WEEKNUM(Tabela14[[#This Row],[Data]],2) -> 2 | I156: 2018 | J156: Styczeń
A157: 43110 | B157: Zmiana A | C157: 2334641 | D157: 88 | E157: 150 | F157: 10 | G157: Styczeń | H157: =WEEKNUM(Tabela14[[#This Row],[Data]],2) -> 2 | I157: 2018 | J157: Styczeń
A158: 43110 | B158: Zmiana A | C158: 326 | D158: 2528 | E158: 2400 | F158: 10 | G158: Styczeń | H158: =WEEKNUM(Tabela14[[#This Row],[Data]],2) -> 2 | I158: 2018 | J158: Styczeń
A159: 43110 | B159: Zmiana A | C159: 812 | D159: 1038 | E159: 863 | F159: 10 | G159: Styczeń | H159: =WEEKNUM(Tabela14[[#This Row],[Data]],2) -> 2 | I159: 2018 | J159: Styczeń
A160: 43110 | B160: Zmiana A | C160: 346F | D160: 150 | E160: 200 | F160: 10 | G160: Styczeń | H160: =WEEKNUM(Tabela14[[#This Row],[Data]],2) -> 2 | I160: 2018 | J160: Styczeń
A161: 43110 | B161: Zmiana B | C161: 172 | D161: 199 | E161: 10 | F161: 10 | G161: Styczeń | H161: =WEEKNUM(Tabela14[[#This Row],[Data]],2) -> 2 | I161: 2018 | J161: Styczeń
A162: 43110 | B162: Zmiana B | C162: 996 | D162: 174 | E162: 161 | F162: 10 | G162: Styczeń | H162: =WEEKNUM(Tabela14[[#This Row],[Data]],2) -> 2 | I162: 2018 | J162: Styczeń
A163: 43110 | B163: Zmiana B | C163: 326 | D163: 1029 | E163: 800 | F163: 10 | G163: Styczeń | H163: =WEEKNUM(Tabela14[[#This Row],[Data]],2) -> 2 | I163: 2018 | J163: Styczeń
A164: 43110 | B164: Zmiana B | C164: 2220258 | D164: 435 | E164: 178 | F164: 10 | G164: Styczeń | H164: =WEEKNUM(Tabela14[[#This Row],[Data]],2) -> 2 | I164: 2018 | J164: Styczeń
A165: 43110 | B165: Zmiana B | C165: 746 | D165: 249 | E165: 60 | F165: 10 | G165: Styczeń | H165: =WEEKNUM(Tabela14[[#This Row],[Data]],2) -> 2 | I165: 2018 | J165: Styczeń
A166: 43110 | B166: Zmiana B | C166: 41 | D166: 25 | E166: 40 | F166: 10 | G166: Styczeń | H166: =WEEKNUM(Tabela14[[#This Row],[Data]],2) -> 2 | I166: 2018 | J166: Styczeń
A167: 43110 | B167: Zmiana B | C167: 570 | D167: 257 | E167: 170 | F167: 10 | G167: Styczeń | H167: =WEEKNUM(Tabela14[[#This Row],[Data]],2) -> 2 | I167: 2018 | J167: Styczeń
A168: 43110 | B168: Zmiana B | C168: 1901726 | D168: 690 | E168: 518 | F168: 10 | G168: Styczeń | H168: =WEEKNUM(Tabela14[[#This Row],[Data]],2) -> 2 | I168: 2018 | J168: Styczeń
A169: 43110 | B169: Zmiana B | C169: 2237976 | D169: 499 | E169: 339 | F169: 10 | G169: Styczeń | H169: =WEEKNUM(Tabela14[[#This Row],[Data]],2) -> 2 | I169: 2018 | J169: Styczeń
A170: 43110 | B170: Zmiana B | C170: 2451635 | D170: 215 | E170: 270 | F170: 10 | G170: Styczeń | H170: =WEEKNUM(Tabela14[[#This Row],[Data]],2) -> 2 | I170: 2018 | J170: Styczeń
A171: 43110 | B171: Zmiana B | C171: 76 | D171: 443 | E171: 154 | F171: 10 | G171: Styczeń | H171: =WEEKNUM(Tabela14[[#This Row],[Data]],2) -> 2 | I171: 2018 | J171: Styczeń
A172: 43110 | B172: Zmiana B | C172: 356 | D172: 555 | E172: 447 | F172: 10 | G172: Styczeń | H172: =WEEKNUM(Tabela14[[#This Row],[Data]],2) -> 2 | I172: 2018 | J172: Styczeń
A173: 43110 | B173: Zmiana C | C173: 26144994 | D173: 1599 | E173: 1515 | F173: 10 | G173: Styczeń | H173: =WEEKNUM(Tabela14[[#This Row],[Data]],2) -> 2 | I173: 2018 | J173: Styczeń
A174: 43110 | B174: Zmiana C | C174: 498 | D174: 731 | E174: 800 | F174: 10 | G174: Styczeń | H174: =WEEKNUM(Tabela14[[#This Row],[Data]],2) -> 2 | I174: 2018 | J174: Styczeń
A175: 43110 | B175: Zmiana C | C175: 310 | D175: 96 | E175: 40 | F175: 10 | G175: Styczeń | H175: =WEEKNUM(Tabela14[[#This Row],[Data]],2) -> 2 | I175: 2018 | J175: Styczeń
A176: 43110 | B176: Zmiana C | C176: 546 | D176: 57 | E176: 10 | F176: 10 | G176: Styczeń | H176: =WEEKNUM(Tabela14[[#This Row],[Data]],2) -> 2 | I176: 2018 | J176: Styczeń
A177: 43110 | B177: Zmiana C | C177: 431 | D177: 397 | E177: 432 | F177: 10 | G177: Styczeń | H177: =WEEKNUM(Tabela14[[#This Row],[Data]],2) -> 2 | I177: 2018 | J177: Styczeń
A178: 43111 | B178: Zmiana A | C178: 346F | D178: 471 | E178: 200 | F178: 11 | G178: Styczeń | H178: =WEEKNUM(Tabela14[[#This Row],[Data]],2) -> 2 | I178: 2018 | J178: Styczeń
A179: 43111 | B179: Zmiana A | C179: 269 | D179: 126 | E179: 69 | F179: 11 | G179: Styczeń | H179: =WEEKNUM(Tabela14[[#This Row],[Data]],2) -> 2 | I179: 2018 | J179: Styczeń
A180: 43111 | B180: Zmiana A | C180: 153 | D180: 42 | E180: 18 | F180: 11 | G180: Styczeń | H180: =WEEKNUM(Tabela14[[#This Row],[Data]],2) -> 2 | I180: 2018 | J180: Styczeń
A181: 43111 | B181: Zmiana A | C181: 33501F | D181: 545 | E181: 335 | F181: 11 | G181: Styczeń | H181: =WEEKNUM(Tabela14[[#This Row],[Data]],2) -> 2 | I181: 2018 | J181: Styczeń
A182: 43111 | B182: Zmiana A | C182: 319 | D182: 60 | E182: 20 | F182: 11 | G182: Styczeń | H182: =WEEKNUM(Tabela14[[#This Row],[Data]],2) -> 2 | I182: 2018 | J182: Styczeń
A183: 43111 | B183: Zmiana A | C183: 726 | D183: 140 | E183: 22 | F183: 11 | G183: Styczeń | H183: =WEEKNUM(Tabela14[[#This Row],[Data]],2) -> 2 | I183: 2018 | J183: Styczeń
A184: 43111 | B184: Zmiana A | C184: 498 | D184: 2601 | E184: 2598 | F184: 11 | G184: Styczeń | H184: =WEEKNUM(Tabela14[[#This Row],[Data]],2) -> 2 | I184: 2018 | J184: Styczeń
A185: 43111 | B185: Zmiana A | C185: 119 | D185: 722 | E185: 600 | F185: 11 | G185: Styczeń | H185: =WEEKNUM(Tabela14[[#This Row],[Data]],2) -> 2 | I185: 2018 | J185: Styczeń
A186: 43111 | B186: Zmiana A | C186: 2451636 | D186: 533 | E186: 240 | F186: 11 | G186: Styczeń | H186: =WEEKNUM(Tabela14[[#This Row],[Data]],2) -> 2 | I186: 2018 | J186: Styczeń
A187: 43111 | B187: Zmiana A | C187: 787 | D187: 556 | E187: 385 | F187: 11 | G187: Styczeń | H187: =WEEKNUM(Tabela14[[#This Row],[Data]],2) -> 2 | I187: 2018 | J187: Styczeń
A188: 43111 | B188: Zmiana B | C188: 812 | D188: 563 | E188: 276 | F188: 11 | G188: Styczeń | H188: =WEEKNUM(Tabela14[[#This Row],[Data]],2) -> 2 | I188: 2018 | J188: Styczeń
A189: 43111 | B189: Zmiana B | C189: 2334641 | D189: 469 | E189: 230 | F189: 11 | G189: Styczeń | H189: =WEEKNUM(Tabela14[[#This Row],[Data]],2) -> 2 | I189: 2018 | J189: Styczeń
A190: 43111 | B190: Zmiana B | C190: 2297015 | D190: 154 | E190: 108 | F190: 11 | G190: Styczeń | H190: =WEEKNUM(Tabela14[[#This Row],[Data]],2) -> 2 | I190: 2018 | J190: Styczeń
A191: 43111 | B191: Zmiana B | C191: 198 | D191: 476 | E191: 238 | F191: 11 | G191: Styczeń | H191: =WEEKNUM(Tabela14[[#This Row],[Data]],2) -> 2 | I191: 2018 | J191: Styczeń
A192: 43111 | B192: Zmiana B | C192: 2451636 | D192: 339 | E192: 119 | F192: 11 | G192: Styczeń | H192: =WEEKNUM(Tabela14[[#This Row],[Data]],2) -> 2 | I192: 2018 | J192: Styczeń
A193: 43111 | B193: Zmiana B | C193: 275 | D193: 44 | E193: 87 | F193: 11 | G193: Styczeń | H193: =WEEKNUM(Tabela14[[#This Row],[Data]],2) -> 2 | I193: 2018 | J193: Styczeń
A194: 43111 | B194: Zmiana B | C194: 560 | D194: 581 | E194: 324 | F194: =IF(A194="","",DAY(A194)) -> 11 | G194: =IFERROR(VLOOKUP(IF(A194="","",MONTH(A194)),$P$3:$Q$14,2,FALSE),"") -> Styczeń | H194: =WEEKNUM(Tabela14[[#This Row],[Data]],2) -> 2 | I194: =IF(A194="","",YEAR(A194)) -> 2018 | J194: =G194 -> Styczeń
A195: 43111 | B195: Zmiana B | C195: 498 | D195: 1175 | E195: 1195 | F195: 11 | G195: Styczeń | H195: =WEEKNUM(Tabela14[[#This Row],[Data]],2) -> 2 | I195: 2018 | J195: Styczeń
A196: 43111 | B196: Zmiana B | C196: 101 | D196: 299 | E196: 220 | F196: 11 | G196: Styczeń | H196: =WEEKNUM(Tabela14[[#This Row],[Data]],2) -> 2 | I196: 2018 | J196: Styczeń
A197: 43111 | B197: Zmiana B | C197: 437 | D197: 603 | E197: 527 | F197: 11 | G197: Styczeń | H197: =WEEKNUM(Tabela14[[#This Row],[Data]],2) -> 2 | I197: 2018 | J197: Styczeń
A198: 43111 | B198: Zmiana B | C198: 787 | D198: 165 | E198: 192 | F198: 11 | G198: Styczeń | H198: =WEEKNUM(Tabela14[[#This Row],[Data]],2) -> 2 | I198: 2018 | J198: Styczeń
A199: 43111 | B199: Zmiana C | C199: 26144994 | D199: 946 | E199: 945 | F199: 11 | G199: Styczeń | H199: =WEEKNUM(Tabela14[[#This Row],[Data]],2) -> 2 | I199: 2018 | J199: Styczeń
A200: 43111 | B200: Zmiana C | C200: 498 | D200: 1656 | E200: 1386 | F200: 11 | G200: Styczeń | H200: =WEEKNUM(Tabela14[[#This Row],[Data]],2) -> 2 | I200: 2018 | J200: Styczeń
... 1294 more rows

Sheet Archiwum_Wyk
A1: Data | B1: Zmiana | C1: Numer detalu | D1: Zrealizowana ilość [szt.] | E1: Ilość braków [szt.]: | F1: Całkowita ilość | G1: Dzień: | H1: Miesiąc: | I1: Rok: | J1: Miesiąc2
A2: 43102 | B2: II | C2: 894 | D2: 120 | F2: =IF(A2="","",D2+E2) -> 120 | G2: =IF(A2="","",DAY(A2)) -> 2 | H2: =IFERROR(VLOOKUP(IF(A2="","",MONTH(A2)),$P$3:$Q$14,2,FALSE),"") -> Styczeń | I2: =IF(A2="","",YEAR(A2)) -> 2018 | J2: =H2 -> Styczeń
A3: 43102 | B3: II | C3: 2494417 | D3: 13 | F3: =IF(A3="","",D3+E3) -> 13 | G3: 2 | H3: Styczeń | I3: 2018 | J3: =H3 -> Styczeń | P3: 1 | Q3: Styczeń
A4: 43102 | B4: II | C4: 319 | D4: 20 | F4: =IF(A4="","",D4+E4) -> 20 | G4: 2 | H4: Styczeń | I4: 2018 | J4: =H4 -> Styczeń | P4: 2 | Q4: Luty
A5: 43102 | B5: II | C5: 101 | D5: 20 | F5: =IF(A5="","",D5+E5) -> 20 | G5: 2 | H5: Styczeń | I5: 2018 | J5: =H5 -> Styczeń | P5: 3 | Q5: Marzec
A6: 43102 | B6: II | C6: 76 | D6: 1008 | F6: =IF(A6="","",D6+E6) -> 1008 | G6: 2 | H6: Styczeń | I6: 2018 | J6: =H6 -> Styczeń | P6: 4 | Q6: Kwiecień
A7: 43102 | B7: II | C7: 498 | D7: 783 | E7: 2 | F7: =IF(A7="","",D7+E7) -> 785 | G7: 2 | H7: Styczeń | I7: 2018 | J7: =H7 -> Styczeń | P7: 5 | Q7: Maj
A8: 43102 | B8: II | C8: 326 | D8: 1586 | E8: 8 | F8: 1594 | G8: 2 | H8: Styczeń | I8: 2018 | J8: Styczeń | P8: 6 | Q8: Czerwiec
A9: 43103 | B9: I | C9: 33503F | D9: 250 | E9: 4 | F9: 254 | G9: 3 | H9: Styczeń | I9: 2018 | J9: Styczeń | P9: 7 | Q9: Lipiec
A10: 43103 | B10: I | C10: 708F | D10: 144 | E10: 52 | F10: 196 | G10: 3 | H10: Styczeń | I10: 2018 | J10: Styczeń | P10: 8 | Q10: Sierpień
A11: 43103 | B11: I | C11: 326 | D11: 992 | E11: 3 | F11: 995 | G11: 3 | H11: Styczeń | I11: 2018 | J11: Styczeń | P11: 9 | Q11: Wrzesień
A12: 43103 | B12: I | C12: 498 | D12: 1675 | F12: 1675 | G12: 3 | H12: Styczeń | I12: 2018 | J12: Styczeń | P12: 10 | Q12: Październik
A13: 43103 | B13: I | C13: 334F | D13: 764 | E13: 30 | F13: 794 | G13: 3 | H13: Styczeń | I13: 2018 | J13: Styczeń | P13: 11 | Q13: Listopad
A14: 43103 | B14: I | C14: 570 | D14: 340 | F14: 340 | G14: 3 | H14: Styczeń | I14: 2018 | J14: Styczeń | P14: 12 | Q14: Grudzień
A15: 43103 | B15: I | C15: 414 | D15: 10 | F15: 10 | G15: 3 | H15: Styczeń | I15: 2018 | J15: Styczeń
A16: 43103 | B16: I | C16: 2505258 | D16: 6 | F16: 6 | G16: 3 | H16: Styczeń | I16: 2018 | J16: Styczeń
A17: 43103 | B17: I | C17: 812 | D17: 250 | F17: 250 | G17: 3 | H17: Styczeń | I17: 2018 | J17: Styczeń
A18: 43103 | B18: I | C18: 562 | D18: 1 | F18: 1 | G18: 3 | H18: Styczeń | I18: 2018 | J18: Styczeń
A19: 43103 | B19: I | C19: 192 | D19: 5 | F19: 5 | G19: 3 | H19: Styczeń | I19: 2018 | J19: Styczeń
A20: 43103 | B20: I | C20: 761 | D20: 15 | E20: 28 | F20: 43 | G20: 3 | H20: Styczeń | I20: 2018 | J20: Styczeń
A21: 43103 | B21: I | C21: 888 | D21: 40 | F21: 40 | G21: 3 | H21: Styczeń | I21: 2018 | J21: Styczeń
A22: 43103 | B22: I | C22: 101 | D22: 80 | F22: 80 | G22: 3 | H22: Styczeń | I22: 2018 | J22: Styczeń
A23: 43103 | B23: I | C23: 2408709 | D23: 150 | F23: 150 | G23: 3 | H23: Styczeń | I23: 2018 | J23: Styczeń
A24: 43103 | B24: I | C24: 514 | D24: 105 | E24: 2 | F24: 107 | G24: 3 | H24: Styczeń | I24: 2018 | J24: Styczeń
A25: 43103 | B25: II | C25: 356 | D25: 99 | F25: 99 | G25: 3 | H25: Styczeń | I25: 2018 | J25: Styczeń
A26: 43103 | B26: II | C26: 198 | D26: 301 | E26: 3 | F26: 304 | G26: 3 | H26: Styczeń | I26: 2018 | J26: Styczeń
A27: 43103 | B27: II | C27: 845 | D27: 20 | F27: 20 | G27: 3 | H27: Styczeń | I27: 2018 | J27: Styczeń
A28: 43103 | B28: II | C28: 746 | D28: 40 | E28: 3 | F28: 43 | G28: 3 | H28: Styczeń | I28: 2018 | J28: Styczeń
A29: 43103 | B29: II | C29: 33501f | D29: 219 | E29: 3 | F29: 222 | G29: 3 | H29: Styczeń | I29: 2018 | J29: Styczeń
A30: 43103 | B30: II | C30: 933 | D30: 550 | F30: 550 | G30: 3 | H30: Styczeń | I30: 2018 | J30: Styczeń
A31: 43103 | B31: II | C31: 2418977 | D31: 180 | E31: 29 | F31: 209 | G31: 3 | H31: Styczeń | I31: 2018 | J31: Styczeń
A32: 43103 | B32: III | C32: 791 | D32: 200 | F32: 200 | G32: 3 | H32: Styczeń | I32: 2018 | J32: Styczeń
A33: 43103 | B33: III | C33: 780 | D33: 120 | F33: 120 | G33: 3 | H33: Styczeń | I33: 2018 | J33: Styczeń
A34: 43103 | B34: III | C34: 933 | D34: 300 | E34: 6 | F34: 306 | G34: 3 | H34: Styczeń | I34: 2018 | J34: Styczeń
A35: 43103 | B35: III | C35: 498 | D35: 2393 | E35: 1 | F35: 2394 | G35: 3 | H35: Styczeń | I35: 2018 | J35: Styczeń
A36: 43103 | B36: III | C36: 269 | D36: 81 | F36: 81 | G36: 3 | H36: Styczeń | I36: 2018 | J36: Styczeń
A37: 43103 | B37: III | C37: 310 | D37: 60 | F37: 60 | G37: 3 | H37: Styczeń | I37: 2018 | J37: Styczeń
A38: 43103 | B38: III | C38: 895 | D38: 21 | F38: 21 | G38: 3 | H38: Styczeń | I38: 2018 | J38: Styczeń
A39: 43104 | B39: II | C39: 252 | D39: 252 | E39: 8 | F39: 260 | G39: 4 | H39: Styczeń | I39: 2018 | J39: Styczeń
A40: 43104 | B40: II | C40: 2296305 | D40: 400 | F40: 400 | G40: 4 | H40: Styczeń | I40: 2018 | J40: Styczeń
A41: 43104 | B41: II | C41: 69 | D41: 261 | E41: 99 | F41: 360 | G41: 4 | H41: Styczeń | I41: 2018 | J41: Styczeń
A42: 43104 | B42: II | C42: 498 | D42: 1001 | F42: 1001 | G42: 4 | H42: Styczeń | I42: 2018 | J42: Styczeń
A43: 43104 | B43: II | C43: 119 | D43: 240 | E43: 3 | F43: 243 | G43: 4 | H43: Styczeń | I43: 2018 | J43: Styczeń
A44: 43104 | B44: II | C44: 812 | D44: 798 | E44: 59 | F44: 857 | G44: 4 | H44: Styczeń | I44: 2018 | J44: Styczeń
A45: 43104 | B45: II | C45: 2451635 | D45: 33 | F45: 33 | G45: 4 | H45: Styczeń | I45: 2018 | J45: Styczeń
A46: 43104 | B46: II | C46: 2334641 | D46: 147 | F46: 147 | G46: 4 | H46: Styczeń | I46: 2018 | J46: Styczeń
A47: 43104 | B47: II | C47: 498 | D47: 2170 | E47: 19 | F47: 2189 | G47: 4 | H47: Styczeń | I47: 2018 | J47: Styczeń
A48: 43104 | B48: II | C48: 26144994 | D48: 98 | F48: 98 | G48: 4 | H48: Styczeń | I48: 2018 | J48: Styczeń
A49: 43104 | B49: II | C49: 812 | D49: 121 | E49: 16 | F49: 137 | G49: 4 | H49: Styczeń | I49: 2018 | J49: Styczeń
A50: 43105 | B50: I | C50: 197 | D50: 3 | F50: 3 | G50: 5 | H50: Styczeń | I50: 2018 | J50: Styczeń
A51: 43105 | B51: I | C51: 2451635 | D51: 230 | E51: 1 | F51: 231 | G51: 5 | H51: Styczeń | I51: 2018 | J51: Styczeń
A52: 43105 | B52: I | C52: 356 | D52: 110 | F52: 110 | G52: 5 | H52: Styczeń | I52: 2018 | J52: Styczeń
A53: 43105 | B53: I | C53: 39 | D53: 20 | F53: 20 | G53: 5 | H53: Styczeń | I53: 2018 | J53: Styczeń
A54: 43105 | B54: I | C54: 467 | D54: 13 | E54: 5 | F54: 18 | G54: 5 | H54: Styczeń | I54: 2018 | J54: Styczeń
A55: 43105 | B55: I | C55: 843 | D55: 10 | F55: 10 | G55: 5 | H55: Styczeń | I55: 2018 | J55: Styczeń
A56: 43105 | B56: I | C56: 896 | D56: 25 | F56: 25 | G56: 5 | H56: Styczeń | I56: 2018 | J56: Styczeń
A57: 43105 | B57: I | C57: 498 | D57: 2400 | F57: 2400 | G57: 5 | H57: Styczeń | I57: 2018 | J57: Styczeń
A58: 43105 | B58: I | C58: 26144994 | D58: 189 | F58: 189 | G58: 5 | H58: Styczeń | I58: 2018 | J58: Styczeń
A59: 43105 | B59: I | C59: 119 | D59: 600 | E59: 27 | F59: 627 | G59: 5 | H59: Styczeń | I59: 2018 | J59: Styczeń
A60: 43105 | B60: I | C60: 571 | D60: 540 | E60: 5 | F60: 545 | G60: 5 | H60: Styczeń | I60: 2018 | J60: Styczeń
A61: 43105 | B61: I | C61: 2451636 | D61: 180 | F61: 180 | G61: 5 | H61: Styczeń | I61: 2018 | J61: Styczeń
A62: 43105 | B62: II | C62: 198 | D62: 164 | E62: 3 | F62: 167 | G62: 5 | H62: Styczeń | I62: 2018 | J62: Styczeń
A63: 43105 | B63: II | C63: 812 | D63: 861 | F63: 861 | G63: 5 | H63: Styczeń | I63: 2018 | J63: Styczeń
A64: 43105 | B64: II | C64: 570 | D64: 360 | E64: 179 | F64: 539 | G64: 5 | H64: Styczeń | I64: 2018 | J64: Styczeń
A65: 43105 | B65: II | C65: 1533713 | D65: 50 | F65: 50 | G65: 5 | H65: Styczeń | I65: 2018 | J65: Styczeń
A66: 43105 | B66: II | C66: 467 | D66: 7 | F66: 7 | G66: =IF(A66="","",DAY(A66)) -> 5 | H66: =IFERROR(VLOOKUP(IF(A66="","",MONTH(A66)),$P$3:$Q$14,2,FALSE),"") -> Styczeń | I66: =IF(A66="","",YEAR(A66)) -> 2018 | J66: Styczeń
A67: 43105 | B67: II | C67: 2418976 | D67: 90 | F67: 90 | G67: 5 | H67: Styczeń | I67: 2018 | J67: Styczeń
A68: 43105 | B68: II | C68: 437 | D68: 175 | F68: 175 | G68: 5 | H68: Styczeń | I68: 2018 | J68: Styczeń
A69: 43105 | B69: III | C69: 2297015 | D69: 377 | E69: 32 | F69: 409 | G69: 5 | H69: Styczeń | I69: 2018 | J69: Styczeń
A70: 43105 | B70: III | C70: 179 | D70: 919 | E70: 31 | F70: 950 | G70: 5 | H70: Styczeń | I70: 2018 | J70: Styczeń
A71: 43105 | B71: III | C71: 2297015 | D71: 13 | E71: 735 | F71: =IF(A71="","",D71+E71) -> 748 | G71: 5 | H71: Styczeń | I71: 2018 | J71: =H71 -> Styczeń
A72: 43105 | B72: III | C72: 498 | D72: 1982 | F72: 1982 | G72: 5 | H72: Styczeń | I72: 2018 | J72: Styczeń
A73: 43105 | B73: III | C73: 26144994 | D73: 378 | F73: 378 | G73: 5 | H73: Styczeń | I73: 2018 | J73: Styczeń
A74: 43105 | B74: III | C74: 791 | D74: 71 | F74: 71 | G74: 5 | H74: Styczeń | I74: 2018 | J74: Styczeń
A75: 43105 | B75: III | C75: 780 | D75: 60 | F75: 60 | G75: 5 | H75: Styczeń | I75: 2018 | J75: Styczeń
A76: 43108 | B76: I | C76: 2632895 | D76: 38 | F76: 38 | G76: 8 | H76: Styczeń | I76: 2018 | J76: Styczeń
A77: 43108 | B77: I | C77: 721F | D77: 70 | E77: 1 | F77: 71 | G77: 8 | H77: Styczeń | I77: 2018 | J77: Styczeń
A78: 43108 | B78: I | C78: 26144994 | D78: 757 | F78: 757 | G78: 8 | H78: Styczeń | I78: 2018 | J78: Styczeń
A79: 43108 | B79: I | C79: 498 | D79: 1779 | F79: 1779 | G79: 8 | H79: Styczeń | I79: 2018 | J79: Styczeń
A80: 43108 | B80: I | C80: 705F | D80: 60 | F80: 60 | G80: 8 | H80: Styczeń | I80: 2018 | J80: Styczeń
A81: 43108 | B81: I | C81: 179 | D81: 31 | F81: 31 | G81: 8 | H81: Styczeń | I81: 2018 | J81: Styczeń
A82: 43108 | B82: I | C82: 162 | D82: 6 | F82: 6 | G82: 8 | H82: Styczeń | I82: 2018 | J82: Styczeń
A83: 43108 | B83: I | C83: 469 | D83: 1 | F83: 1 | G83: 8 | H83: Styczeń | I83: 2018 | J83: Styczeń
A84: 43108 | B84: I | C84: 526 | D84: 2 | F84: 2 | G84: 8 | H84: Styczeń | I84: 2018 | J84: Styczeń
A85: 43108 | B85: I | C85: 719F | D85: 10 | F85: 10 | G85: 8 | H85: Styczeń | I85: 2018 | J85: Styczeń
A86: 43108 | B86: I | C86: 593 | D86: 3 | F86: 3 | G86: 8 | H86: Styczeń | I86: 2018 | J86: Styczeń
A87: 43108 | B87: I | C87: 817 | D87: 1 | F87: 1 | G87: 8 | H87: Styczeń | I87: 2018 | J87: Styczeń
A88: 43108 | B88: I | C88: 2505258 | D88: 6 | F88: 6 | G88: 8 | H88: Styczeń | I88: 2018 | J88: Styczeń
A89: 43108 | B89: I | C89: 2296305 | D89: 300 | E89: 4 | F89: 304 | G89: 8 | H89: Styczeń | I89: 2018 | J89: Styczeń
A90: 43108 | B90: I | C90: 334F | D90: 897 | E90: 6 | F90: 903 | G90: 8 | H90: Styczeń | I90: 2018 | J90: Styczeń
A91: 43108 | B91: I | C91: 97 | D91: 60 | F91: 60 | G91: 8 | H91: Styczeń | I91: 2018 | J91: Styczeń
A92: 43108 | B92: I | C92: 717F | D92: 82 | F92: 82 | G92: 8 | H92: Styczeń | I92: 2018 | J92: Styczeń
A93: 43108 | B93: II | C93: 702 | D93: 27 | F93: 27 | G93: 8 | H93: Styczeń | I93: 2018 | J93: Styczeń
A94: 43108 | B94: II | C94: 498 | D94: 1015 | F94: 1015 | G94: 8 | H94: Styczeń | I94: 2018 | J94: Styczeń
A95: 43108 | B95: II | C95: 2310044 | D95: 264 | F95: 264 | G95: 8 | H95: Styczeń | I95: 2018 | J95: Styczeń
A96: 43108 | B96: II | C96: 705F | D96: 20 | F96: 20 | G96: 8 | H96: Styczeń | I96: 2018 | J96: Styczeń
A97: 43108 | B97: II | C97: 198 | D97: 462 | E97: 1 | F97: 463 | G97: 8 | H97: Styczeń | I97: 2018 | J97: Styczeń
A98: 43108 | B98: II | C98: 2310044 | D98: 72 | F98: 72 | G98: 8 | H98: Styczeń | I98: 2018 | J98: Styczeń
A99: 43108 | B99: II | C99: 526 | D99: 13 | F99: 13 | G99: 8 | H99: Styczeń | I99: 2018 | J99: Styczeń
A100: 43108 | B100: II | C100: 26144994 | D100: 936 | E100: 1 | F100: 937 | G100: 8 | H100: Styczeń | I100: 2018 | J100: Styczeń
A101: 43108 | B101: II | C101: 634 | D101: 137 | E101: 14 | F101: 151 | G101: 8 | H101: Styczeń | I101: 2018 | J101: Styczeń
A102: 43108 | B102: II | C102: 2310044 | D102: 168 | F102: 168 | G102: 8 | H102: Styczeń | I102: 2018 | J102: Styczeń
A103: 43108 | B103: II | C103: 326 | D103: 599 | F103: 599 | G103: 8 | H103: Styczeń | I103: 2018 | J103: Styczeń
A104: 43108 | B104: II | C104: 2432300 | D104: 1000 | F104: 1000 | G104: 8 | H104: Styczeń | I104: 2018 | J104: Styczeń
A105: 43108 | B105: II | C105: 269 | D105: 70 | F105: 70 | G105: 8 | H105: Styczeń | I105: 2018 | J105: Styczeń
A106: 43108 | B106: II | C106: 2494417 | D106: 111 | F106: 111 | G106: 8 | H106: Styczeń | I106: 2018 | J106: Styczeń
A107: 43108 | B107: II | C107: 2310044 | D107: 168 | E107: 1 | F107: 169 | G107: 8 | H107: Styczeń | I107: 2018 | J107: Styczeń
A108: 43108 | B108: III | C108: 326 | D108: 1991 | E108: 4 | F108: 1995 | G108: 8 | H108: Styczeń | I108: 2018 | J108: Styczeń
A109: 43108 | B109: III | C109: 26144994 | D109: 379 | F109: 379 | G109: 8 | H109: Styczeń | I109: 2018 | J109: Styczeń
A110: 43108 | B110: III | C110: 839 | D110: 213 | E110: 27 | F110: 240 | G110: 8 | H110: Styczeń | I110: 2018 | J110: Styczeń
A111: 43109 | B111: I | C111: 708F | D111: 589 | E111: 74 | F111: 663 | G111: 9 | H111: Styczeń | I111: 2018 | J111: Styczeń
A112: 43109 | B112: I | C112: 26144994 | D112: 270 | F112: 270 | G112: 9 | H112: Styczeń | I112: 2018 | J112: Styczeń
A113: 43109 | B113: I | C113: 498 | D113: 2023 | F113: 2023 | G113: 9 | H113: Styczeń | I113: 2018 | J113: Styczeń
A114: 43109 | B114: I | C114: 717F | D114: 409 | E114: 33 | F114: 442 | G114: 9 | H114: Styczeń | I114: 2018 | J114: Styczeń
A115: 43109 | B115: I | C115: 2067417 | D115: 10 | F115: 10 | G115: 9 | H115: Styczeń | I115: 2018 | J115: Styczeń
A116: 43109 | B116: I | C116: 418 | D116: 10 | F116: 10 | G116: 9 | H116: Styczeń | I116: 2018 | J116: Styczeń
A117: 43109 | B117: I | C117: 800-569488-F | D117: 60 | F117: 60 | G117: 9 | H117: Styczeń | I117: 2018 | J117: Styczeń
A118: 43109 | B118: I | C118: 2001723 | D118: 40 | F118: 40 | G118: 9 | H118: Styczeń | I118: 2018 | J118: Styczeń
A119: 43109 | B119: I | C119: 894 | D119: 170 | F119: 170 | G119: 9 | H119: Styczeń | I119: 2018 | J119: Styczeń
A120: 43109 | B120: I | C120: 2297015 | D120: 273 | F120: 273 | G120: 9 | H120: Styczeń | I120: 2018 | J120: Styczeń
A121: 43109 | B121: I | C121: 359 | D121: 8 | F121: 8 | G121: 9 | H121: Styczeń | I121: 2018 | J121: Styczeń
A122: 43109 | B122: I | C122: 701 | D122: 27 | F122: 27 | G122: 9 | H122: Styczeń | I122: 2018 | J122: Styczeń
A123: 43109 | B123: I | C123: 701 | D123: 4 | F123: 4 | G123: 9 | H123: Styczeń | I123: 2018 | J123: Styczeń
A124: 43109 | B124: I | C124: 2408708 | D124: 271 | E124: 63 | F124: 334 | G124: 9 | H124: Styczeń | I124: 2018 | J124: Styczeń
A125: 43109 | B125: I | C125: 160 | D125: 375 | F125: 375 | G125: 9 | H125: Styczeń | I125: 2018 | J125: Styczeń
A126: 43109 | B126: I | C126: 710F | D126: 60 | F126: 60 | G126: 9 | H126: Styczeń | I126: 2018 | J126: Styczeń
A127: 43109 | B127: I | C127: 888 | D127: 50 | E127: 2 | F127: 52 | G127: 9 | H127: Styczeń | I127: 2018 | J127: Styczeń
A128: 43109 | B128: I | C128: 37 | D128: 100 | F128: 100 | G128: 9 | H128: Styczeń | I128: 2018 | J128: Styczeń
A129: 43109 | B129: I | C129: 1533713 | D129: 15 | E129: 63 | F129: 78 | G129: 9 | H129: Styczeń | I129: 2018 | J129: Styczeń
A130: 43109 | B130: II | C130: 356 | D130: 70 | F130: 70 | G130: =IF(A130="","",DAY(A130)) -> 9 | H130: =IFERROR(VLOOKUP(IF(A130="","",MONTH(A130)),$P$3:$Q$14,2,FALSE),"") -> Styczeń | I130: =IF(A130="","",YEAR(A130)) -> 2018 | J130: Styczeń
A131: 43109 | B131: II | C131: 845 | D131: 40 | F131: 40 | G131: 9 | H131: Styczeń | I131: 2018 | J131: Styczeń
A132: 43109 | B132: II | C132: 844 | D132: 80 | F132: 80 | G132: 9 | H132: Styczeń | I132: 2018 | J132: Styczeń
A133: 43109 | B133: II | C133: 2494417 | D133: 259 | F133: 259 | G133: 9 | H133: Styczeń | I133: 2018 | J133: Styczeń
A134: 43109 | B134: II | C134: 498 | D134: 738 | F134: 738 | G134: 9 | H134: Styczeń | I134: 2018 | J134: Styczeń
A135: 43109 | B135: II | C135: 326 | D135: 983 | E135: 14 | F135: =IF(A135="","",D135+E135) -> 997 | G135: 9 | H135: Styczeń | I135: 2018 | J135: =H135 -> Styczeń
A136: 43109 | B136: II | C136: 543 | D136: 375 | E136: 3 | F136: 378 | G136: 9 | H136: Styczeń | I136: 2018 | J136: Styczeń
A137: 43109 | B137: II | C137: 2297015 | D137: 403 | E137: 19 | F137: 422 | G137: 9 | H137: Styczeń | I137: 2018 | J137: Styczeń
A138: 43109 | B138: II | C138: 275 | D138: 9 | F138: 9 | G138: 9 | H138: Styczeń | I138: 2018 | J138: Styczeń
A139: 43109 | B139: III | C139: 326 | D139: 2384 | E139: 18 | F139: 2402 | G139: 9 | H139: Styczeń | I139: 2018 | J139: Styczeń
A140: 43109 | B140: III | C140: 140 | D140: 60 | F140: 60 | G140: 9 | H140: Styczeń | I140: 2018 | J140: Styczeń
A141: 43109 | B141: III | C141: 2001994 | D141: 36 | F141: 36 | G141: 9 | H141: Styczeń | I141: 2018 | J141: Styczeń
A142: 43109 | B142: III | C142: 2451635 | D142: 250 | E142: 2 | F142: 252 | G142: 9 | H142: Styczeń | I142: 2018 | J142: Styczeń
A143: 43109 | B143: III | C143: 2334641 | D143: 36 | F143: 36 | G143: 9 | H143: Styczeń | I143: 2018 | J143: Styczeń
A144: 43109 | B144: III | C144: 307 | D144: 20 | F144: 20 | G144: 9 | H144: Styczeń | I144: 2018 | J144: Styczeń
A145: 43109 | B145: III | C145: 310 | D145: 30 | F145: 30 | G145: 9 | H145: Styczeń | I145: 2018 | J145: Styczeń
A146: 43109 | B146: III | C146: 724 | D146: 30 | F146: 30 | G146: 9 | H146: Styczeń | I146: 2018 | J146: Styczeń
A147: 43109 | B147: III | C147: 103 | D147: 15 | F147: 15 | G147: 9 | H147: Styczeń | I147: 2018 | J147: Styczeń
A148: 43110 | B148: I | C148: 300F | D148: 121 | E148: 3 | F148: 124 | G148: 10 | H148: Styczeń | I148: 2018 | J148: Styczeń
A149: 43110 | B149: I | C149: 554 | D149: 10 | F149: 10 | G149: 10 | H149: Styczeń | I149: 2018 | J149: Styczeń
A150: 43110 | B150: I | C150: 545 | D150: 6 | F150: 6 | G150: 10 | H150: Styczeń | I150: 2018 | J150: Styczeń
A151: 43110 | B151: I | C151: 996 | D151: 60 | F151: 60 | G151: 10 | H151: Styczeń | I151: 2018 | J151: Styczeń
A152: 43110 | B152: I | C152: 713F | D152: 120 | E152: 7 | F152: 127 | G152: 10 | H152: Styczeń | I152: 2018 | J152: Styczeń
A153: 43110 | B153: I | C153: 2505258 | D153: 6 | F153: 6 | G153: 10 | H153: Styczeń | I153: 2018 | J153: Styczeń
A154: 43110 | B154: I | C154: 702 | D154: 12 | F154: 12 | G154: 10 | H154: Styczeń | I154: 2018 | J154: Styczeń
A155: 43110 | B155: I | C155: 767 | D155: 36 | F155: 36 | G155: 10 | H155: Styczeń | I155: 2018 | J155: Styczeń
A156: 43110 | B156: I | C156: 593 | D156: 40 | F156: 40 | G156: 10 | H156: Styczeń | I156: 2018 | J156: Styczeń
A157: 43110 | B157: I | C157: 2334641 | D157: 150 | F157: 150 | G157: 10 | H157: Styczeń | I157: 2018 | J157: Styczeń
A158: 43110 | B158: I | C158: 326 | D158: 2400 | F158: 2400 | G158: 10 | H158: Styczeń | I158: 2018 | J158: Styczeń
A159: 43110 | B159: I | C159: 812 | D159: 863 | E159: 3 | F159: 866 | G159: 10 | H159: Styczeń | I159: 2018 | J159: Styczeń
A160: 43110 | B160: I | C160: 346F | D160: 200 | F160: 200 | G160: 10 | H160: Styczeń | I160: 2018 | J160: Styczeń
A161: 43110 | B161: II | C161: 172 | D161: 10 | F161: 10 | G161: 10 | H161: Styczeń | I161: 2018 | J161: Styczeń
A162: 43110 | B162: II | C162: 996 | D162: 161 | E162: 29 | F162: 190 | G162: 10 | H162: Styczeń | I162: 2018 | J162: Styczeń
A163: 43110 | B163: II | C163: 326 | D163: 800 | F163: 800 | G163: 10 | H163: Styczeń | I163: 2018 | J163: Styczeń
A164: 43110 | B164: II | C164: 2220258 | D164: 178 | F164: 178 | G164: 10 | H164: Styczeń | I164: 2018 | J164: Styczeń
A165: 43110 | B165: II | C165: 746 | D165: 60 | F165: 60 | G165: 10 | H165: Styczeń | I165: 2018 | J165: Styczeń
A166: 43110 | B166: II | C166: 41 | D166: 40 | F166: 40 | G166: 10 | H166: Styczeń | I166: 2018 | J166: Styczeń
A167: 43110 | B167: II | C167: 570 | D167: 170 | F167: 170 | G167: 10 | H167: Styczeń | I167: 2018 | J167: Styczeń
A168: 43110 | B168: II | C168: 1901726 | D168: 518 | F168: 518 | G168: 10 | H168: Styczeń | I168: 2018 | J168: Styczeń
A169: 43110 | B169: II | C169: 2237976 | D169: 339 | F169: 339 | G169: 10 | H169: Styczeń | I169: 2018 | J169: Styczeń
A170: 43110 | B170: II | C170: 2451635 | D170: 270 | F170: 270 | G170: 10 | H170: Styczeń | I170: 2018 | J170: Styczeń
A171: 43110 | B171: II | C171: 76 | D171: 154 | F171: 154 | G171: 10 | H171: Styczeń | I171: 2018 | J171: Styczeń
A172: 43110 | B172: II | C172: 356 | D172: 447 | E172: 39 | F172: 486 | G172: 10 | H172: Styczeń | I172: 2018 | J172: Styczeń
A173: 43110 | B173: III | C173: 26144994 | D173: 1515 | F173: 1515 | G173: 10 | H173: Styczeń | I173: 2018 | J173: Styczeń
A174: 43110 | B174: III | C174: 498 | D174: 800 | F174: 800 | G174: 10 | H174: Styczeń | I174: 2018 | J174: Styczeń
A175: 43110 | B175: III | C175: 310 | D175: 40 | F175: 40 | G175: 10 | H175: Styczeń | I175: 2018 | J175: Styczeń
A176: 43110 | B176: III | C176: 546 | D176: 10 | F176: 10 | G176: 10 | H176: Styczeń | I176: 2018 | J176: Styczeń
A177: 43110 | B177: III | C177: 431 | D177: 432 | E177: 17 | F177: 449 | G177: 10 | H177: Styczeń | I177: 2018 | J177: Styczeń
A178: 43111 | B178: I | C178: 346F | D178: 200 | F178: 200 | G178: 11 | H178: Styczeń | I178: 2018 | J178: Styczeń
A179: 43111 | B179: I | C179: 269 | D179: 69 | F179: 69 | G179: 11 | H179: Styczeń | I179: 2018 | J179: Styczeń
A180: 43111 | B180: I | C180: 153 | D180: 18 | F180: 18 | G180: 11 | H180: Styczeń | I180: 2018 | J180: Styczeń
A181: 43111 | B181: I | C181: 33501F | D181: 335 | E181: 1 | F181: 336 | G181: 11 | H181: Styczeń | I181: 2018 | J181: Styczeń
A182: 43111 | B182: I | C182: 319 | D182: 20 | F182: 20 | G182: 11 | H182: Styczeń | I182: 2018 | J182: Styczeń
A183: 43111 | B183: I | C183: 726 | D183: 22 | F183: 22 | G183: 11 | H183: Styczeń | I183: 2018 | J183: Styczeń
A184: 43111 | B184: I | C184: 498 | D184: 2598 | F184: 2598 | G184: 11 | H184: Styczeń | I184: 2018 | J184: Styczeń
A185: 43111 | B185: I | C185: 119 | D185: 600 | E185: 1 | F185: 601 | G185: 11 | H185: Styczeń | I185: 2018 | J185: Styczeń
A186: 43111 | B186: I | C186: 2451636 | D186: 240 | F186: 240 | G186: 11 | H186: Styczeń | I186: 2018 | J186: Styczeń
A187: 43111 | B187: I | C187: 787 | D187: 385 | E187: 141 | F187: 526 | G187: 11 | H187: Styczeń | I187: 2018 | J187: Styczeń
A188: 43111 | B188: II | C188: 812 | D188: 276 | F188: 276 | G188: 11 | H188: Styczeń | I188: 2018 | J188: Styczeń
A189: 43111 | B189: II | C189: 2334641 | D189: 230 | F189: 230 | G189: 11 | H189: Styczeń | I189: 2018 | J189: Styczeń
A190: 43111 | B190: II | C190: 2297015 | D190: 108 | F190: 108 | G190: 11 | H190: Styczeń | I190: 2018 | J190: Styczeń
A191: 43111 | B191: II | C191: 198 | D191: 238 | F191: 238 | G191: 11 | H191: Styczeń | I191: 2018 | J191: Styczeń
A192: 43111 | B192: II | C192: 2451636 | D192: 119 | F192: 119 | G192: 11 | H192: Styczeń | I192: 2018 | J192: Styczeń
A193: 43111 | B193: II | C193: 275 | D193: 87 | F193: 87 | G193: 11 | H193: Styczeń | I193: 2018 | J193: Styczeń
A194: 43111 | B194: II | C194: 560 | D194: 324 | E194: 19 | F194: 343 | G194: =IF(A194="","",DAY(A194)) -> 11 | H194: =IFERROR(VLOOKUP(IF(A194="","",MONTH(A194)),$P$3:$Q$14,2,FALSE),"") -> Styczeń | I194: =IF(A194="","",YEAR(A194)) -> 2018 | J194: Styczeń
A195: 43111 | B195: II | C195: 498 | D195: 1195 | E195: 2 | F195: 1197 | G195: 11 | H195: Styczeń | I195: 2018 | J195: Styczeń
A196: 43111 | B196: II | C196: 101 | D196: 220 | F196: 220 | G196: 11 | H196: Styczeń | I196: 2018 | J196: Styczeń
A197: 43111 | B197: II | C197: 437 | D197: 527 | E197: 27 | F197: 554 | G197: 11 | H197: Styczeń | I197: 2018 | J197: Styczeń
A198: 43111 | B198: II | C198: 787 | D198: 192 | E198: 5 | F198: 197 | G198: 11 | H198: Styczeń | I198: 2018 | J198: Styczeń
A199: 43111 | B199: III | C199: 26144994 | D199: 945 | F199: =IF(A199="","",D199+E199) -> 945 | G199: 11 | H199: Styczeń | I199: 2018 | J199: =H199 -> Styczeń
A200: 43111 | B200: III | C200: 498 | D200: 1386 | E200: 11 | F200: 1397 | G200: 11 | H200: Styczeń | I200: 2018 | J200: Styczeń
... 1294 more rows

Sheet Wskaźniki
A1: Dzień | B1: Nr tygodnia | C1: Miesiąc | D1: Rok | E1: Data | F1: Zmiana | G1: Planowana produkcja | H1: Zrealizowana produkcja | I1: Suma godzin na zmianę [h] | J1: Suma godzin normatywnych (zakładanych) | K1: Obciążenie [%] | L1: Faktyczny czas realizacji [h] | M1: Faktyczne obciążenie | N1: Wsp. pakowania przy 7,5h [szt/min] | O1: Wsp. pakowania przy 7,5h [min/szt] | P1: Wsp. pakowania przy 7,5h [s/szt] | Q1: Wsp. pakowania przy 8h [szt/min] | R1: Wsp. pakowania przy 8h [min/szt] | S1: Wsp. pakowania przy 8h [s/szt] | T1: Ilość sztuk | U1: Suma czasu z przerwami (s) | V1: Cel miesięczny (s/szt.) | W1: Czy numer tygodnia jest parzysty | X1: A | Y1: B | Z1: C | AA1: Zmiana:
A2: =IF(E2="","",TEXT(WEEKDAY(IF(E2=0,"",E2),1),"dddd")) -> środa | B2: =IF(E2="","",WEEKNUM(IF(E2=0,"",E2),1)) -> 1 | C2: =IF(E2="","",TEXT(IF(E2=0,"",MONTH(E2))*30,"mmmm")) -> styczeń | D2: =YEAR(Tabela2[[#This Row],[Data]]) -> 2018 | E2: 2018-01-03 | F2: I | G2: 4942 | H2: 3749 | I2: 30 | J2: 36.08491396 | K2: 1.202830465 | L2: 34.7573629 | M2: 1.158578763 | N2: 2.681666667 | O2: 0.3729024239 | P2: 22 | Q2: 2.5140625 | R2: 0.3977625855 | S2: 24 | T2: =IF(E2="","",I2*60*N2) -> 4827 | U2: =IF(E2="","",(I2+I2/7.5*0.5)*3600) -> 115200 | V2: =IF(E2="","",40/1.2) -> 33.33333333 | W2: =IF(B2="","",ISEVEN(B2)) -> FALSE | X2: =IF(B2="","",IF(W2=TRUE,IF(F2="I","TAK","NIE"),IF(F2="I","NIE",IF(F2="III","NIE","TAK")))) -> NIE | Y2: =IF(B2="","",IF(AND(X2="NIE",Z2="NIE"),"TAK","NIE")) -> TAK | Z2: =IF(B2="","",IF(F2="III","TAK","NIE")) -> NIE | AA2: =IF(E2="","",IF(X2="TAK","Zmiana A",IF(Y2="TAK","Zmiana B","Zmiana C"))) -> Zmiana B
A3: środa | B3: 1 | C3: styczeń | D3: =YEAR(Tabela2[[#This Row],[Data]]) -> 2018 | E3: 2018-01-03 | F3: II | G3: 17984 | H3: 17715 | I3: 22.5 | J3: 27.94017615 | K3: 1.241785607 | L3: 29.8147955 | M3: 1.325102022 | N3: 1.043703704 | O3: 0.9581263307 | P3: 57 | Q3: 0.9784722222 | R3: 1.022001419 | S3: 61 | T3: =IF(E3="","",I3*60*N3) -> 1409 | U3: =IF(E3="","",(I3+I3/7.5*0.5)*3600) -> 86400 | V3: =IF(E3="","",40/1.2) -> 33.33333333 | W3: =IF(B3="","",ISEVEN(B3)) -> FALSE | X3: =IF(B3="","",IF(W3=TRUE,IF(F3="I","TAK","NIE"),IF(F3="I","NIE",IF(F3="III","NIE","TAK")))) -> TAK | Y3: =IF(B3="","",IF(AND(X3="NIE",Z3="NIE"),"TAK","NIE")) -> NIE | Z3: =IF(B3="","",IF(F3="III","TAK","NIE")) -> NIE | AA3: =IF(E3="","",IF(X3="TAK","Zmiana A",IF(Y3="TAK","Zmiana B","Zmiana C"))) -> Zmiana A
A4: środa | B4: 1 | C4: styczeń | D4: =YEAR(Tabela2[[#This Row],[Data]]) -> 2018 | E4: 2018-01-03 | F4: III | G4: 5354 | H4: 4633 | I4: 22.5 | J4: 31.71624738 | K4: 1.409610995 | L4: 33.26628985 | M4: 1.478501771 | N4: 2.351851852 | O4: 0.4251968504 | P4: 26 | Q4: 2.204861111 | R4: 0.4535433071 | S4: 27 | T4: =IF(E4="","",I4*60*N4) -> 3175 | U4: =IF(E4="","",(I4+I4/7.5*0.5)*3600) -> 86400 | V4: =IF(E4="","",40/1.2) -> 33.33333333 | W4: =IF(B4="","",ISEVEN(B4)) -> FALSE | X4: =IF(B4="","",IF(W4=TRUE,IF(F4="I","TAK","NIE"),IF(F4="I","NIE",IF(F4="III","NIE","TAK")))) -> NIE | Y4: =IF(B4="","",IF(AND(X4="NIE",Z4="NIE"),"TAK","NIE")) -> NIE | Z4: =IF(B4="","",IF(F4="III","TAK","NIE")) -> TAK | AA4: =IF(E4="","",IF(X4="TAK","Zmiana A",IF(Y4="TAK","Zmiana B","Zmiana C"))) -> Zmiana C
A5: piątek | B5: 1 | C5: styczeń | D5: =YEAR(Tabela2[[#This Row],[Data]]) -> 2018 | E5: 2018-01-05 | F5: I | G5: 2733 | H5: 1707 | I5: 37.5 | J5: 36.37356602 | K5: 0.9699617605 | L5: 38.07248905 | M5: 1.015266375 | N5: 1.92 | O5: 0.5208333333 | P5: 31 | Q5: 1.8 | R5: 0.5555555556 | S5: 33 | T5: =IF(E5="","",I5*60*N5) -> 4320 | U5: =IF(E5="","",(I5+I5/7.5*0.5)*3600) -> 144000 | V5: =IF(E5="","",40/1.2) -> 33.33333333 | W5: =IF(B5="","",ISEVEN(B5)) -> FALSE | X5: =IF(B5="","",IF(W5=TRUE,IF(F5="I","TAK","NIE"),IF(F5="I","NIE",IF(F5="III","NIE","TAK")))) -> NIE | Y5: =IF(B5="","",IF(AND(X5="NIE",Z5="NIE"),"TAK","NIE")) -> TAK | Z5: =IF(B5="","",IF(F5="III","TAK","NIE")) -> NIE | AA5: =IF(E5="","",IF(X5="TAK","Zmiana A",IF(Y5="TAK","Zmiana B","Zmiana C"))) -> Zmiana B
A6: piątek | B6: 1 | C6: styczeń | D6: =YEAR(Tabela2[[#This Row],[Data]]) -> 2018 | E6: 2018-01-05 | F6: II | G6: 6274 | H6: 4320 | I6: 22.5 | J6: 16.71028295 | K6: 0.7426792424 | L6: 15.85019966 | M6: 0.7044533184 | N6: 1.264444444 | O6: 0.7908611599 | P6: 47 | Q6: 1.185416667 | R6: 0.8435852373 | S6: 51 | T6: =IF(E6="","",I6*60*N6) -> 1707 | U6: =IF(E6="","",(I6+I6/7.5*0.5)*3600) -> 86400 | V6: =IF(E6="","",40/1.2) -> 33.33333333 | W6: =IF(B6="","",ISEVEN(B6)) -> FALSE | X6: =IF(B6="","",IF(W6=TRUE,IF(F6="I","TAK","NIE"),IF(F6="I","NIE",IF(F6="III","NIE","TAK")))) -> TAK | Y6: =IF(B6="","",IF(AND(X6="NIE",Z6="NIE"),"TAK","NIE")) -> NIE | Z6: =IF(B6="","",IF(F6="III","TAK","NIE")) -> NIE | AA6: =IF(E6="","",IF(X6="TAK","Zmiana A",IF(Y6="TAK","Zmiana B","Zmiana C"))) -> Zmiana A
A7: piątek | B7: 1 | C7: styczeń | D7: =YEAR(Tabela2[[#This Row],[Data]]) -> 2018 | E7: 2018-01-05 | F7: III | G7: 5060 | H7: 3800 | I7: 22.5 | J7: 27.96248196 | K7: 1.242776976 | L7: 29.01139096 | M7: 1.289395154 | N7: 2.814814815 | O7: 0.3552631579 | P7: 21 | Q7: 2.638888889 | R7: 0.3789473684 | S7: 23 | T7: =IF(E7="","",I7*60*N7) -> 3800 | U7: =IF(E7="","",(I7+I7/7.5*0.5)*3600) -> 86400 | V7: =IF(E7="","",40/1.2) -> 33.33333333 | W7: =IF(B7="","",ISEVEN(B7)) -> FALSE | X7: =IF(B7="","",IF(W7=TRUE,IF(F7="I","TAK","NIE"),IF(F7="I","NIE",IF(F7="III","NIE","TAK")))) -> NIE | Y7: =IF(B7="","",IF(AND(X7="NIE",Z7="NIE"),"TAK","NIE")) -> NIE | Z7: =IF(B7="","",IF(F7="III","TAK","NIE")) -> TAK | AA7: =IF(E7="","",IF(X7="TAK","Zmiana A",IF(Y7="TAK","Zmiana B","Zmiana C"))) -> Zmiana C
A8: poniedziałek | B8: 2 | C8: styczeń | D8: =YEAR(Tabela2[[#This Row],[Data]]) -> 2018 | E8: 2018-01-08 | F8: I | G8: 6302 | H8: 4103 | I8: 30 | J8: 28.48820244 | K8: 0.949606748 | L8: 30.36771519 | M8: 1.012257173 | N8: 2.279444444 | O8: 0.4387033878 | P8: 26 | Q8: 2.136979167 | R8: 0.4679502803 | S8: 28 | T8: =IF(E8="","",I8*60*N8) -> 4103 | U8: =IF(E8="","",(I8+I8/7.5*0.5)*3600) -> 115200 | V8: =IF(E8="","",40/1.2) -> 33.33333333 | W8: =IF(B8="","",ISEVEN(B8)) -> TRUE | X8: =IF(B8="","",IF(W8=TRUE,IF(F8="I","TAK","NIE"),IF(F8="I","NIE",IF(F8="III","NIE","TAK")))) -> TAK | Y8: =IF(B8="","",IF(AND(X8="NIE",Z8="NIE"),"TAK","NIE")) -> NIE | Z8: =IF(B8="","",IF(F8="III","TAK","NIE")) -> NIE | AA8: =IF(E8="","",IF(X8="TAK","Zmiana A",IF(Y8="TAK","Zmiana B","Zmiana C"))) -> Zmiana A
A9: poniedziałek | B9: 2 | C9: styczeń | D9: =YEAR(Tabela2[[#This Row],[Data]]) -> 2018 | E9: 2018-01-08 | F9: II | G9: 7028 | H9: 5062 | I9: 37.5 | J9: 34.69979771 | K9: 0.925327939 | L9: 36.3829731 | M9: 0.970212616 | N9: 2.249777778 | O9: 0.4444883445 | P9: 27 | Q9: 2.109166667 | R9: 0.4741209008 | S9: 28 | T9: =IF(E9="","",I9*60*N9) -> 5062 | U9: =IF(E9="","",(I9+I9/7.5*0.5)*3600) -> 144000 | V9: =IF(E9="","",40/1.2) -> 33.33333333 | W9: =IF(B9="","",ISEVEN(B9)) -> TRUE | X9: =IF(B9="","",IF(W9=TRUE,IF(F9="I","TAK","NIE"),IF(F9="I","NIE",IF(F9="III","NIE","TAK")))) -> NIE | Y9: =IF(B9="","",IF(AND(X9="NIE",Z9="NIE"),"TAK","NIE")) -> TAK | Z9: =IF(B9="","",IF(F9="III","TAK","NIE")) -> NIE | AA9: =IF(E9="","",IF(X9="TAK","Zmiana A",IF(Y9="TAK","Zmiana B","Zmiana C"))) -> Zmiana B
A10: poniedziałek | B10: 2 | C10: styczeń | D10: =YEAR(Tabela2[[#This Row],[Data]]) -> 2018 | E10: 2018-01-08 | F10: III | G10: 2933 | H10: 2583 | I10: 15 | J10: 17.5970696 | K10: 1.173137973 | L10: 17.29375815 | M10: 1.15291721 | N10: 2.87 | O10: 0.3484320557 | P10: 21 | Q10: 2.690625 | R10: 0.3716608595 | S10: 22 | T10: =IF(E10="","",I10*60*N10) -> 2583 | U10: =IF(E10="","",(I10+I10/7.5*0.5)*3600) -> 57600 | V10: =IF(E10="","",40/1.2) -> 33.33333333 | W10: =IF(B10="","",ISEVEN(B10)) -> TRUE | X10: =IF(B10="","",IF(W10=TRUE,IF(F10="I","TAK","NIE"),IF(F10="I","NIE",IF(F10="III","NIE","TAK")))) -> NIE | Y10: =IF(B10="","",IF(AND(X10="NIE",Z10="NIE"),"TAK","NIE")) -> NIE | Z10: =IF(B10="","",IF(F10="III","TAK","NIE")) -> TAK | AA10: =IF(E10="","",IF(X10="TAK","Zmiana A",IF(Y10="TAK","Zmiana B","Zmiana C"))) -> Zmiana C
A11: wtorek | B11: 2 | C11: styczeń | D11: =YEAR(Tabela2[[#This Row],[Data]]) -> 2018 | E11: 2018-01-09 | F11: I | G11: 6120 | H11: 4764 | I11: 45 | J11: 44.13998303 | K11: 0.9808885118 | L11: 42.79884811 | M11: 0.9510855136 | N11: 1.764444444 | O11: 0.5667506297 | P11: 34 | Q11: 1.654166667 | R11: 0.604534005 | S11: 36 | T11: =IF(E11="","",I11*60*N11) -> 4764 | U11: =IF(E11="","",(I11+I11/7.5*0.5)*3600) -> 172800 | V11: =IF(E11="","",40/1.2) -> 33.33333333 | W11: =IF(B11="","",ISEVEN(B11)) -> TRUE | X11: =IF(B11="","",IF(W11=TRUE,IF(F11="I","TAK","NIE"),IF(F11="I","NIE",IF(F11="III","NIE","TAK")))) -> TAK | Y11: =IF(B11="","",IF(AND(X11="NIE",Z11="NIE"),"TAK","NIE")) -> NIE | Z11: =IF(B11="","",IF(F11="III","TAK","NIE")) -> NIE | AA11: =IF(E11="","",IF(X11="TAK","Zmiana A",IF(Y11="TAK","Zmiana B","Zmiana C"))) -> Zmiana A
A12: wtorek | B12: 2 | C12: styczeń | D12: =YEAR(Tabela2[[#This Row],[Data]]) -> 2018 | E12: 2018-01-09 | F12: II | G12: 4242 | H12: 2957 | I12: 22.5 | J12: 30.65540675 | K12: 1.362462522 | L12: 29.64441905 | M12: 1.317529736 | N12: 2.19037037 | O12: 0.4565437944 | P12: 27 | Q12: 2.053472222 | R12: 0.4869800473 | S12: 29 | T12: =IF(E12="","",I12*60*N12) -> 2957 | U12: =IF(E12="","",(I12+I12/7.5*0.5)*3600) -> 86400 | V12: =IF(E12="","",40/1.2) -> 33.33333333 | W12: =IF(B12="","",ISEVEN(B12)) -> TRUE | X12: =IF(B12="","",IF(W12=TRUE,IF(F12="I","TAK","NIE"),IF(F12="I","NIE",IF(F12="III","NIE","TAK")))) -> NIE | Y12: =IF(B12="","",IF(AND(X12="NIE",Z12="NIE"),"TAK","NIE")) -> TAK | Z12: =IF(B12="","",IF(F12="III","TAK","NIE")) -> NIE | AA12: =IF(E12="","",IF(X12="TAK","Zmiana A",IF(Y12="TAK","Zmiana B","Zmiana C"))) -> Zmiana B
A13: wtorek | B13: 2 | C13: styczeń | D13: =YEAR(Tabela2[[#This Row],[Data]]) -> 2018 | E13: 2018-01-09 | F13: III | G13: 4230 | H13: 2861 | I13: 15 | J13: 16.21658468 | K13: 1.081105645 | L13: 15.2177941 | M13: 1.014519607 | N13: 3.178888889 | O13: 0.3145753233 | P13: 19 | Q13: 2.980208333 | R13: 0.3355470115 | S13: 20 | T13: =IF(E13="","",I13*60*N13) -> 2861 | U13: =IF(E13="","",(I13+I13/7.5*0.5)*3600) -> 57600 | V13: =IF(E13="","",40/1.2) -> 33.33333333 | W13: =IF(B13="","",ISEVEN(B13)) -> TRUE | X13: =IF(B13="","",IF(W13=TRUE,IF(F13="I","TAK","NIE"),IF(F13="I","NIE",IF(F13="III","NIE","TAK")))) -> NIE | Y13: =IF(B13="","",IF(AND(X13="NIE",Z13="NIE"),"TAK","NIE")) -> NIE | Z13: =IF(B13="","",IF(F13="III","TAK","NIE")) -> TAK | AA13: =IF(E13="","",IF(X13="TAK","Zmiana A",IF(Y13="TAK","Zmiana B","Zmiana C"))) -> Zmiana C
A14: środa | B14: 2 | C14: styczeń | D14: =YEAR(Tabela2[[#This Row],[Data]]) -> 2018 | E14: 2018-01-10 | F14: I | G14: 5619 | H14: 4024 | I14: 22.5 | J14: 25.62014144 | K14: 1.138672953 | L14: 26.49818879 | M14: 1.177697279 | N14: 2.980740741 | O14: 0.3354870775 | P14: 20 | Q14: 2.794444444 | R14: 0.3578528827 | S14: 21 | T14: =IF(E14="","",I14*60*N14) -> 4024 | U14: =IF(E14="","",(I14+I14/7.5*0.5)*3600) -> 86400 | V14: =IF(E14="","",40/1.2) -> 33.33333333 | W14: =IF(B14="","",ISEVEN(B14)) -> TRUE | X14: =IF(B14="","",IF(W14=TRUE,IF(F14="I","TAK","NIE"),IF(F14="I","NIE",IF(F14="III","NIE","TAK")))) -> TAK | Y14: =IF(B14="","",IF(AND(X14="NIE",Z14="NIE"),"TAK","NIE")) -> NIE | Z14: =IF(B14="","",IF(F14="III","TAK","NIE")) -> NIE | AA14: =IF(E14="","",IF(X14="TAK","Zmiana A",IF(Y14="TAK","Zmiana B","Zmiana C"))) -> Zmiana A
A15: środa | B15: 2 | C15: styczeń | D15: =YEAR(Tabela2[[#This Row],[Data]]) -> 2018 | E15: 2018-01-10 | F15: II | G15: 4770 | H15: 3147 | I15: 37.5 | J15: 28.31257 | K15: 0.7550018667 | L15: 28.40017488 | M15: 0.7573379969 | N15: 1.398666667 | O15: 0.7149666349 | P15: 43 | Q15: 1.31125 | R15: 0.7626310772 | S15: 46 | T15: =IF(E15="","",I15*60*N15) -> 3147 | U15: =IF(E15="","",(I15+I15/7.5*0.5)*3600) -> 144000 | V15: =IF(E15="","",40/1.2) -> 33.33333333 | W15: =IF(B15="","",ISEVEN(B15)) -> TRUE | X15: =IF(B15="","",IF(W15=TRUE,IF(F15="I","TAK","NIE"),IF(F15="I","NIE",IF(F15="III","NIE","TAK")))) -> NIE | Y15: =IF(B15="","",IF(AND(X15="NIE",Z15="NIE"),"TAK","NIE")) -> TAK | Z15: =IF(B15="","",IF(F15="III","TAK","NIE")) -> NIE | AA15: =IF(E15="","",IF(X15="TAK","Zmiana A",IF(Y15="TAK","Zmiana B","Zmiana C"))) -> Zmiana B
A16: środa | B16: 2 | C16: styczeń | D16: =YEAR(Tabela2[[#This Row],[Data]]) -> 2018 | E16: 2018-01-10 | F16: III | G16: 2880 | H16: 2797 | I16: 15 | J16: 16.72211388 | K16: 1.114807592 | L16: 17.45519946 | M16: 1.163679964 | N16: 3.107777778 | O16: 0.3217733286 | P16: 19 | Q16: 2.913541667 | R16: 0.3432248838 | S16: 21 | T16: =IF(E16="","",I16*60*N16) -> 2797 | U16: =IF(E16="","",(I16+I16/7.5*0.5)*3600) -> 57600 | V16: =IF(E16="","",40/1.2) -> 33.33333333 | W16: =IF(B16="","",ISEVEN(B16)) -> TRUE | X16: =IF(B16="","",IF(W16=TRUE,IF(F16="I","TAK","NIE"),IF(F16="I","NIE",IF(F16="III","NIE","TAK")))) -> NIE | Y16: =IF(B16="","",IF(AND(X16="NIE",Z16="NIE"),"TAK","NIE")) -> NIE | Z16: =IF(B16="","",IF(F16="III","TAK","NIE")) -> TAK | AA16: =IF(E16="","",IF(X16="TAK","Zmiana A",IF(Y16="TAK","Zmiana B","Zmiana C"))) -> Zmiana C
A17: czwartek | B17: 2 | C17: styczeń | D17: =YEAR(Tabela2[[#This Row],[Data]]) -> 2018 | E17: 2018-01-11 | F17: I | G17: 5796 | H17: 4487 | I17: 37.5 | J17: 35.80021442 | K17: 0.9546723845 | L17: 34.43995167 | M17: 0.9183987113 | N17: 1.994222222 | O17: 0.5014486294 | P17: 30 | Q17: 1.869583333 | R17: 0.534878538 | S17: 32 | T17: =IF(E17="","",I17*60*N17) -> 4487 | U17: =IF(E17="","",(I17+I17/7.5*0.5)*3600) -> 144000 | V17: =IF(E17="","",40/1.2) -> 33.33333333 | W17: =IF(B17="","",ISEVEN(B17)) -> TRUE | X17: =IF(B17="","",IF(W17=TRUE,IF(F17="I","TAK","NIE"),IF(F17="I","NIE",IF(F17="III","NIE","TAK")))) -> TAK | Y17: =IF(B17="","",IF(AND(X17="NIE",Z17="NIE"),"TAK","NIE")) -> NIE | Z17: =IF(B17="","",IF(F17="III","TAK","NIE")) -> NIE | AA17: =IF(E17="","",IF(X17="TAK","Zmiana A",IF(Y17="TAK","Zmiana B","Zmiana C"))) -> Zmiana A
A18: czwartek | B18: 2 | C18: styczeń | D18: =YEAR(Tabela2[[#This Row],[Data]]) -> 2018 | E18: 2018-01-11 | F18: II | G18: 4868 | H18: 3516 | I18: 30 | J18: 31.63698848 | K18: 1.054566283 | L18: 33.5165423 | M18: 1.117218077 | N18: 1.953333333 | O18: 0.5119453925 | P18: 31 | Q18: 1.83125 | R18: 0.5460750853 | S18: 33 | T18: =IF(E18="","",I18*60*N18) -> 3516 | U18: =IF(E18="","",(I18+I18/7.5*0.5)*3600) -> 115200 | V18: =IF(E18="","",40/1.2) -> 33.33333333 | W18: =IF(B18="","",ISEVEN(B18)) -> TRUE | X18: =IF(B18="","",IF(W18=TRUE,IF(F18="I","TAK","NIE"),IF(F18="I","NIE",IF(F18="III","NIE","TAK")))) -> NIE | Y18: =IF(B18="","",IF(AND(X18="NIE",Z18="NIE"),"TAK","NIE")) -> TAK | Z18: =IF(B18="","",IF(F18="III","TAK","NIE")) -> NIE | AA18: =IF(E18="","",IF(X18="TAK","Zmiana A",IF(Y18="TAK","Zmiana B","Zmiana C"))) -> Zmiana B
A19: czwartek | B19: 2 | C19: styczeń | D19: =YEAR(Tabela2[[#This Row],[Data]]) -> 2018 | E19: 2018-01-11 | F19: III | G19: 3190 | H19: 2851 | I19: 15 | J19: 16.67857143 | K19: 1.111904762 | L19: 16.19895942 | M19: 1.079930628 | N19: 3.167777778 | O19: 0.3156787092 | P19: 19 | Q19: 2.969791667 | R19: 0.3367239565 | S19: 20 | T19: =IF(E19="","",I19*60*N19) -> 2851 | U19: =IF(E19="","",(I19+I19/7.5*0.5)*3600) -> 57600 | V19: =IF(E19="","",40/1.2) -> 33.33333333 | W19: =IF(B19="","",ISEVEN(B19)) -> TRUE | X19: =IF(B19="","",IF(W19=TRUE,IF(F19="I","TAK","NIE"),IF(F19="I","NIE",IF(F19="III","NIE","TAK")))) -> NIE | Y19: =IF(B19="","",IF(AND(X19="NIE",Z19="NIE"),"TAK","NIE")) -> NIE | Z19: =IF(B19="","",IF(F19="III","TAK","NIE")) -> TAK | AA19: =IF(E19="","",IF(X19="TAK","Zmiana A",IF(Y19="TAK","Zmiana B","Zmiana C"))) -> Zmiana C
A20: piątek | B20: 2 | C20: styczeń | D20: =YEAR(Tabela2[[#This Row],[Data]]) -> 2018 | E20: 2018-01-12 | F20: II | G20: 7500 | H20: 5760 | I20: 30 | J20: 33.41092502 | K20: 1.113697501 | L20: 33.41306319 | M20: 1.113768773 | N20: 2.53 | O20: 0.395256917 | P20: 24 | Q20: 2.371875 | R20: 0.4216073781 | S20: 25 | T20: =IF(E20="","",I20*60*N20) -> 4554 | U20: =IF(E20="","",(I20+I20/7.5*0.5)*3600) -> 115200 | V20: =IF(E20="","",40/1.2) -> 33.33333333 | W20: =IF(B20="","",ISEVEN(B20)) -> TRUE | X20: =IF(B20="","",IF(W20=TRUE,IF(F20="I","TAK","NIE"),IF(F20="I","NIE",IF(F20="III","NIE","TAK")))) -> NIE | Y20: =IF(B20="","",IF(AND(X20="NIE",Z20="NIE"),"TAK","NIE")) -> TAK | Z20: =IF(B20="","",IF(F20="III","TAK","NIE")) -> NIE | AA20: =IF(E20="","",IF(X20="TAK","Zmiana A",IF(Y20="TAK","Zmiana B","Zmiana C"))) -> Zmiana B
A21: piątek | B21: 2 | C21: styczeń | D21: =YEAR(Tabela2[[#This Row],[Data]]) -> 2018 | E21: 2018-01-12 | F21: II | G21: 7500 | H21: 5760 | I21: 22.5 | J21: 16.97145375 | K21: 0.7542868334 | L21: 15.29516317 | M21: 0.6797850297 | N21: 0.8933333333 | O21: 1.119402985 | P21: 67 | Q21: 0.8375 | R21: 1.194029851 | S21: 72 | T21: =IF(E21="","",I21*60*N21) -> 1206 | U21: =IF(E21="","",(I21+I21/7.5*0.5)*3600) -> 86400 | V21: =IF(E21="","",40/1.2) -> 33.33333333 | W21: =IF(B21="","",ISEVEN(B21)) -> TRUE | X21: =IF(B21="","",IF(W21=TRUE,IF(F21="I","TAK","NIE"),IF(F21="I","NIE",IF(F21="III","NIE","TAK")))) -> NIE | Y21: =IF(B21="","",IF(AND(X21="NIE",Z21="NIE"),"TAK","NIE")) -> TAK | Z21: =IF(B21="","",IF(F21="III","TAK","NIE")) -> NIE | AA21: =IF(E21="","",IF(X21="TAK","Zmiana A",IF(Y21="TAK","Zmiana B","Zmiana C"))) -> Zmiana B
A22: piątek | B22: 2 | C22: styczeń | D22: =YEAR(Tabela2[[#This Row],[Data]]) -> 2018 | E22: 2018-01-12 | F22: III | G22: 2394 | H22: 2369 | I22: 7.5 | J22: 9.400793651 | K22: 1.253439153 | L22: 9.842396424 | M22: 1.312319523 | N22: 5.264444444 | O22: 0.1899535669 | P22: 11 | Q22: 4.935416667 | R22: 0.202617138 | S22: 12 | T22: =IF(E22="","",I22*60*N22) -> 2369 | U22: =IF(E22="","",(I22+I22/7.5*0.5)*3600) -> 28800 | V22: =IF(E22="","",40/1.2) -> 33.33333333 | W22: =IF(B22="","",ISEVEN(B22)) -> TRUE | X22: =IF(B22="","",IF(W22=TRUE,IF(F22="I","TAK","NIE"),IF(F22="I","NIE",IF(F22="III","NIE","TAK")))) -> NIE | Y22: =IF(B22="","",IF(AND(X22="NIE",Z22="NIE"),"TAK","NIE")) -> NIE | Z22: =IF(B22="","",IF(F22="III","TAK","NIE")) -> TAK | AA22: =IF(E22="","",IF(X22="TAK","Zmiana A",IF(Y22="TAK","Zmiana B","Zmiana C"))) -> Zmiana C
A23: poniedziałek | B23: 3 | C23: styczeń | D23: =YEAR(Tabela2[[#This Row],[Data]]) -> 2018 | E23: 2018-01-15 | F23: I | G23: 2038 | H23: 1591 | I23: 45 | J23: 46.84502873 | K23: 1.041000638 | L23: 48.39322289 | M23: 1.075404953 | N23: 2.071111111 | O23: 0.482832618 | P23: 29 | Q23: 1.941666667 | R23: 0.5150214592 | S23: 31 | T23: =IF(E23="","",I23*60*N23) -> 5592 | U23: =IF(E23="","",(I23+I23/7.5*0.5)*3600) -> 172800 | V23: =IF(E23="","",40/1.2) -> 33.33333333 | W23: =IF(B23="","",ISEVEN(B23)) -> FALSE | X23: =IF(B23="","",IF(W23=TRUE,IF(F23="I","TAK","NIE"),IF(F23="I","NIE",IF(F23="III","NIE","TAK")))) -> NIE | Y23: =IF(B23="","",IF(AND(X23="NIE",Z23="NIE"),"TAK","NIE")) -> TAK | Z23: =IF(B23="","",IF(F23="III","TAK","NIE")) -> NIE | AA23: =IF(E23="","",IF(X23="TAK","Zmiana A",IF(Y23="TAK","Zmiana B","Zmiana C"))) -> Zmiana B
A24: poniedziałek | B24: 3 | C24: styczeń | D24: =YEAR(Tabela2[[#This Row],[Data]]) -> 2018 | E24: 2018-01-15 | F24: II | G24: 7597 | H24: 5592 | I24: 18.5 | J24: 13.66995039 | K24: 0.7389162372 | L24: 12.64006928 | M24: 0.6832469881 | N24: 1.433333333 | O24: 0.6976744186 | P24: 42 | Q24: 1.325833333 | R24: 0.7542426147 | S24: 45 | T24: =IF(E24="","",I24*60*N24) -> 1591 | U24: =IF(E24="","",(I24+I24/7.5*0.5)*3600) -> 71040 | V24: =IF(E24="","",40/1.2) -> 33.33333333 | W24: =IF(B24="","",ISEVEN(B24)) -> FALSE | X24: =IF(B24="","",IF(W24=TRUE,IF(F24="I","TAK","NIE"),IF(F24="I","NIE",IF(F24="III","NIE","TAK")))) -> TAK | Y24: =IF(B24="","",IF(AND(X24="NIE",Z24="NIE"),"TAK","NIE")) -> NIE | Z24: =IF(B24="","",IF(F24="III","TAK","NIE")) -> NIE | AA24: =IF(E24="","",IF(X24="TAK","Zmiana A",IF(Y24="TAK","Zmiana B","Zmiana C"))) -> Zmiana A
A25: =IF(E25="","",TEXT(WEEKDAY(IF(E25=0,"",E25),1),"dddd")) -> wtorek | B25: =IF(E25="","",WEEKNUM(IF(E25=0,"",E25),1)) -> 3 | C25: =IF(E25="","",TEXT(IF(E25=0,"",MONTH(E25))*30,"mmmm")) -> styczeń | D25: =YEAR(Tabela2[[#This Row],[Data]]) -> 2018 | E25: 2018-01-16 | F25: III | G25: 2589 | H25: 2377 | I25: 7.5 | J25: 9.432539683 | K25: 1.257671958 | L25: 7.888284949 | M25: 1.051771327 | N25: 5.282222222 | O25: 0.1893142617 | P25: 11 | Q25: 4.952083333 | R25: 0.2019352125 | S25: 12 | T25: =IF(E25="","",I25*60*N25) -> 2377 | U25: =IF(E25="","",(I25+I25/7.5*0.5)*3600) -> 28800 | V25: =IF(E25="","",40/1.2) -> 33.33333333 | W25: =IF(B25="","",ISEVEN(B25)) -> FALSE | X25: =IF(B25="","",IF(W25=TRUE,IF(F25="I","TAK","NIE"),IF(F25="I","NIE",IF(F25="III","NIE","TAK")))) -> NIE | Y25: =IF(B25="","",IF(AND(X25="NIE",Z25="NIE"),"TAK","NIE")) -> NIE | Z25: =IF(B25="","",IF(F25="III","TAK","NIE")) -> TAK | AA25: =IF(E25="","",IF(X25="TAK","Zmiana A",IF(Y25="TAK","Zmiana B","Zmiana C"))) -> Zmiana C
A26: =IF(E26="","",TEXT(WEEKDAY(IF(E26=0,"",E26),1),"dddd")) -> środa | B26: =IF(E26="","",WEEKNUM(IF(E26=0,"",E26),1)) -> 3 | C26: =IF(E26="","",TEXT(IF(E26=0,"",MONTH(E26))*30,"mmmm")) -> styczeń | D26: =YEAR(Tabela2[[#This Row],[Data]]) -> 2018 | E26: 2018-01-17 | F26: III | G26: 2690 | H26: 2367 | I26: 7.5 | J26: 9.392857143 | K26: 1.252380952 | L26: 9.217509898 | M26: 1.22900132 | N26: 5.26 | O26: 0.1901140684 | P26: 11 | Q26: 4.93125 | R26: 0.2027883397 | S26: 12 | T26: =IF(E26="","",I26*60*N26) -> 2367 | U26: =IF(E26="","",(I26+I26/7.5*0.5)*3600) -> 28800 | V26: =IF(E26="","",40/1.2) -> 33.33333333 | W26: =IF(B26="","",ISEVEN(B26)) -> FALSE | X26: =IF(B26="","",IF(W26=TRUE,IF(F26="I","TAK","NIE"),IF(F26="I","NIE",IF(F26="III","NIE","TAK")))) -> NIE | Y26: =IF(B26="","",IF(AND(X26="NIE",Z26="NIE"),"TAK","NIE")) -> NIE | Z26: =IF(B26="","",IF(F26="III","TAK","NIE")) -> TAK | AA26: =IF(E26="","",IF(X26="TAK","Zmiana A",IF(Y26="TAK","Zmiana B","Zmiana C"))) -> Zmiana C
A27: czwartek | B27: 3 | C27: styczeń | D27: =YEAR(Tabela2[[#This Row],[Data]]) -> 2018 | E27: 2018-01-18 | F27: I | G27: 2625 | H27: 2047 | I27: 45 | J27: 49.37271928 | K27: 1.097171539 | L27: 48.61277513 | M27: 1.080283892 | N27: 2.062222222 | O27: 0.4849137931 | P27: 29 | Q27: 1.933333333 | R27: 0.5172413793 | S27: 31 | T27: =IF(E27="","",I27*60*N27) -> 5568 | U27: =IF(E27="","",(I27+I27/7.5*0.5)*3600) -> 172800 | V27: =IF(E27="","",40/1.2) -> 33.33333333 | W27: =IF(B27="","",ISEVEN(B27)) -> FALSE | X27: =IF(B27="","",IF(W27=TRUE,IF(F27="I","TAK","NIE"),IF(F27="I","NIE",IF(F27="III","NIE","TAK")))) -> NIE | Y27: =IF(B27="","",IF(AND(X27="NIE",Z27="NIE"),"TAK","NIE")) -> TAK | Z27: =IF(B27="","",IF(F27="III","TAK","NIE")) -> NIE | AA27: =IF(E27="","",IF(X27="TAK","Zmiana A",IF(Y27="TAK","Zmiana B","Zmiana C"))) -> Zmiana B
A28: czwartek | B28: 3 | C28: styczeń | D28: =YEAR(Tabela2[[#This Row],[Data]]) -> 2018 | E28: 2018-01-18 | F28: II | G28: 7034 | H28: 5568 | I28: 22.5 | J28: 22.79681046 | K28: 1.013191576 | L28: 22.90499791 | M28: 1.017999907 | N28: 1.516296296 | O28: 0.6595017098 | P28: 40 | Q28: 1.421527778 | R28: 0.7034684905 | S28: 42 | T28: =IF(E28="","",I28*60*N28) -> 2047 | U28: =IF(E28="","",(I28+I28/7.5*0.5)*3600) -> 86400 | V28: =IF(E28="","",40/1.2) -> 33.33333333 | W28: =IF(B28="","",ISEVEN(B28)) -> FALSE | X28: =IF(B28="","",IF(W28=TRUE,IF(F28="I","TAK","NIE"),IF(F28="I","NIE",IF(F28="III","NIE","TAK")))) -> TAK | Y28: =IF(B28="","",IF(AND(X28="NIE",Z28="NIE"),"TAK","NIE")) -> NIE | Z28: =IF(B28="","",IF(F28="III","TAK","NIE")) -> NIE | AA28: =IF(E28="","",IF(X28="TAK","Zmiana A",IF(Y28="TAK","Zmiana B","Zmiana C"))) -> Zmiana A
A29: czwartek | B29: 3 | C29: styczeń | D29: =YEAR(Tabela2[[#This Row],[Data]]) -> 2018 | E29: 2018-01-18 | F29: III | G29: 2267 | H29: 2355 | I29: 7.5 | J29: 9.345238095 | K29: 1.246031746 | L29: 8.658798886 | M29: 1.154506518 | N29: 5.233333333 | O29: 0.1910828025 | P29: 11 | Q29: 4.90625 | R29: 0.2038216561 | S29: 12 | T29: =IF(E29="","",I29*60*N29) -> 2355 | U29: =IF(E29="","",(I29+I29/7.5*0.5)*3600) -> 28800 | V29: =IF(E29="","",40/1.2) -> 33.33333333 | W29: =IF(B29="","",ISEVEN(B29)) -> FALSE | X29: =IF(B29="","",IF(W29=TRUE,IF(F29="I","TAK","NIE"),IF(F29="I","NIE",IF(F29="III","NIE","TAK")))) -> NIE | Y29: =IF(B29="","",IF(AND(X29="NIE",Z29="NIE"),"TAK","NIE")) -> NIE | Z29: =IF(B29="","",IF(F29="III","TAK","NIE")) -> TAK | AA29: =IF(E29="","",IF(X29="TAK","Zmiana A",IF(Y29="TAK","Zmiana B","Zmiana C"))) -> Zmiana C
A30: piątek | B30: 3 | C30: styczeń | D30: =YEAR(Tabela2[[#This Row],[Data]]) -> 2018 | E30: 2018-01-19 | F30: I | G30: 1225 | H30: 772 | I30: 30 | J30: 23.71521487 | K30: 0.7905071622 | L30: 23.54946633 | M30: 0.784982211 | N30: 2.010555556 | O30: 0.4973749655 | P30: 30 | Q30: 1.884895833 | R30: 0.5305332965 | S30: 32 | T30: =IF(E30="","",I30*60*N30) -> 3619 | U30: =IF(E30="","",(I30+I30/7.5*0.5)*3600) -> 115200 | V30: =IF(E30="","",40/1.2) -> 33.33333333 | W30: =IF(B30="","",ISEVEN(B30)) -> FALSE | X30: =IF(B30="","",IF(W30=TRUE,IF(F30="I","TAK","NIE"),IF(F30="I","NIE",IF(F30="III","NIE","TAK")))) -> NIE | Y30: =IF(B30="","",IF(AND(X30="NIE",Z30="NIE"),"TAK","NIE")) -> TAK | Z30: =IF(B30="","",IF(F30="III","TAK","NIE")) -> NIE | AA30: =IF(E30="","",IF(X30="TAK","Zmiana A",IF(Y30="TAK","Zmiana B","Zmiana C"))) -> Zmiana B
A31: piątek | B31: 3 | C31: styczeń | D31: =YEAR(Tabela2[[#This Row],[Data]]) -> 2018 | E31: 2018-01-19 | F31: II | G31: 9979 | H31: 7238 | I31: 15 | J31: 11.10108159 | K31: 0.7400721061 | L31: 9.944852364 | M31: 0.6629901576 | N31: 0.8577777778 | O31: 1.165803109 | P31: 70 | Q31: 0.8041666667 | R31: 1.243523316 | S31: 75 | T31: =IF(E31="","",I31*60*N31) -> 772 | U31: =IF(E31="","",(I31+I31/7.5*0.5)*3600) -> 57600 | V31: =IF(E31="","",40/1.2) -> 33.33333333 | W31: =IF(B31="","",ISEVEN(B31)) -> FALSE | X31: =IF(B31="","",IF(W31=TRUE,IF(F31="I","TAK","NIE"),IF(F31="I","NIE",IF(F31="III","NIE","TAK")))) -> TAK | Y31: =IF(B31="","",IF(AND(X31="NIE",Z31="NIE"),"TAK","NIE")) -> NIE | Z31: =IF(B31="","",IF(F31="III","TAK","NIE")) -> NIE | AA31: =IF(E31="","",IF(X31="TAK","Zmiana A",IF(Y31="TAK","Zmiana B","Zmiana C"))) -> Zmiana A
A32: =IF(E32="","",TEXT(WEEKDAY(IF(E32=0,"",E32),1),"dddd")) -> piątek | B32: =IF(E32="","",WEEKNUM(IF(E32=0,"",E32),1)) -> 3 | C32: =IF(E32="","",TEXT(IF(E32=0,"",MONTH(E32))*30,"mmmm")) -> styczeń | D32: =YEAR(Tabela2[[#This Row],[Data]]) -> 2018 | E32: 2018-01-19 | F32: I | G32: 1225 | H32: 772 | I32: 30 | J32: 23.71521487 | K32: 0.7905071622 | L32: 22.19360645 | M32: 0.7397868818 | N32: 2.010555556 | O32: 0.4973749655 | P32: 30 | Q32: 1.884895833 | R32: 0.5305332965 | S32: 32 | T32: =IF(E32="","",I32*60*N32) -> 3619 | U32: =IF(E32="","",(I32+I32/7.5*0.5)*3600) -> 115200 | V32: =IF(E32="","",40/1.2) -> 33.33333333 | W32: =IF(B32="","",ISEVEN(B32)) -> FALSE | X32: =IF(B32="","",IF(W32=TRUE,IF(F32="I","TAK","NIE"),IF(F32="I","NIE",IF(F32="III","NIE","TAK")))) -> NIE | Y32: =IF(B32="","",IF(AND(X32="NIE",Z32="NIE"),"TAK","NIE")) -> TAK | Z32: =IF(B32="","",IF(F32="III","TAK","NIE")) -> NIE | AA32: =IF(E32="","",IF(X32="TAK","Zmiana A",IF(Y32="TAK","Zmiana B","Zmiana C"))) -> Zmiana B
A33: =IF(E33="","",TEXT(WEEKDAY(IF(E33=0,"",E33),1),"dddd")) -> piątek | B33: =IF(E33="","",WEEKNUM(IF(E33=0,"",E33),1)) -> 3 | C33: =IF(E33="","",TEXT(IF(E33=0,"",MONTH(E33))*30,"mmmm")) -> styczeń | D33: =YEAR(Tabela2[[#This Row],[Data]]) -> 2018 | E33: 2018-01-19 | F33: III | G33: 2462 | H33: 2381 | I33: 7.5 | J33: 9.448412698 | K33: 1.25978836 | L33: 9.448228993 | M33: 1.259763866 | N33: 5.291111111 | O33: 0.1889962201 | P33: 11 | Q33: 4.960416667 | R33: 0.2015959681 | S33: 12 | T33: =IF(E33="","",I33*60*N33) -> 2381 | U33: =IF(E33="","",(I33+I33/7.5*0.5)*3600) -> 28800 | V33: =IF(E33="","",40/1.2) -> 33.33333333 | W33: =IF(B33="","",ISEVEN(B33)) -> FALSE | X33: =IF(B33="","",IF(W33=TRUE,IF(F33="I","TAK","NIE"),IF(F33="I","NIE",IF(F33="III","NIE","TAK")))) -> NIE | Y33: =IF(B33="","",IF(AND(X33="NIE",Z33="NIE"),"TAK","NIE")) -> NIE | Z33: =IF(B33="","",IF(F33="III","TAK","NIE")) -> TAK | AA33: =IF(E33="","",IF(X33="TAK","Zmiana A",IF(Y33="TAK","Zmiana B","Zmiana C"))) -> Zmiana C
A34: =IF(E34="","",TEXT(WEEKDAY(IF(E34=0,"",E34),1),"dddd")) -> poniedziałek | B34: =IF(E34="","",WEEKNUM(IF(E34=0,"",E34),1)) -> 4 | C34: =IF(E34="","",TEXT(IF(E34=0,"",MONTH(E34))*30,"mmmm")) -> styczeń | D34: =YEAR(Tabela2[[#This Row],[Data]]) -> 2018 | E34: 2018-01-22 | F34: I | G34: 7749 | H34: 5522 | I34: 30 | J34: 42.09847792 | K34: 1.403282597 | L34: 41.27954083 | M34: 1.375984694 | N34: 3.067777778 | O34: 0.3259688519 | P34: 20 | Q34: 2.876041667 | R34: 0.3477001087 | S34: 21 | T34: =IF(E34="","",I34*60*N34) -> 5522 | U34: =IF(E34="","",(I34+I34/7.5*0.5)*3600) -> 115200 | V34: =IF(E34="","",40/1.2) -> 33.33333333 | W34: =IF(B34="","",ISEVEN(B34)) -> TRUE | X34: =IF(B34="","",IF(W34=TRUE,IF(F34="I","TAK","NIE"),IF(F34="I","NIE",IF(F34="III","NIE","TAK")))) -> TAK | Y34: =IF(B34="","",IF(AND(X34="NIE",Z34="NIE"),"TAK","NIE")) -> NIE | Z34: =IF(B34="","",IF(F34="III","TAK","NIE")) -> NIE | AA34: =IF(E34="","",IF(X34="TAK","Zmiana A",IF(Y34="TAK","Zmiana B","Zmiana C"))) -> Zmiana A
A35: =IF(E35="","",TEXT(WEEKDAY(IF(E35=0,"",E35),1),"dddd")) -> poniedziałek | B35: =IF(E35="","",WEEKNUM(IF(E35=0,"",E35),1)) -> 4 | C35: =IF(E35="","",TEXT(IF(E35=0,"",MONTH(E35))*30,"mmmm")) -> styczeń | D35: =YEAR(Tabela2[[#This Row],[Data]]) -> 2018 | E35: 2018-01-22 | F35: II | G35: 2646 | H35: 1777 | I35: 22.5 | J35: 27.9599359 | K35: 1.242663818 | L35: 29.89882242 | M35: 1.328836552 | N35: 1.316296296 | O35: 0.759707372 | P35: 46 | Q35: 1.234027778 | R35: 0.8103545301 | S35: 49 | T35: =IF(E35="","",I35*60*N35) -> 1777 | U35: =IF(E35="","",(I35+I35/7.5*0.5)*3600) -> 86400 | V35: =IF(E35="","",40/1.2) -> 33.33333333 | W35: =IF(B35="","",ISEVEN(B35)) -> TRUE | X35: =IF(B35="","",IF(W35=TRUE,IF(F35="I","TAK","NIE"),IF(F35="I","NIE",IF(F35="III","NIE","TAK")))) -> NIE | Y35: =IF(B35="","",IF(AND(X35="NIE",Z35="NIE"),"TAK","NIE")) -> TAK | Z35: =IF(B35="","",IF(F35="III","TAK","NIE")) -> NIE | AA35: =IF(E35="","",IF(X35="TAK","Zmiana A",IF(Y35="TAK","Zmiana B","Zmiana C"))) -> Zmiana B
A36: =IF(E36="","",TEXT(WEEKDAY(IF(E36=0,"",E36),1),"dddd")) -> poniedziałek | B36: =IF(E36="","",WEEKNUM(IF(E36=0,"",E36),1)) -> 4 | C36: =IF(E36="","",TEXT(IF(E36=0,"",MONTH(E36))*30,"mmmm")) -> styczeń | D36: =YEAR(Tabela2[[#This Row],[Data]]) -> 2018 | E36: 2018-01-22 | F36: III | G36: 3877 | H36: 2918 | I36: 22.5 | J36: 16.19145299 | K36: 0.719620133 | L36: 16.50871738 | M36: 0.7337207724 | N36: 2.161481481 | O36: 0.4626456477 | P36: 28 | Q36: 2.026388889 | R36: 0.4934886909 | S36: 30 | T36: =IF(E36="","",I36*60*N36) -> 2918 | U36: =IF(E36="","",(I36+I36/7.5*0.5)*3600) -> 86400 | V36: =IF(E36="","",40/1.2) -> 33.33333333 | W36: =IF(B36="","",ISEVEN(B36)) -> TRUE | X36: =IF(B36="","",IF(W36=TRUE,IF(F36="I","TAK","NIE"),IF(F36="I","NIE",IF(F36="III","NIE","TAK")))) -> NIE | Y36: =IF(B36="","",IF(AND(X36="NIE",Z36="NIE"),"TAK","NIE")) -> NIE | Z36: =IF(B36="","",IF(F36="III","TAK","NIE")) -> TAK | AA36: =IF(E36="","",IF(X36="TAK","Zmiana A",IF(Y36="TAK","Zmiana B","Zmiana C"))) -> Zmiana C
A37: =IF(E37="","",TEXT(WEEKDAY(IF(E37=0,"",E37),1),"dddd")) -> wtorek | B37: =IF(E37="","",WEEKNUM(IF(E37=0,"",E37),1)) -> 4 | C37: =IF(E37="","",TEXT(IF(E37=0,"",MONTH(E37))*30,"mmmm")) -> styczeń | D37: =YEAR(Tabela2[[#This Row],[Data]]) -> 2018 | E37: 2018-01-23 | F37: I | G37: 8147 | H37: 7269 | I37: 15 | J37: 12.30769231 | K37: 0.8205128205 | L37: 12.22746705 | M37: 0.8151644697 | N37: 1.777777778 | O37: 0.5625 | P37: 34 | Q37: 1.666666667 | R37: 0.6 | S37: 36 | T37: =IF(E37="","",I37*60*N37) -> 1600 | U37: =IF(E37="","",(I37+I37/7.5*0.5)*3600) -> 57600 | V37: =IF(E37="","",40/1.2) -> 33.33333333 | W37: =IF(B37="","",ISEVEN(B37)) -> TRUE | X37: =IF(B37="","",IF(W37=TRUE,IF(F37="I","TAK","NIE"),IF(F37="I","NIE",IF(F37="III","NIE","TAK")))) -> TAK | Y37: =IF(B37="","",IF(AND(X37="NIE",Z37="NIE"),"TAK","NIE")) -> NIE | Z37: =IF(B37="","",IF(F37="III","TAK","NIE")) -> NIE | AA37: =IF(E37="","",IF(X37="TAK","Zmiana A",IF(Y37="TAK","Zmiana B","Zmiana C"))) -> Zmiana A
A38: wtorek | B38: 4 | C38: styczeń | D38: =YEAR(Tabela2[[#This Row],[Data]]) -> 2018 | E38: 2018-01-23 | F38: I | G38: 8147 | H38: 7269 | I38: 15 | J38: 0.625 | K38: 0.04166666667 | L38: 0.7557336588 | M38: 0.05038224392 | N38: 1.111111111 | O38: 0.9 | P38: 54 | Q38: 1.041666667 | R38: 0.96 | S38: 58 | T38: =IF(E38="","",I38*60*N38) -> 1000 | U38: =IF(E38="","",(I38+I38/7.5*0.5)*3600) -> 57600 | V38: =IF(E38="","",40/1.2) -> 33.33333333 | W38: =IF(B38="","",ISEVEN(B38)) -> TRUE | X38: =IF(B38="","",IF(W38=TRUE,IF(F38="I","TAK","NIE"),IF(F38="I","NIE",IF(F38="III","NIE","TAK")))) -> TAK | Y38: =IF(B38="","",IF(AND(X38="NIE",Z38="NIE"),"TAK","NIE")) -> NIE | Z38: =IF(B38="","",IF(F38="III","TAK","NIE")) -> NIE | AA38: =IF(E38="","",IF(X38="TAK","Zmiana A",IF(Y38="TAK","Zmiana B","Zmiana C"))) -> Zmiana A
A39: wtorek | B39: 4 | C39: styczeń | D39: =YEAR(Tabela2[[#This Row],[Data]]) -> 2018 | E39: 2018-01-23 | F39: I | G39: 8147 | H39: 7269 | I39: 30 | J39: 25.92457927 | K39: 0.8641526423 | L39: 25.99201776 | M39: 0.866400592 | N39: 2.593888889 | O39: 0.385521525 | P39: 23 | Q39: 2.431770833 | R39: 0.4112229599 | S39: 25 | T39: =IF(E39="","",I39*60*N39) -> 4669 | U39: =IF(E39="","",(I39+I39/7.5*0.5)*3600) -> 115200 | V39: =IF(E39="","",40/1.2) -> 33.33333333 | W39: =IF(B39="","",ISEVEN(B39)) -> TRUE | X39: =IF(B39="","",IF(W39=TRUE,IF(F39="I","TAK","NIE"),IF(F39="I","NIE",IF(F39="III","NIE","TAK")))) -> TAK | Y39: =IF(B39="","",IF(AND(X39="NIE",Z39="NIE"),"TAK","NIE")) -> NIE | Z39: =IF(B39="","",IF(F39="III","TAK","NIE")) -> NIE | AA39: =IF(E39="","",IF(X39="TAK","Zmiana A",IF(Y39="TAK","Zmiana B","Zmiana C"))) -> Zmiana A
A40: wtorek | B40: 4 | C40: styczeń | D40: =YEAR(Tabela2[[#This Row],[Data]]) -> 2018 | E40: 2018-01-23 | F40: II | G40: 1693 | H40: 1406 | I40: 21.5 | J40: 23.20254011 | K40: 1.079187912 | L40: 24.37160562 | M40: 1.133563052 | N40: 1.089922481 | O40: 0.9174964438 | P40: 55 | Q40: 1.01884058 | R40: 0.9815078236 | S40: 59 | T40: =IF(E40="","",I40*60*N40) -> 1406 | U40: =IF(E40="","",(I40+I40/7.5*0.5)*3600) -> 82560 | V40: =IF(E40="","",40/1.2) -> 33.33333333 | W40: =IF(B40="","",ISEVEN(B40)) -> TRUE | X40: =IF(B40="","",IF(W40=TRUE,IF(F40="I","TAK","NIE"),IF(F40="I","NIE",IF(F40="III","NIE","TAK")))) -> NIE | Y40: =IF(B40="","",IF(AND(X40="NIE",Z40="NIE"),"TAK","NIE")) -> TAK | Z40: =IF(B40="","",IF(F40="III","TAK","NIE")) -> NIE | AA40: =IF(E40="","",IF(X40="TAK","Zmiana A",IF(Y40="TAK","Zmiana B","Zmiana C"))) -> Zmiana B
A41: wtorek | B41: 4 | C41: styczeń | D41: =YEAR(Tabela2[[#This Row],[Data]]) -> 2018 | E41: 2018-01-23 | F41: III | G41: 3910 | H41: 3615 | I41: 22.5 | J41: 27.46594517 | K41: 1.220708674 | L41: 28.97042993 | M41: 1.287574664 | N41: 2.677777778 | O41: 0.3734439834 | P41: 22 | Q41: 2.510416667 | R41: 0.398340249 | S41: 24 | T41: =IF(E41="","",I41*60*N41) -> 3615 | U41: =IF(E41="","",(I41+I41/7.5*0.5)*3600) -> 86400 | V41: =IF(E41="","",40/1.2) -> 33.33333333 | W41: =IF(B41="","",ISEVEN(B41)) -> TRUE | X41: =IF(B41="","",IF(W41=TRUE,IF(F41="I","TAK","NIE"),IF(F41="I","NIE",IF(F41="III","NIE","TAK")))) -> NIE | Y41: =IF(B41="","",IF(AND(X41="NIE",Z41="NIE"),"TAK","NIE")) -> NIE | Z41: =IF(B41="","",IF(F41="III","TAK","NIE")) -> TAK | AA41: =IF(E41="","",IF(X41="TAK","Zmiana A",IF(Y41="TAK","Zmiana B","Zmiana C"))) -> Zmiana C
A42: środa | B42: 4 | C42: styczeń | D42: =YEAR(Tabela2[[#This Row],[Data]]) -> 2018 | E42: 2018-01-24 | F42: I | G42: 6125 | H42: 4944 | I42: 30 | J42: 37.71552158 | K42: 1.257184053 | L42: 36.73733846 | M42: 1.224577949 | N42: 2.746666667 | O42: 0.3640776699 | P42: 22 | Q42: 2.575 | R42: 0.3883495146 | S42: 23 | T42: =IF(E42="","",I42*60*N42) -> 4944 | U42: =IF(E42="","",(I42+I42/7.5*0.5)*3600) -> 115200 | V42: =IF(E42="","",40/1.2) -> 33.33333333 | W42: =IF(B42="","",ISEVEN(B42)) -> TRUE | X42: =IF(B42="","",IF(W42=TRUE,IF(F42="I","TAK","NIE"),IF(F42="I","NIE",IF(F42="III","NIE","TAK")))) -> TAK | Y42: =IF(B42="","",IF(AND(X42="NIE",Z42="NIE"),"TAK","NIE")) -> NIE | Z42: =IF(B42="","",IF(F42="III","TAK","NIE")) -> NIE | AA42: =IF(E42="","",IF(X42="TAK","Zmiana A",IF(Y42="TAK","Zmiana B","Zmiana C"))) -> Zmiana A
A43: =IF(E43="","",TEXT(WEEKDAY(IF(E43=0,"",E43),1),"dddd")) -> środa | B43: =IF(E43="","",WEEKNUM(IF(E43=0,"",E43),1)) -> 4 | C43: =IF(E43="","",TEXT(IF(E43=0,"",MONTH(E43))*30,"mmmm")) -> styczeń | D43: =YEAR(Tabela2[[#This Row],[Data]]) -> 2018 | E43: 2018-01-24 | F43: II | G43: 3992 | H43: 2521 | I43: 22.5 | J43: 15.29346355 | K43: 0.6797094912 | L43: 16.89022204 | M43: 0.7506765353 | N43: 1.867407407 | O43: 0.535501785 | P43: 32 | Q43: 1.750694444 | R43: 0.571201904 | S43: 34 | T43: =IF(E43="","",I43*60*N43) -> 2521 | U43: =IF(E43="","",(I43+I43/7.5*0.5)*3600) -> 86400 | V43: =IF(E43="","",40/1.2) -> 33.33333333 | W43: =IF(B43="","",ISEVEN(B43)) -> TRUE | X43: =IF(B43="","",IF(W43=TRUE,IF(F43="I","TAK","NIE"),IF(F43="I","NIE",IF(F43="III","NIE","TAK")))) -> NIE | Y43: =IF(B43="","",IF(AND(X43="NIE",Z43="NIE"),"TAK","NIE")) -> TAK | Z43: =IF(B43="","",IF(F43="III","TAK","NIE")) -> NIE | AA43: =IF(E43="","",IF(X43="TAK","Zmiana A",IF(Y43="TAK","Zmiana B","Zmiana C"))) -> Zmiana B
A44: czwartek | B44: 4 | C44: styczeń | D44: =YEAR(Tabela2[[#This Row],[Data]]) -> 2018 | E44: 2018-01-25 | F44: I | G44: 5917 | H44: 4289 | I44: 30 | J44: 42.57140502 | K44: 1.419046834 | L44: 44.43328141 | M44: 1.48110938 | N44: 2.382777778 | O44: 0.4196782467 | P44: 25 | Q44: 2.233854167 | R44: 0.4476567965 | S44: 27 | T44: =IF(E44="","",I44*60*N44) -> 4289 | U44: =IF(E44="","",(I44+I44/7.5*0.5)*3600) -> 115200 | V44: =IF(E44="","",40/1.2) -> 33.33333333 | W44: =IF(B44="","",ISEVEN(B44)) -> TRUE | X44: =IF(B44="","",IF(W44=TRUE,IF(F44="I","TAK","NIE"),IF(F44="I","NIE",IF(F44="III","NIE","TAK")))) -> TAK | Y44: =IF(B44="","",IF(AND(X44="NIE",Z44="NIE"),"TAK","NIE")) -> NIE | Z44: =IF(B44="","",IF(F44="III","TAK","NIE")) -> NIE | AA44: =IF(E44="","",IF(X44="TAK","Zmiana A",IF(Y44="TAK","Zmiana B","Zmiana C"))) -> Zmiana A
A45: czwartek | B45: 4 | C45: styczeń | D45: =YEAR(Tabela2[[#This Row],[Data]]) -> 2018 | E45: 2018-01-25 | F45: II | G45: 2811 | H45: 2147 | I45: 30 | J45: 41.25485328 | K45: 1.375161776 | L45: 41.1251977 | M45: 1.370839923 | N45: 1.192777778 | O45: 0.8383791337 | P45: 50 | Q45: 1.118229167 | R45: 0.8942710759 | S45: 54 | T45: =IF(E45="","",I45*60*N45) -> 2147 | U45: =IF(E45="","",(I45+I45/7.5*0.5)*3600) -> 115200 | V45: =IF(E45="","",40/1.2) -> 33.33333333 | W45: =IF(B45="","",ISEVEN(B45)) -> TRUE | X45: =IF(B45="","",IF(W45=TRUE,IF(F45="I","TAK","NIE"),IF(F45="I","NIE",IF(F45="III","NIE","TAK")))) -> NIE | Y45: =IF(B45="","",IF(AND(X45="NIE",Z45="NIE"),"TAK","NIE")) -> TAK | Z45: =IF(B45="","",IF(F45="III","TAK","NIE")) -> NIE | AA45: =IF(E45="","",IF(X45="TAK","Zmiana A",IF(Y45="TAK","Zmiana B","Zmiana C"))) -> Zmiana B
A46: piątek | B46: 4 | C46: styczeń | D46: =YEAR(Tabela2[[#This Row],[Data]]) -> 2018 | E46: 2018-01-26 | F46: III | G46: 5316 | H46: 4733 | I46: 7.5 | J46: 9.412698413 | K46: 1.255026455 | L46: 8.283133689 | M46: 1.104417825 | N46: 5.271111111 | O46: 0.1897133221 | P46: 11 | Q46: 4.941666667 | R46: 0.2023608769 | S46: 12 | T46: =IF(E46="","",I46*60*N46) -> 2372 | U46: =IF(E46="","",(I46+I46/7.5*0.5)*3600) -> 28800 | V46: =IF(E46="","",40/1.2) -> 33.33333333 | W46: =IF(B46="","",ISEVEN(B46)) -> TRUE | X46: =IF(B46="","",IF(W46=TRUE,IF(F46="I","TAK","NIE"),IF(F46="I","NIE",IF(F46="III","NIE","TAK")))) -> NIE | Y46: =IF(B46="","",IF(AND(X46="NIE",Z46="NIE"),"TAK","NIE")) -> NIE | Z46: =IF(B46="","",IF(F46="III","TAK","NIE")) -> TAK | AA46: =IF(E46="","",IF(X46="TAK","Zmiana A",IF(Y46="TAK","Zmiana B","Zmiana C"))) -> Zmiana C
A47: piątek | B47: 4 | C47: styczeń | D47: =YEAR(Tabela2[[#This Row],[Data]]) -> 2018 | E47: 2018-01-26 | F47: III | G47: 5316 | H47: 4733 | I47: 7.5 | J47: 9.369047619 | K47: 1.249206349 | L47: 7.514180009 | M47: 1.001890668 | N47: 5.246666667 | O47: 0.1905972046 | P47: 11 | Q47: 4.91875 | R47: 0.2033036849 | S47: 12 | T47: =IF(E47="","",I47*60*N47) -> 2361 | U47: =IF(E47="","",(I47+I47/7.5*0.5)*3600) -> 28800 | V47: =IF(E47="","",40/1.2) -> 33.33333333 | W47: =IF(B47="","",ISEVEN(B47)) -> TRUE | X47: =IF(B47="","",IF(W47=TRUE,IF(F47="I","TAK","NIE"),IF(F47="I","NIE",IF(F47="III","NIE","TAK")))) -> NIE | Y47: =IF(B47="","",IF(AND(X47="NIE",Z47="NIE"),"TAK","NIE")) -> NIE | Z47: =IF(B47="","",IF(F47="III","TAK","NIE")) -> TAK | AA47: =IF(E47="","",IF(X47="TAK","Zmiana A",IF(Y47="TAK","Zmiana B","Zmiana C"))) -> Zmiana C
A48: piątek | B48: 4 | C48: styczeń | D48: =YEAR(Tabela2[[#This Row],[Data]]) -> 2018 | E48: 2018-01-26 | F48: II | G48: 963 | H48: 859 | I48: 15 | J48: 12.80533333 | K48: 0.8536888889 | L48: 14.76763785 | M48: 0.9845091898 | N48: 0.9544444444 | O48: 1.047729919 | P48: 63 | Q48: 0.8947916667 | R48: 1.11757858 | S48: 67 | T48: =IF(E48="","",I48*60*N48) -> 859 | U48: =IF(E48="","",(I48+I48/7.5*0.5)*3600) -> 57600 | V48: =IF(E48="","",40/1.2) -> 33.33333333 | W48: =IF(B48="","",ISEVEN(B48)) -> TRUE | X48: =IF(B48="","",IF(W48=TRUE,IF(F48="I","TAK","NIE"),IF(F48="I","NIE",IF(F48="III","NIE","TAK")))) -> NIE | Y48: =IF(B48="","",IF(AND(X48="NIE",Z48="NIE"),"TAK","NIE")) -> TAK | Z48: =IF(B48="","",IF(F48="III","TAK","NIE")) -> NIE | AA48: =IF(E48="","",IF(X48="TAK","Zmiana A",IF(Y48="TAK","Zmiana B","Zmiana C"))) -> Zmiana B
A49: =IF(E49="","",TEXT(WEEKDAY(IF(E49=0,"",E49),1),"dddd")) -> sobota | B49: =IF(E49="","",WEEKNUM(IF(E49=0,"",E49),1)) -> 4 | C49: =IF(E49="","",TEXT(IF(E49=0,"",MONTH(E49))*30,"mmmm")) -> styczeń | D49: =YEAR(Tabela2[[#This Row],[Data]]) -> 2018 | E49: 2018-01-27 | F49: I | G49: 8105 | H49: 7371 | I49: 30 | J49: 31.97484602 | K49: 1.065828201 | L49: 30.2425112 | M49: 1.008083707 | N49: 4.095 | O49: 0.2442002442 | P49: 15 | Q49: 3.8390625 | R49: 0.2604802605 | S49: 16 | T49: =IF(E49="","",I49*60*N49) -> 7371 | U49: =IF(E49="","",(I49+I49/7.5*0.5)*3600) -> 115200 | V49: =IF(E49="","",40/1.2) -> 33.33333333 | W49: =IF(B49="","",ISEVEN(B49)) -> TRUE | X49: =IF(B49="","",IF(W49=TRUE,IF(F49="I","TAK","NIE"),IF(F49="I","NIE",IF(F49="III","NIE","TAK")))) -> TAK | Y49: =IF(B49="","",IF(AND(X49="NIE",Z49="NIE"),"TAK","NIE")) -> NIE | Z49: =IF(B49="","",IF(F49="III","TAK","NIE")) -> NIE | AA49: =IF(E49="","",IF(X49="TAK","Zmiana A",IF(Y49="TAK","Zmiana B","Zmiana C"))) -> Zmiana A
A50: poniedziałek | B50: 5 | C50: styczeń | D50: =YEAR(Tabela2[[#This Row],[Data]]) -> 2018 | E50: 2018-01-29 | F50: I | G50: 1868 | H50: 1192 | I50: 30 | J50: 45.25281879 | K50: 1.508427293 | L50: 46.30774913 | M50: 1.543591638 | N50: 3.864444444 | O50: 0.2587694077 | P50: 16 | Q50: 3.622916667 | R50: 0.2760207016 | S50: 17 | T50: =IF(E50="","",I50*60*N50) -> 6956 | U50: =IF(E50="","",(I50+I50/7.5*0.5)*3600) -> 115200 | V50: =IF(E50="","",40/1.2) -> 33.33333333 | W50: =IF(B50="","",ISEVEN(B50)) -> FALSE | X50: =IF(B50="","",IF(W50=TRUE,IF(F50="I","TAK","NIE"),IF(F50="I","NIE",IF(F50="III","NIE","TAK")))) -> NIE | Y50: =IF(B50="","",IF(AND(X50="NIE",Z50="NIE"),"TAK","NIE")) -> TAK | Z50: =IF(B50="","",IF(F50="III","TAK","NIE")) -> NIE | AA50: =IF(E50="","",IF(X50="TAK","Zmiana A",IF(Y50="TAK","Zmiana B","Zmiana C"))) -> Zmiana B
A51: poniedziałek | B51: 5 | C51: styczeń | D51: =YEAR(Tabela2[[#This Row],[Data]]) -> 2018 | E51: 2018-01-29 | F51: II | G51: 8234 | H51: 6956 | I51: 22.5 | J51: 16.33492063 | K51: 0.7259964727 | L51: 18.11138453 | M51: 0.8049504237 | N51: 0.882962963 | O51: 1.132550336 | P51: 68 | Q51: 0.8277777778 | R51: 1.208053691 | S51: 72 | T51: =IF(E51="","",I51*60*N51) -> 1192 | U51: =IF(E51="","",(I51+I51/7.5*0.5)*3600) -> 86400 | V51: =IF(E51="","",40/1.2) -> 33.33333333 | W51: =IF(B51="","",ISEVEN(B51)) -> FALSE | X51: =IF(B51="","",IF(W51=TRUE,IF(F51="I","TAK","NIE"),IF(F51="I","NIE",IF(F51="III","NIE","TAK")))) -> TAK | Y51: =IF(B51="","",IF(AND(X51="NIE",Z51="NIE"),"TAK","NIE")) -> NIE | Z51: =IF(B51="","",IF(F51="III","TAK","NIE")) -> NIE | AA51: =IF(E51="","",IF(X51="TAK","Zmiana A",IF(Y51="TAK","Zmiana B","Zmiana C"))) -> Zmiana A
A52: poniedziałek | B52: 5 | C52: styczeń | D52: =YEAR(Tabela2[[#This Row],[Data]]) -> 2018 | E52: 2018-01-29 | F52: III | G52: 4172 | H52: 3642 | I52: 22.5 | J52: 24.73626834 | K52: 1.099389704 | L52: 24.17257342 | M52: 1.074336596 | N52: 2.697777778 | O52: 0.370675453 | P52: 22 | Q52: 2.529166667 | R52: 0.3953871499 | S52: 24 | T52: =IF(E52="","",I52*60*N52) -> 3642 | U52: =IF(E52="","",(I52+I52/7.5*0.5)*3600) -> 86400 | V52: =IF(E52="","",40/1.2) -> 33.33333333 | W52: =IF(B52="","",ISEVEN(B52)) -> FALSE | X52: =IF(B52="","",IF(W52=TRUE,IF(F52="I","TAK","NIE"),IF(F52="I","NIE",IF(F52="III","NIE","TAK")))) -> NIE | Y52: =IF(B52="","",IF(AND(X52="NIE",Z52="NIE"),"TAK","NIE")) -> NIE | Z52: =IF(B52="","",IF(F52="III","TAK","NIE")) -> TAK | AA52: =IF(E52="","",IF(X52="TAK","Zmiana A",IF(Y52="TAK","Zmiana B","Zmiana C"))) -> Zmiana C
A53: wtorek | B53: 5 | C53: styczeń | D53: =YEAR(Tabela2[[#This Row],[Data]]) -> 2018 | E53: 2018-01-30 | F53: I | G53: 2213 | H53: 1732 | I53: 30 | J53: 29.29753646 | K53: 0.9765845487 | L53: 27.89622972 | M53: 0.9298743241 | N53: 2.69 | O53: 0.3717472119 | P53: 22 | Q53: 2.521875 | R53: 0.3965303594 | S53: 24 | T53: =IF(E53="","",I53*60*N53) -> 4842 | U53: =IF(E53="","",(I53+I53/7.5*0.5)*3600) -> 115200 | V53: =IF(E53="","",40/1.2) -> 33.33333333 | W53: =IF(B53="","",ISEVEN(B53)) -> FALSE | X53: =IF(B53="","",IF(W53=TRUE,IF(F53="I","TAK","NIE"),IF(F53="I","NIE",IF(F53="III","NIE","TAK")))) -> NIE | Y53: =IF(B53="","",IF(AND(X53="NIE",Z53="NIE"),"TAK","NIE")) -> TAK | Z53: =IF(B53="","",IF(F53="III","TAK","NIE")) -> NIE | AA53: =IF(E53="","",IF(X53="TAK","Zmiana A",IF(Y53="TAK","Zmiana B","Zmiana C"))) -> Zmiana B
A54: wtorek | B54: 5 | C54: styczeń | D54: =YEAR(Tabela2[[#This Row],[Data]]) -> 2018 | E54: 2018-01-30 | F54: II | G54: 6756 | H54: 4842 | I54: 22.5 | J54: 19.46850296 | K54: 0.8652667984 | L54: 18.49681254 | M54: 0.8220805574 | N54: 1.282962963 | O54: 0.7794457275 | P54: 47 | Q54: 1.202777778 | R54: 0.831408776 | S54: 50 | T54: =IF(E54="","",I54*60*N54) -> 1732 | U54: =IF(E54="","",(I54+I54/7.5*0.5)*3600) -> 86400 | V54: =IF(E54="","",40/1.2) -> 33.33333333 | W54: =IF(B54="","",ISEVEN(B54)) -> FALSE | X54: =IF(B54="","",IF(W54=TRUE,IF(F54="I","TAK","NIE"),IF(F54="I","NIE",IF(F54="III","NIE","TAK")))) -> TAK | Y54: =IF(B54="","",IF(AND(X54="NIE",Z54="NIE"),"TAK","NIE")) -> NIE | Z54: =IF(B54="","",IF(F54="III","TAK","NIE")) -> NIE | AA54: =IF(E54="","",IF(X54="TAK","Zmiana A",IF(Y54="TAK","Zmiana B","Zmiana C"))) -> Zmiana A
A55: =IF(E55="","",TEXT(WEEKDAY(IF(E55=0,"",E55),1),"dddd")) -> wtorek | B55: =IF(E55="","",WEEKNUM(IF(E55=0,"",E55),1)) -> 5 | C55: =IF(E55="","",TEXT(IF(E55=0,"",MONTH(E55))*30,"mmmm")) -> styczeń | D55: =YEAR(Tabela2[[#This Row],[Data]]) -> 2018 | E55: 2018-01-30 | F55: III | G55: 4496 | H55: 3979 | I55: 22.5 | J55: 25.55056022 | K55: 1.135580454 | L55: 25.7306075 | M55: 1.143582556 | N55: 2.947407407 | O55: 0.3392812264 | P55: 20 | Q55: 2.763194444 | R55: 0.3618999749 | S55: 22 | T55: =IF(E55="","",I55*60*N55) -> 3979 | U55: =IF(E55="","",(I55+I55/7.5*0.5)*3600) -> 86400 | V55: =IF(E55="","",40/1.2) -> 33.33333333 | W55: =IF(B55="","",ISEVEN(B55)) -> FALSE | X55: =IF(B55="","",IF(W55=TRUE,IF(F55="I","TAK","NIE"),IF(F55="I","NIE",IF(F55="III","NIE","TAK")))) -> NIE | Y55: =IF(B55="","",IF(AND(X55="NIE",Z55="NIE"),"TAK","NIE")) -> NIE | Z55: =IF(B55="","",IF(F55="III","TAK","NIE")) -> TAK | AA55: =IF(E55="","",IF(X55="TAK","Zmiana A",IF(Y55="TAK","Zmiana B","Zmiana C"))) -> Zmiana C
A56: środa | B56: 5 | C56: styczeń | D56: =YEAR(Tabela2[[#This Row],[Data]]) -> 2018 | E56: 2018-01-31 | F56: I | G56: 2362 | H56: 1784 | I56: 30 | J56: 30.98356283 | K56: 1.032785428 | L56: 29.67060942 | M56: 0.9890203139 | N56: 2.350555556 | O56: 0.4254313401 | P56: 26 | Q56: 2.203645833 | R56: 0.4537934294 | S56: 27 | T56: =IF(E56="","",I56*60*N56) -> 4231 | U56: =IF(E56="","",(I56+I56/7.5*0.5)*3600) -> 115200 | V56: =IF(E56="","",40/1.2) -> 33.33333333 | W56: =IF(B56="","",ISEVEN(B56)) -> FALSE | X56: =IF(B56="","",IF(W56=TRUE,IF(F56="I","TAK","NIE"),IF(F56="I","NIE",IF(F56="III","NIE","TAK")))) -> NIE | Y56: =IF(B56="","",IF(AND(X56="NIE",Z56="NIE"),"TAK","NIE")) -> TAK | Z56: =IF(B56="","",IF(F56="III","TAK","NIE")) -> NIE | AA56: =IF(E56="","",IF(X56="TAK","Zmiana A",IF(Y56="TAK","Zmiana B","Zmiana C"))) -> Zmiana B
A57: środa | B57: 5 | C57: styczeń | D57: =YEAR(Tabela2[[#This Row],[Data]]) -> 2018 | E57: 2018-01-31 | F57: II | G57: 5671 | H57: 4231 | I57: 22.5 | J57: 22.98377785 | K57: 1.021501238 | L57: 22.07383932 | M57: 0.9810595255 | N57: 1.321481481 | O57: 0.7567264574 | P57: 45 | Q57: 1.238888889 | R57: 0.8071748879 | S57: 48 | T57: =IF(E57="","",I57*60*N57) -> 1784 | U57: =IF(E57="","",(I57+I57/7.5*0.5)*3600) -> 86400 | V57: =IF(E57="","",40/1.2) -> 33.33333333 | W57: =IF(B57="","",ISEVEN(B57)) -> FALSE | X57: =IF(B57="","",IF(W57=TRUE,IF(F57="I","TAK","NIE"),IF(F57="I","NIE",IF(F57="III","NIE","TAK")))) -> TAK | Y57: =IF(B57="","",IF(AND(X57="NIE",Z57="NIE"),"TAK","NIE")) -> NIE | Z57: =IF(B57="","",IF(F57="III","TAK","NIE")) -> NIE | AA57: =IF(E57="","",IF(X57="TAK","Zmiana A",IF(Y57="TAK","Zmiana B","Zmiana C"))) -> Zmiana A
A58: środa | B58: 5 | C58: styczeń | D58: =YEAR(Tabela2[[#This Row],[Data]]) -> 2018 | E58: 2018-01-31 | F58: III | G58: 3817 | H58: 3701 | I58: 22.5 | J58: 26.76177283 | K58: 1.189412126 | L58: 26.07584052 | M58: 1.158926245 | N58: 2.741481481 | O58: 0.3647662794 | P58: 22 | Q58: 2.570138889 | R58: 0.3890840313 | S58: 23 | T58: =IF(E58="","",I58*60*N58) -> 3701 | U58: =IF(E58="","",(I58+I58/7.5*0.5)*3600) -> 86400 | V58: =IF(E58="","",40/1.2) -> 33.33333333 | W58: =IF(B58="","",ISEVEN(B58)) -> FALSE | X58: =IF(B58="","",IF(W58=TRUE,IF(F58="I","TAK","NIE"),IF(F58="I","NIE",IF(F58="III","NIE","TAK")))) -> NIE | Y58: =IF(B58="","",IF(AND(X58="NIE",Z58="NIE"),"TAK","NIE")) -> NIE | Z58: =IF(B58="","",IF(F58="III","TAK","NIE")) -> TAK | AA58: =IF(E58="","",IF(X58="TAK","Zmiana A",IF(Y58="TAK","Zmiana B","Zmiana C"))) -> Zmiana C
A59: czwartek | B59: 5 | C59: luty | D59: =YEAR(Tabela2[[#This Row],[Data]]) -> 2018 | E59: 2018-02-01 | F59: I | G59: 2149 | H59: 1753 | I59: 30 | J59: 29.0582596 | K59: 0.8686086535 | L59: 22.69004874 | M59: 0.7563349578 | N59: 2.351111111 | O59: 0.4253308129 | P59: 26 | Q59: 2.204166667 | R59: 0.4536862004 | S59: 27 | T59: =IF(E59="","",I59*60*N59) -> 4232 | U59: =IF(E59="","",(I59+I59/7.5*0.5)*3600) -> 115200 | V59: =IF(E59="","",40/1.2) -> 33.33333333 | W59: =IF(B59="","",ISEVEN(B59)) -> FALSE | X59: =IF(B59="","",IF(W59=TRUE,IF(F59="I","TAK","NIE"),IF(F59="I","NIE",IF(F59="III","NIE","TAK")))) -> NIE | Y59: =IF(B59="","",IF(AND(X59="NIE",Z59="NIE"),"TAK","NIE")) -> TAK | Z59: =IF(B59="","",IF(F59="III","TAK","NIE")) -> NIE | AA59: =IF(E59="","",IF(X59="TAK","Zmiana A",IF(Y59="TAK","Zmiana B","Zmiana C"))) -> Zmiana B
A60: czwartek | B60: 5 | C60: luty | D60: =YEAR(Tabela2[[#This Row],[Data]]) -> 2018 | E60: 2018-02-01 | F60: II | G60: 6183 | H60: 4232 | I60: 30 | J60: 25.25597863 | K60: 0.7418659543 | L60: 19.35660642 | M60: 0.6452202138 | N60: 0.9738888889 | O60: 1.026811181 | P60: 62 | Q60: 0.9130208333 | R60: 1.09526526 | S60: 66 | T60: =IF(E60="","",I60*60*N60) -> 1753 | U60: =IF(E60="","",(I60+I60/7.5*0.5)*3600) -> 115200 | V60: =IF(E60="","",40/1.2) -> 33.33333333 | W60: =IF(B60="","",ISEVEN(B60)) -> FALSE | X60: =IF(B60="","",IF(W60=TRUE,IF(F60="I","TAK","NIE"),IF(F60="I","NIE",IF(F60="III","NIE","TAK")))) -> TAK | Y60: =IF(B60="","",IF(AND(X60="NIE",Z60="NIE"),"TAK","NIE")) -> NIE | Z60: =IF(B60="","",IF(F60="III","TAK","NIE")) -> NIE | AA60: =IF(E60="","",IF(X60="TAK","Zmiana A",IF(Y60="TAK","Zmiana B","Zmiana C"))) -> Zmiana A
A61: =IF(E61="","",TEXT(WEEKDAY(IF(E61=0,"",E61),1),"dddd")) -> czwartek | B61: =IF(E61="","",WEEKNUM(IF(E61=0,"",E61),1)) -> 5 | C61: =IF(E61="","",TEXT(IF(E61=0,"",MONTH(E61))*30,"mmmm")) -> luty | D61: =YEAR(Tabela2[[#This Row],[Data]]) -> 2018 | E61: 2018-02-01 | F61: III | G61: 4195 | H61: 3438 | I61: 22.5 | J61: 21.97173507 | K61: 0.8431882254 | L61: 14.09762322 | M61: 0.6265610319 | N61: 2.546666667 | O61: 0.3926701571 | P61: 24 | Q61: 2.3875 | R61: 0.4188481675 | S61: 25 | T61: =IF(E61="","",I61*60*N61) -> 3438 | U61: =IF(E61="","",(I61+I61/7.5*0.5)*3600) -> 86400 | V61: =IF(E61="","",40/1.2) -> 33.33333333 | W61: =IF(B61="","",ISEVEN(B61)) -> FALSE | X61: =IF(B61="","",IF(W61=TRUE,IF(F61="I","TAK","NIE"),IF(F61="I","NIE",IF(F61="III","NIE","TAK")))) -> NIE | Y61: =IF(B61="","",IF(AND(X61="NIE",Z61="NIE"),"TAK","NIE")) -> NIE | Z61: =IF(B61="","",IF(F61="III","TAK","NIE")) -> TAK | AA61: =IF(E61="","",IF(X61="TAK","Zmiana A",IF(Y61="TAK","Zmiana B","Zmiana C"))) -> Zmiana C
A62: piątek | B62: 5 | C62: luty | D62: =YEAR(Tabela2[[#This Row],[Data]]) -> 2018 | E62: 2018-02-02 | F62: I | G62: 2677 | H62: 1743 | I62: 22.5 | J62: 21.45759924 | K62: 0.8203377438 | L62: 16.92460877 | M62: 0.7522048341 | N62: 1.291111111 | O62: 0.7745266781 | P62: 46 | Q62: 1.210416667 | R62: 0.82616179 | S62: 50 | T62: =IF(E62="","",I62*60*N62) -> 1743 | U62: =IF(E62="","",(I62+I62/7.5*0.5)*3600) -> 86400 | V62: =IF(E62="","",40/1.2) -> 33.33333333 | W62: =IF(B62="","",ISEVEN(B62)) -> FALSE | X62: =IF(B62="","",IF(W62=TRUE,IF(F62="I","TAK","NIE"),IF(F62="I","NIE",IF(F62="III","NIE","TAK")))) -> NIE | Y62: =IF(B62="","",IF(AND(X62="NIE",Z62="NIE"),"TAK","NIE")) -> TAK | Z62: =IF(B62="","",IF(F62="III","TAK","NIE")) -> NIE | AA62: =IF(E62="","",IF(X62="TAK","Zmiana A",IF(Y62="TAK","Zmiana B","Zmiana C"))) -> Zmiana B
A63: piątek | B63: 5 | C63: luty | D63: =YEAR(Tabela2[[#This Row],[Data]]) -> 2018 | E63: 2018-02-02 | F63: II | G63: 3184 | H63: 1743 | I63: 22.5 | J63: 23.42663149 | K63: 0.9078502886 | L63: 16.24721666 | M63: 0.722098518 | N63: 1.291111111 | O63: 0.7745266781 | P63: 46 | Q63: 1.210416667 | R63: 0.82616179 | S63: 50 | T63: =IF(E63="","",I63*60*N63) -> 1743 | U63: =IF(E63="","",(I63+I63/7.5*0.5)*3600) -> 86400 | V63: =IF(E63="","",40/1.2) -> 33.33333333 | W63: =IF(B63="","",ISEVEN(B63)) -> FALSE | X63: =IF(B63="","",IF(W63=TRUE,IF(F63="I","TAK","NIE"),IF(F63="I","NIE",IF(F63="III","NIE","TAK")))) -> TAK | Y63: =IF(B63="","",IF(AND(X63="NIE",Z63="NIE"),"TAK","NIE")) -> NIE | Z63: =IF(B63="","",IF(F63="III","TAK","NIE")) -> NIE | AA63: =IF(E63="","",IF(X63="TAK","Zmiana A",IF(Y63="TAK","Zmiana B","Zmiana C"))) -> Zmiana A
A64: piątek | B64: 5 | C64: luty | D64: =YEAR(Tabela2[[#This Row],[Data]]) -> 2018 | E64: 2018-02-02 | F64: III | G64: 3042 | H64: 2537 | I64: 15 | J64: 15.86904762 | K64: 0.8579365079 | L64: 10.51594496 | M64: 0.7010629973 | N64: 2.818888889 | O64: 0.3547497044 | P64: 21 | Q64: 2.642708333 | R64: 0.3783996847 | S64: 23 | T64: =IF(E64="","",I64*60*N64) -> 2537 | U64: =IF(E64="","",(I64+I64/7.5*0.5)*3600) -> 57600 | V64: =IF(E64="","",40/1.2) -> 33.33333333 | W64: =IF(B64="","",ISEVEN(B64)) -> FALSE | X64: =IF(B64="","",IF(W64=TRUE,IF(F64="I","TAK","NIE"),IF(F64="I","NIE",IF(F64="III","NIE","TAK")))) -> NIE | Y64: =IF(B64="","",IF(AND(X64="NIE",Z64="NIE"),"TAK","NIE")) -> NIE | Z64: =IF(B64="","",IF(F64="III","TAK","NIE")) -> TAK | AA64: =IF(E64="","",IF(X64="TAK","Zmiana A",IF(Y64="TAK","Zmiana B","Zmiana C"))) -> Zmiana C
A65: poniedziałek | B65: 6 | C65: luty | D65: =YEAR(Tabela2[[#This Row],[Data]]) -> 2018 | E65: 2018-02-05 | F65: I | G65: 5118 | H65: 3790 | I65: 30 | J65: 27.63730183 | K65: 0.8212433943 | L65: 22.7164538 | M65: 0.7572151266 | N65: 2.105555556 | O65: 0.4749340369 | P65: 28 | Q65: 1.973958333 | R65: 0.5065963061 | S65: 30 | T65: =IF(E65="","",I65*60*N65) -> 3790 | U65: =IF(E65="","",(I65+I65/7.5*0.5)*3600) -> 115200 | V65: =IF(E65="","",40/1.2) -> 33.33333333 | W65: =IF(B65="","",ISEVEN(B65)) -> TRUE | X65: =IF(B65="","",IF(W65=TRUE,IF(F65="I","TAK","NIE"),IF(F65="I","NIE",IF(F65="III","NIE","TAK")))) -> TAK | Y65: =IF(B65="","",IF(AND(X65="NIE",Z65="NIE"),"TAK","NIE")) -> NIE | Z65: =IF(B65="","",IF(F65="III","TAK","NIE")) -> NIE | AA65: =IF(E65="","",IF(X65="TAK","Zmiana A",IF(Y65="TAK","Zmiana B","Zmiana C"))) -> Zmiana A
A66: poniedziałek | B66: 6 | C66: luty | D66: =YEAR(Tabela2[[#This Row],[Data]]) -> 2018 | E66: 2018-02-05 | F66: II | G66: 2060 | H66: 1362 | I66: 22.5 | J66: 17.28174603 | K66: 0.6347442681 | L66: 12.07616005 | M66: 0.5367182245 | N66: 1.008888889 | O66: 0.9911894273 | P66: 59 | Q66: 0.9458333333 | R66: 1.057268722 | S66: 63 | T66: =IF(E66="","",I66*60*N66) -> 1362 | U66: =IF(E66="","",(I66+I66/7.5*0.5)*3600) -> 86400 | V66: =IF(E66="","",40/1.2) -> 33.33333333 | W66: =IF(B66="","",ISEVEN(B66)) -> TRUE | X66: =IF(B66="","",IF(W66=TRUE,IF(F66="I","TAK","NIE"),IF(F66="I","NIE",IF(F66="III","NIE","TAK")))) -> NIE | Y66: =IF(B66="","",IF(AND(X66="NIE",Z66="NIE"),"TAK","NIE")) -> TAK | Z66: =IF(B66="","",IF(F66="III","TAK","NIE")) -> NIE | AA66: =IF(E66="","",IF(X66="TAK","Zmiana A",IF(Y66="TAK","Zmiana B","Zmiana C"))) -> Zmiana B
A67: =IF(E67="","",TEXT(WEEKDAY(IF(E67=0,"",E67),1),"dddd")) -> wtorek | B67: =IF(E67="","",WEEKNUM(IF(E67=0,"",E67),1)) -> 6 | C67: =IF(E67="","",TEXT(IF(E67=0,"",MONTH(E67))*30,"mmmm")) -> luty | D67: =YEAR(Tabela2[[#This Row],[Data]]) -> 2018 | E67: 2018-02-06 | F67: III | G67: 5059 | H67: 4957 | I67: 7.5 | J67: 10.50793651 | K67: 1.001058201 | L67: 5.46120568 | M67: 0.7281607573 | N67: 5.324444444 | O67: 0.1878130217 | P67: 11 | Q67: 4.991666667 | R67: 0.2003338898 | S67: 12 | T67: =IF(E67="","",I67*60*N67) -> 2396 | U67: =IF(E67="","",(I67+I67/7.5*0.5)*3600) -> 28800 | V67: =IF(E67="","",40/1.2) -> 33.33333333 | W67: =IF(B67="","",ISEVEN(B67)) -> TRUE | X67: =IF(B67="","",IF(W67=TRUE,IF(F67="I","TAK","NIE"),IF(F67="I","NIE",IF(F67="III","NIE","TAK")))) -> NIE | Y67: =IF(B67="","",IF(AND(X67="NIE",Z67="NIE"),"TAK","NIE")) -> NIE | Z67: =IF(B67="","",IF(F67="III","TAK","NIE")) -> TAK | AA67: =IF(E67="","",IF(X67="TAK","Zmiana A",IF(Y67="TAK","Zmiana B","Zmiana C"))) -> Zmiana C
A68: wtorek | B68: 6 | C68: luty | D68: =YEAR(Tabela2[[#This Row],[Data]]) -> 2018 | E68: 2018-02-06 | F68: I | G68: 5526 | H68: 6226 | I68: 27.5 | J68: 32.27502572 | K68: 1.06454639 | L68: 27.90861094 | M68: 1.01485858 | N68: 2.323636364 | O68: 0.4303599374 | P68: 26 | Q68: 2.13 | R68: 0.4694835681 | S68: 28 | T68: =IF(E68="","",I68*60*N68) -> 3834 | U68: =IF(E68="","",(I68+I68/7.5*0.5)*3600) -> 105600 | V68: =IF(E68="","",40/1.2) -> 33.33333333 | W68: =IF(B68="","",ISEVEN(B68)) -> TRUE | X68: =IF(B68="","",IF(W68=TRUE,IF(F68="I","TAK","NIE"),IF(F68="I","NIE",IF(F68="III","NIE","TAK")))) -> TAK | Y68: =IF(B68="","",IF(AND(X68="NIE",Z68="NIE"),"TAK","NIE")) -> NIE | Z68: =IF(B68="","",IF(F68="III","TAK","NIE")) -> NIE | AA68: =IF(E68="","",IF(X68="TAK","Zmiana A",IF(Y68="TAK","Zmiana B","Zmiana C"))) -> Zmiana A
A69: wtorek | B69: 6 | C69: luty | D69: =YEAR(Tabela2[[#This Row],[Data]]) -> 2018 | E69: 2018-02-06 | F69: II | G69: 1842 | H69: 2092 | I69: 22.5 | J69: 16.7436828 | K69: 0.6108303465 | L69: 12.17990763 | M69: 0.5413292279 | N69: 0.8792592593 | O69: 1.137320977 | P69: 68 | Q69: 0.8243055556 | R69: 1.213142376 | S69: 73 | T69: =IF(E69="","",I69*60*N69) -> 1187 | U69: =IF(E69="","",(I69+I69/7.5*0.5)*3600) -> 86400 | V69: =IF(E69="","",40/1.2) -> 33.33333333 | W69: =IF(B69="","",ISEVEN(B69)) -> TRUE | X69: =IF(B69="","",IF(W69=TRUE,IF(F69="I","TAK","NIE"),IF(F69="I","NIE",IF(F69="III","NIE","TAK")))) -> NIE | Y69: =IF(B69="","",IF(AND(X69="NIE",Z69="NIE"),"TAK","NIE")) -> TAK | Z69: =IF(B69="","",IF(F69="III","TAK","NIE")) -> NIE | AA69: =IF(E69="","",IF(X69="TAK","Zmiana A",IF(Y69="TAK","Zmiana B","Zmiana C"))) -> Zmiana B
A70: wtorek | B70: 6 | C70: luty | D70: =YEAR(Tabela2[[#This Row],[Data]]) -> 2018 | E70: 2018-02-06 | F70: III | G70: 5059 | H70: 4957 | I70: 7.5 | J70: 10.25793651 | K70: 0.9677248677 | L70: 2.547582067 | M70: 0.3396776089 | N70: 5.184444444 | O70: 0.1928846978 | P70: 12 | Q70: 4.860416667 | R70: 0.2057436777 | S70: 12 | T70: =IF(E70="","",I70*60*N70) -> 2333 | U70: =IF(E70="","",(I70+I70/7.5*0.5)*3600) -> 28800 | V70: =IF(E70="","",40/1.2) -> 33.33333333 | W70: =IF(B70="","",ISEVEN(B70)) -> TRUE | X70: =IF(B70="","",IF(W70=TRUE,IF(F70="I","TAK","NIE"),IF(F70="I","NIE",IF(F70="III","NIE","TAK")))) -> NIE | Y70: =IF(B70="","",IF(AND(X70="NIE",Z70="NIE"),"TAK","NIE")) -> NIE | Z70: =IF(B70="","",IF(F70="III","TAK","NIE")) -> TAK | AA70: =IF(E70="","",IF(X70="TAK","Zmiana A",IF(Y70="TAK","Zmiana B","Zmiana C"))) -> Zmiana C
A71: środa | B71: 6 | C71: luty | D71: =YEAR(Tabela2[[#This Row],[Data]]) -> 2018 | E71: 2018-02-07 | F71: I | G71: 5924 | H71: 6324 | I71: 41 | J71: 43.01630376 | K71: 0.9760074087 | L71: 36.19845609 | M71: 0.8828891729 | N71: 2.028455285 | O71: 0.4929859719 | P71: 30 | Q71: 1.890151515 | R71: 0.5290581162 | S71: 32 | T71: =IF(E71="","",I71*60*N71) -> 4990 | U71: =IF(E71="","",(I71+I71/7.5*0.5)*3600) -> 157440 | V71: =IF(E71="","",40/1.2) -> 33.33333333 | W71: =IF(B71="","",ISEVEN(B71)) -> TRUE | X71: =IF(B71="","",IF(W71=TRUE,IF(F71="I","TAK","NIE"),IF(F71="I","NIE",IF(F71="III","NIE","TAK")))) -> TAK | Y71: =IF(B71="","",IF(AND(X71="NIE",Z71="NIE"),"TAK","NIE")) -> NIE | Z71: =IF(B71="","",IF(F71="III","TAK","NIE")) -> NIE | AA71: =IF(E71="","",IF(X71="TAK","Zmiana A",IF(Y71="TAK","Zmiana B","Zmiana C"))) -> Zmiana A
A72: środa | B72: 6 | C72: luty | D72: =YEAR(Tabela2[[#This Row],[Data]]) -> 2018 | E72: 2018-02-07 | F72: II | G72: 1913 | H72: 2263 | I72: 22.5 | J72: 18.80367586 | K72: 0.7023855936 | L72: 10.90568036 | M72: 0.4846969048 | N72: 0.78 | O72: 1.282051282 | P72: 77 | Q72: 0.73125 | R72: 1.367521368 | S72: 82 | T72: =IF(E72="","",I72*60*N72) -> 1053 | U72: =IF(E72="","",(I72+I72/7.5*0.5)*3600) -> 86400 | V72: =IF(E72="","",40/1.2) -> 33.33333333 | W72: =IF(B72="","",ISEVEN(B72)) -> TRUE | X72: =IF(B72="","",IF(W72=TRUE,IF(F72="I","TAK","NIE"),IF(F72="I","NIE",IF(F72="III","NIE","TAK")))) -> NIE | Y72: =IF(B72="","",IF(AND(X72="NIE",Z72="NIE"),"TAK","NIE")) -> TAK | Z72: =IF(B72="","",IF(F72="III","TAK","NIE")) -> NIE | AA72: =IF(E72="","",IF(X72="TAK","Zmiana A",IF(Y72="TAK","Zmiana B","Zmiana C"))) -> Zmiana B
A73: =IF(E73="","",TEXT(WEEKDAY(IF(E73=0,"",E73),1),"dddd")) -> środa | B73: =IF(E73="","",WEEKNUM(IF(E73=0,"",E73),1)) -> 6 | C73: =IF(E73="","",TEXT(IF(E73=0,"",MONTH(E73))*30,"mmmm")) -> luty | D73: =YEAR(Tabela2[[#This Row],[Data]]) -> 2018 | E73: 2018-02-07 | F73: III | G73: 2429 | H73: 2479 | I73: 7.5 | J73: 10.50793651 | K73: 1.001058201 | L73: 3.373272312 | M73: 0.4497696416 | N73: 5.324444444 | O73: 0.1878130217 | P73: 11 | Q73: 4.991666667 | R73: 0.2003338898 | S73: 12 | T73: =IF(E73="","",I73*60*N73) -> 2396 | U73: =IF(E73="","",(I73+I73/7.5*0.5)*3600) -> 28800 | V73: =IF(E73="","",40/1.2) -> 33.33333333 | W73: =IF(B73="","",ISEVEN(B73)) -> TRUE | X73: =IF(B73="","",IF(W73=TRUE,IF(F73="I","TAK","NIE"),IF(F73="I","NIE",IF(F73="III","NIE","TAK")))) -> NIE | Y73: =IF(B73="","",IF(AND(X73="NIE",Z73="NIE"),"TAK","NIE")) -> NIE | Z73: =IF(B73="","",IF(F73="III","TAK","NIE")) -> TAK | AA73: =IF(E73="","",IF(X73="TAK","Zmiana A",IF(Y73="TAK","Zmiana B","Zmiana C"))) -> Zmiana C
A74: czwartek | B74: 6 | C74: luty | D74: =YEAR(Tabela2[[#This Row],[Data]]) -> 2018 | E74: 2018-02-08 | F74: I | G74: 7841 | H74: 8491 | I74: 43 | J74: 49.78920744 | K74: 1.088121103 | L74: 43.83226924 | M74: 1.019355099 | N74: 2.589147287 | O74: 0.3862275449 | P74: 23 | Q74: 2.420289855 | R74: 0.4131736527 | S74: 25 | T74: =IF(E74="","",I74*60*N74) -> 6680 | U74: =IF(E74="","",(I74+I74/7.5*0.5)*3600) -> 165120 | V74: =IF(E74="","",40/1.2) -> 33.33333333 | W74: =IF(B74="","",ISEVEN(B74)) -> TRUE | X74: =IF(B74="","",IF(W74=TRUE,IF(F74="I","TAK","NIE"),IF(F74="I","NIE",IF(F74="III","NIE","TAK")))) -> TAK | Y74: =IF(B74="","",IF(AND(X74="NIE",Z74="NIE"),"TAK","NIE")) -> NIE | Z74: =IF(B74="","",IF(F74="III","TAK","NIE")) -> NIE | AA74: =IF(E74="","",IF(X74="TAK","Zmiana A",IF(Y74="TAK","Zmiana B","Zmiana C"))) -> Zmiana A
A75: czwartek | B75: 6 | C75: luty | D75: =YEAR(Tabela2[[#This Row],[Data]]) -> 2018 | E75: 2018-02-08 | F75: II | G75: 1490 | H75: 1840 | I75: 15 | J75: 12.44561508 | K75: 0.629707672 | L75: 5.692320711 | M75: 0.3794880474 | N75: 0.7677777778 | O75: 1.302460203 | P75: 78 | Q75: 0.7197916667 | R75: 1.389290883 | S75: 83 | T75: =IF(E75="","",I75*60*N75) -> 691 | U75: =IF(E75="","",(I75+I75/7.5*0.5)*3600) -> 57600 | V75: =IF(E75="","",40/1.2) -> 33.33333333 | W75: =IF(B75="","",ISEVEN(B75)) -> TRUE | X75: =IF(B75="","",IF(W75=TRUE,IF(F75="I","TAK","NIE"),IF(F75="I","NIE",IF(F75="III","NIE","TAK")))) -> NIE | Y75: =IF(B75="","",IF(AND(X75="NIE",Z75="NIE"),"TAK","NIE")) -> TAK | Z75: =IF(B75="","",IF(F75="III","TAK","NIE")) -> NIE | AA75: =IF(E75="","",IF(X75="TAK","Zmiana A",IF(Y75="TAK","Zmiana B","Zmiana C"))) -> Zmiana B
A76: czwartek | B76: 6 | C76: luty | D76: =YEAR(Tabela2[[#This Row],[Data]]) -> 2018 | E76: 2018-02-08 | F76: III | G76: 2539 | H76: 2589 | I76: 7.5 | J76: 10.50396825 | K76: 1.000529101 | L76: 2.84906861 | M76: 0.3798758146 | N76: 5.322222222 | O76: 0.1878914405 | P76: 11 | Q76: 4.989583333 | R76: 0.2004175365 | S76: 12 | T76: =IF(E76="","",I76*60*N76) -> 2395 | U76: =IF(E76="","",(I76+I76/7.5*0.5)*3600) -> 28800 | V76: =IF(E76="","",40/1.2) -> 33.33333333 | W76: =IF(B76="","",ISEVEN(B76)) -> TRUE | X76: =IF(B76="","",IF(W76=TRUE,IF(F76="I","TAK","NIE"),IF(F76="I","NIE",IF(F76="III","NIE","TAK")))) -> NIE | Y76: =IF(B76="","",IF(AND(X76="NIE",Z76="NIE"),"TAK","NIE")) -> NIE | Z76: =IF(B76="","",IF(F76="III","TAK","NIE")) -> TAK | AA76: =IF(E76="","",IF(X76="TAK","Zmiana A",IF(Y76="TAK","Zmiana B","Zmiana C"))) -> Zmiana C
A77: piątek | B77: 6 | C77: luty | D77: =YEAR(Tabela2[[#This Row],[Data]]) -> 2018 | E77: 2018-02-09 | F77: I | G77: 6959 | H77: 7659 | I77: 41 | J77: 45.05899162 | K77: 1.025829064 | L77: 39.59695285 | M77: 0.9657793378 | N77: 2.037398374 | O77: 0.4908220271 | P77: 29 | Q77: 1.898484848 | R77: 0.526735834 | S77: 32 | T77: =IF(E77="","",I77*60*N77) -> 5012 | U77: =IF(E77="","",(I77+I77/7.5*0.5)*3600) -> 157440 | V77: =IF(E77="","",40/1.2) -> 33.33333333 | W77: =IF(B77="","",ISEVEN(B77)) -> TRUE | X77: =IF(B77="","",IF(W77=TRUE,IF(F77="I","TAK","NIE"),IF(F77="I","NIE",IF(F77="III","NIE","TAK")))) -> TAK | Y77: =IF(B77="","",IF(AND(X77="NIE",Z77="NIE"),"TAK","NIE")) -> NIE | Z77: =IF(B77="","",IF(F77="III","TAK","NIE")) -> NIE | AA77: =IF(E77="","",IF(X77="TAK","Zmiana A",IF(Y77="TAK","Zmiana B","Zmiana C"))) -> Zmiana A
A78: piątek | B78: 6 | C78: luty | D78: =YEAR(Tabela2[[#This Row],[Data]]) -> 2018 | E78: 2018-02-09 | F78: II | G78: 1248 | H78: 1498 | I78: 15 | J78: 17.81463577 | K78: 0.9876423845 | L78: 11.73742018 | M78: 0.7824946787 | N78: 1.23 | O78: 0.8130081301 | P78: 49 | Q78: 1.153125 | R78: 0.8672086721 | S78: 52 | T78: =IF(E78="","",I78*60*N78) -> 1107 | U78: =IF(E78="","",(I78+I78/7.5*0.5)*3600) -> 57600 | V78: =IF(E78="","",40/1.2) -> 33.33333333 | W78: =IF(B78="","",ISEVEN(B78)) -> TRUE | X78: =IF(B78="","",IF(W78=TRUE,IF(F78="I","TAK","NIE"),IF(F78="I","NIE",IF(F78="III","NIE","TAK")))) -> NIE | Y78: =IF(B78="","",IF(AND(X78="NIE",Z78="NIE"),"TAK","NIE")) -> TAK | Z78: =IF(B78="","",IF(F78="III","TAK","NIE")) -> NIE | AA78: =IF(E78="","",IF(X78="TAK","Zmiana A",IF(Y78="TAK","Zmiana B","Zmiana C"))) -> Zmiana B
A79: piątek | B79: 6 | C79: luty | D79: =YEAR(Tabela2[[#This Row],[Data]]) -> 2018 | E79: 2018-02-09 | F79: III | G79: 2576 | H79: 2676 | I79: 7.5 | J79: 10.52380952 | K79: 1.003174603 | L79: 6.066660057 | M79: 0.8088880076 | N79: 5.333333333 | O79: 0.1875 | P79: 11 | Q79: 5 | R79: 0.2 | S79: 12 | T79: =IF(E79="","",I79*60*N79) -> 2400 | U79: =IF(E79="","",(I79+I79/7.5*0.5)*3600) -> 28800 | V79: =IF(E79="","",40/1.2) -> 33.33333333 | W79: =IF(B79="","",ISEVEN(B79)) -> TRUE | X79: =IF(B79="","",IF(W79=TRUE,IF(F79="I","TAK","NIE"),IF(F79="I","NIE",IF(F79="III","NIE","TAK")))) -> NIE | Y79: =IF(B79="","",IF(AND(X79="NIE",Z79="NIE"),"TAK","NIE")) -> NIE | Z79: =IF(B79="","",IF(F79="III","TAK","NIE")) -> TAK | AA79: =IF(E79="","",IF(X79="TAK","Zmiana A",IF(Y79="TAK","Zmiana B","Zmiana C"))) -> Zmiana C
A80: =IF(E80="","",TEXT(WEEKDAY(IF(E80=0,"",E80),1),"dddd")) -> sobota | B80: =IF(E80="","",WEEKNUM(IF(E80=0,"",E80),1)) -> 6 | C80: =IF(E80="","",TEXT(IF(E80=0,"",MONTH(E80))*30,"mmmm")) -> luty | D80: =YEAR(Tabela2[[#This Row],[Data]]) -> 2018 | E80: 2018-02-10 | F80: I | G80: 4054 | H80: 4404 | I80: 15 | J80: 20.23499742 | K80: 1.148999828 | L80: 13.65537861 | M80: 0.910358574 | N80: 4.126666667 | O80: 0.2423263328 | P80: 15 | Q80: 3.86875 | R80: 0.2584814216 | S80: 16 | T80: =IF(E80="","",I80*60*N80) -> 3714 | U80: =IF(E80="","",(I80+I80/7.5*0.5)*3600) -> 57600 | V80: =IF(E80="","",40/1.2) -> 33.33333333 | W80: =IF(B80="","",ISEVEN(B80)) -> TRUE | X80: =IF(B80="","",IF(W80=TRUE,IF(F80="I","TAK","NIE"),IF(F80="I","NIE",IF(F80="III","NIE","TAK")))) -> TAK | Y80: =IF(B80="","",IF(AND(X80="NIE",Z80="NIE"),"TAK","NIE")) -> NIE | Z80: =IF(B80="","",IF(F80="III","TAK","NIE")) -> NIE | AA80: =IF(E80="","",IF(X80="TAK","Zmiana A",IF(Y80="TAK","Zmiana B","Zmiana C"))) -> Zmiana A
A81: poniedziałek | B81: 7 | C81: luty | D81: =YEAR(Tabela2[[#This Row],[Data]]) -> 2018 | E81: 2018-02-12 | F81: I | G81: 5607 | H81: 5907 | I81: 37.5 | J81: 42.83069075 | K81: 1.062151753 | L81: 37.92068945 | M81: 1.011218385 | N81: 2.438222222 | O81: 0.4101348888 | P81: 25 | Q81: 2.285833333 | R81: 0.4374772147 | S81: 26 | T81: =IF(E81="","",I81*60*N81) -> 5486 | U81: =IF(E81="","",(I81+I81/7.5*0.5)*3600) -> 144000 | V81: =IF(E81="","",40/1.2) -> 33.33333333 | W81: =IF(B81="","",ISEVEN(B81)) -> FALSE | X81: =IF(B81="","",IF(W81=TRUE,IF(F81="I","TAK","NIE"),IF(F81="I","NIE",IF(F81="III","NIE","TAK")))) -> NIE | Y81: =IF(B81="","",IF(AND(X81="NIE",Z81="NIE"),"TAK","NIE")) -> TAK | Z81: =IF(B81="","",IF(F81="III","TAK","NIE")) -> NIE | AA81: =IF(E81="","",IF(X81="TAK","Zmiana A",IF(Y81="TAK","Zmiana B","Zmiana C"))) -> Zmiana B
A82: poniedziałek | B82: 7 | C82: luty | D82: =YEAR(Tabela2[[#This Row],[Data]]) -> 2018 | E82: 2018-02-12 | F82: II | G82: 7518 | H82: 8368 | I82: 22.5 | J82: 19.80762285 | K82: 0.74700546 | L82: 15.26451897 | M82: 0.6784230654 | N82: 3.801481481 | O82: 0.263055339 | P82: 16 | Q82: 3.563888889 | R82: 0.2805923617 | S82: 17 | T82: =IF(E82="","",I82*60*N82) -> 5132 | U82: =IF(E82="","",(I82+I82/7.5*0.5)*3600) -> 86400 | V82: =IF(E82="","",40/1.2) -> 33.33333333 | W82: =IF(B82="","",ISEVEN(B82)) -> FALSE | X82: =IF(B82="","",IF(W82=TRUE,IF(F82="I","TAK","NIE"),IF(F82="I","NIE",IF(F82="III","NIE","TAK")))) -> TAK | Y82: =IF(B82="","",IF(AND(X82="NIE",Z82="NIE"),"TAK","NIE")) -> NIE | Z82: =IF(B82="","",IF(F82="III","TAK","NIE")) -> NIE | AA82: =IF(E82="","",IF(X82="TAK","Zmiana A",IF(Y82="TAK","Zmiana B","Zmiana C"))) -> Zmiana A
A83: poniedziałek | B83: 7 | C83: luty | D83: =YEAR(Tabela2[[#This Row],[Data]]) -> 2018 | E83: 2018-02-12 | F83: III | G83: 2660 | H83: 2710 | I83: 7.5 | J83: 10.48412698 | K83: 0.9978835979 | L83: 2.883937872 | M83: 0.3845250495 | N83: 5.311111111 | O83: 0.1882845188 | P83: 11 | Q83: 4.979166667 | R83: 0.2008368201 | S83: 12 | T83: =IF(E83="","",I83*60*N83) -> 2390 | U83: =IF(E83="","",(I83+I83/7.5*0.5)*3600) -> 28800 | V83: =IF(E83="","",40/1.2) -> 33.33333333 | W83: =IF(B83="","",ISEVEN(B83)) -> FALSE | X83: =IF(B83="","",IF(W83=TRUE,IF(F83="I","TAK","NIE"),IF(F83="I","NIE",IF(F83="III","NIE","TAK")))) -> NIE | Y83: =IF(B83="","",IF(AND(X83="NIE",Z83="NIE"),"TAK","NIE")) -> NIE | Z83: =IF(B83="","",IF(F83="III","TAK","NIE")) -> TAK | AA83: =IF(E83="","",IF(X83="TAK","Zmiana A",IF(Y83="TAK","Zmiana B","Zmiana C"))) -> Zmiana C
A84: wtorek | B84: 7 | C84: luty | D84: =YEAR(Tabela2[[#This Row],[Data]]) -> 2018 | E84: 2018-02-13 | F84: I | G84: 3678 | H84: 4278 | I84: 37.5 | J84: 48.93242698 | K84: 1.22486472 | L84: 42.05617106 | M84: 1.121497895 | N84: 2.64 | O84: 0.3787878788 | P84: 23 | Q84: 2.475 | R84: 0.404040404 | S84: 24 | T84: =IF(E84="","",I84*60*N84) -> 5940 | U84: =IF(E84="","",(I84+I84/7.5*0.5)*3600) -> 144000 | V84: =IF(E84="","",40/1.2) -> 33.33333333 | W84: =IF(B84="","",ISEVEN(B84)) -> FALSE | X84: =IF(B84="","",IF(W84=TRUE,IF(F84="I","TAK","NIE"),IF(F84="I","NIE",IF(F84="III","NIE","TAK")))) -> NIE | Y84: =IF(B84="","",IF(AND(X84="NIE",Z84="NIE"),"TAK","NIE")) -> TAK | Z84: =IF(B84="","",IF(F84="III","TAK","NIE")) -> NIE | AA84: =IF(E84="","",IF(X84="TAK","Zmiana A",IF(Y84="TAK","Zmiana B","Zmiana C"))) -> Zmiana B
A85: wtorek | B85: 7 | C85: luty | D85: =YEAR(Tabela2[[#This Row],[Data]]) -> 2018 | E85: 2018-02-13 | F85: II | G85: 7005 | H85: 7555 | I85: 22.5 | J85: 22.19125458 | K85: 0.8529446479 | L85: 17.71070229 | M85: 0.7871423239 | N85: 0.9577777778 | O85: 1.044083527 | P85: 63 | Q85: 0.8979166667 | R85: 1.113689095 | S85: 67 | T85: =IF(E85="","",I85*60*N85) -> 1293 | U85: =IF(E85="","",(I85+I85/7.5*0.5)*3600) -> 86400 | V85: =IF(E85="","",40/1.2) -> 33.33333333 | W85: =IF(B85="","",ISEVEN(B85)) -> FALSE | X85: =IF(B85="","",IF(W85=TRUE,IF(F85="I","TAK","NIE"),IF(F85="I","NIE",IF(F85="III","NIE","TAK")))) -> TAK | Y85: =IF(B85="","",IF(AND(X85="NIE",Z85="NIE"),"TAK","NIE")) -> NIE | Z85: =IF(B85="","",IF(F85="III","TAK","NIE")) -> NIE | AA85: =IF(E85="","",IF(X85="TAK","Zmiana A",IF(Y85="TAK","Zmiana B","Zmiana C"))) -> Zmiana A
A86: =IF(E86="","",TEXT(WEEKDAY(IF(E86=0,"",E86),1),"dddd")) -> wtorek | B86: =IF(E86="","",WEEKNUM(IF(E86=0,"",E86),1)) -> 7 | C86: =IF(E86="","",TEXT(IF(E86=0,"",MONTH(E86))*30,"mmmm")) -> luty | D86: =YEAR(Tabela2[[#This Row],[Data]]) -> 2018 | E86: 2018-02-13 | F86: II | G86: 7005 | H86: 7555 | I86: 22.5 | J86: 22.19125458 | K86: 0.8529446479 | L86: 17.39482922 | M86: 0.7731035208 | N86: 0.9577777778 | O86: 1.044083527 | P86: 63 | Q86: 0.8979166667 | R86: 1.113689095 | S86: 67 | T86: =IF(E86="","",I86*60*N86) -> 1293 | U86: =IF(E86="","",(I86+I86/7.5*0.5)*3600) -> 86400 | V86: =IF(E86="","",40/1.2) -> 33.33333333 | W86: =IF(B86="","",ISEVEN(B86)) -> FALSE | X86: =IF(B86="","",IF(W86=TRUE,IF(F86="I","TAK","NIE"),IF(F86="I","NIE",IF(F86="III","NIE","TAK")))) -> TAK | Y86: =IF(B86="","",IF(AND(X86="NIE",Z86="NIE"),"TAK","NIE")) -> NIE | Z86: =IF(B86="","",IF(F86="III","TAK","NIE")) -> NIE | AA86: =IF(E86="","",IF(X86="TAK","Zmiana A",IF(Y86="TAK","Zmiana B","Zmiana C"))) -> Zmiana A
A87: wtorek | B87: 7 | C87: luty | D87: =YEAR(Tabela2[[#This Row],[Data]]) -> 2018 | E87: 2018-02-13 | F87: III | G87: 2478 | H87: 2578 | I87: 7.5 | J87: 10.49206349 | K87: 0.9989417989 | L87: 4.247787722 | M87: 0.5663716963 | N87: 5.315555556 | O87: 0.1881270903 | P87: 11 | Q87: 4.983333333 | R87: 0.2006688963 | S87: 12 | T87: =IF(E87="","",I87*60*N87) -> 2392 | U87: =IF(E87="","",(I87+I87/7.5*0.5)*3600) -> 28800 | V87: =IF(E87="","",40/1.2) -> 33.33333333 | W87: =IF(B87="","",ISEVEN(B87)) -> FALSE | X87: =IF(B87="","",IF(W87=TRUE,IF(F87="I","TAK","NIE"),IF(F87="I","NIE",IF(F87="III","NIE","TAK")))) -> NIE | Y87: =IF(B87="","",IF(AND(X87="NIE",Z87="NIE"),"TAK","NIE")) -> NIE | Z87: =IF(B87="","",IF(F87="III","TAK","NIE")) -> TAK | AA87: =IF(E87="","",IF(X87="TAK","Zmiana A",IF(Y87="TAK","Zmiana B","Zmiana C"))) -> Zmiana C
A88: środa | B88: 7 | C88: luty | D88: =YEAR(Tabela2[[#This Row],[Data]]) -> 2018 | E88: 2018-02-14 | F88: I | G88: 1145 | H88: 1295 | I88: 33.5 | J88: 45.03748578 | K88: 1.254850322 | L88: 38.57569359 | M88: 1.151513241 | N88: 2.957711443 | O88: 0.3380992431 | P88: 20 | Q88: 2.752314815 | R88: 0.3633305299 | S88: 22 | T88: =IF(E88="","",I88*60*N88) -> 5945 | U88: =IF(E88="","",(I88+I88/7.5*0.5)*3600) -> 128640 | V88: =IF(E88="","",40/1.2) -> 33.33333333 | W88: =IF(B88="","",ISEVEN(B88)) -> FALSE | X88: =IF(B88="","",IF(W88=TRUE,IF(F88="I","TAK","NIE"),IF(F88="I","NIE",IF(F88="III","NIE","TAK")))) -> NIE | Y88: =IF(B88="","",IF(AND(X88="NIE",Z88="NIE"),"TAK","NIE")) -> TAK | Z88: =IF(B88="","",IF(F88="III","TAK","NIE")) -> NIE | AA88: =IF(E88="","",IF(X88="TAK","Zmiana A",IF(Y88="TAK","Zmiana B","Zmiana C"))) -> Zmiana B
A89: środa | B89: 7 | C89: luty | D89: =YEAR(Tabela2[[#This Row],[Data]]) -> 2018 | E89: 2018-02-14 | F89: II | G89: 7285 | H89: 7785 | I89: 17.5 | J89: 13.27619048 | K89: 0.5872108844 | L89: 9.216785451 | M89: 0.5266734543 | N89: 0.6952380952 | O89: 1.438356164 | P89: 86 | Q89: 0.6403508772 | R89: 1.561643836 | S89: 94 | T89: =IF(E89="","",I89*60*N89) -> 730 | U89: =IF(E89="","",(I89+I89/7.5*0.5)*3600) -> 67200 | V89: =IF(E89="","",40/1.2) -> 33.33333333 | W89: =IF(B89="","",ISEVEN(B89)) -> FALSE | X89: =IF(B89="","",IF(W89=TRUE,IF(F89="I","TAK","NIE"),IF(F89="I","NIE",IF(F89="III","NIE","TAK")))) -> TAK | Y89: =IF(B89="","",IF(AND(X89="NIE",Z89="NIE"),"TAK","NIE")) -> NIE | Z89: =IF(B89="","",IF(F89="III","TAK","NIE")) -> NIE | AA89: =IF(E89="","",IF(X89="TAK","Zmiana A",IF(Y89="TAK","Zmiana B","Zmiana C"))) -> Zmiana A
A90: środa | B90: 7 | C90: luty | D90: =YEAR(Tabela2[[#This Row],[Data]]) -> 2018 | E90: 2018-02-14 | F90: III | G90: 2166 | H90: 2416 | I90: 7.5 | J90: 9.803946858 | K90: 0.9071929144 | L90: 3.790168952 | M90: 0.5053558603 | N90: 3.54 | O90: 0.2824858757 | P90: 17 | Q90: 3.31875 | R90: 0.3013182674 | S90: 18 | T90: =IF(E90="","",I90*60*N90) -> 1593 | U90: =IF(E90="","",(I90+I90/7.5*0.5)*3600) -> 28800 | V90: =IF(E90="","",40/1.2) -> 33.33333333 | W90: =IF(B90="","",ISEVEN(B90)) -> FALSE | X90: =IF(B90="","",IF(W90=TRUE,IF(F90="I","TAK","NIE"),IF(F90="I","NIE",IF(F90="III","NIE","TAK")))) -> NIE | Y90: =IF(B90="","",IF(AND(X90="NIE",Z90="NIE"),"TAK","NIE")) -> NIE | Z90: =IF(B90="","",IF(F90="III","TAK","NIE")) -> TAK | AA90: =IF(E90="","",IF(X90="TAK","Zmiana A",IF(Y90="TAK","Zmiana B","Zmiana C"))) -> Zmiana C
A91: czwartek | B91: 7 | C91: luty | D91: =YEAR(Tabela2[[#This Row],[Data]]) -> 2018 | E91: 2018-02-15 | F91: I | G91: 2344 | H91: 2744 | I91: 33.5 | J91: 44.66165014 | K91: 1.243631347 | L91: 39.10922552 | M91: 1.167439568 | N91: 1.893034826 | O91: 0.5282522996 | P91: 32 | Q91: 1.761574074 | R91: 0.567674113 | S91: 34 | T91: =IF(E91="","",I91*60*N91) -> 3805 | U91: =IF(E91="","",(I91+I91/7.5*0.5)*3600) -> 128640 | V91: =IF(E91="","",40/1.2) -> 33.33333333 | W91: =IF(B91="","",ISEVEN(B91)) -> FALSE | X91: =IF(B91="","",IF(W91=TRUE,IF(F91="I","TAK","NIE"),IF(F91="I","NIE",IF(F91="III","NIE","TAK")))) -> NIE | Y91: =IF(B91="","",IF(AND(X91="NIE",Z91="NIE"),"TAK","NIE")) -> TAK | Z91: =IF(B91="","",IF(F91="III","TAK","NIE")) -> NIE | AA91: =IF(E91="","",IF(X91="TAK","Zmiana A",IF(Y91="TAK","Zmiana B","Zmiana C"))) -> Zmiana B
A92: =IF(E92="","",TEXT(WEEKDAY(IF(E92=0,"",E92),1),"dddd")) -> czwartek | B92: =IF(E92="","",WEEKNUM(IF(E92=0,"",E92),1)) -> 7 | C92: =IF(E92="","",TEXT(IF(E92=0,"",MONTH(E92))*30,"mmmm")) -> luty | D92: =YEAR(Tabela2[[#This Row],[Data]]) -> 2018 | E92: 2018-02-15 | F92: II | G92: 4865 | H92: 5415 | I92: 22.5 | J92: 20.01709738 | K92: 0.756315439 | L92: 15.51208882 | M92: 0.6894261697 | N92: 0.9659259259 | O92: 1.035276074 | P92: 62 | Q92: 0.9055555556 | R92: 1.104294479 | S92: 66 | T92: =IF(E92="","",I92*60*N92) -> 1304 | U92: =IF(E92="","",(I92+I92/7.5*0.5)*3600) -> 86400 | V92: =IF(E92="","",40/1.2) -> 33.33333333 | W92: =IF(B92="","",ISEVEN(B92)) -> FALSE | X92: =IF(B92="","",IF(W92=TRUE,IF(F92="I","TAK","NIE"),IF(F92="I","NIE",IF(F92="III","NIE","TAK")))) -> TAK | Y92: =IF(B92="","",IF(AND(X92="NIE",Z92="NIE"),"TAK","NIE")) -> NIE | Z92: =IF(B92="","",IF(F92="III","TAK","NIE")) -> NIE | AA92: =IF(E92="","",IF(X92="TAK","Zmiana A",IF(Y92="TAK","Zmiana B","Zmiana C"))) -> Zmiana A
A93: =IF(E93="","",TEXT(WEEKDAY(IF(E93=0,"",E93),1),"dddd")) -> piątek | B93: =IF(E93="","",WEEKNUM(IF(E93=0,"",E93),1)) -> 7 | C93: =IF(E93="","",TEXT(IF(E93=0,"",MONTH(E93))*30,"mmmm")) -> luty | D93: =YEAR(Tabela2[[#This Row],[Data]]) -> 2018 | E93: 2018-02-16 | F93: I | G93: 2996 | H93: 3646 | I93: 37.5 | J93: 35.1964363 | K93: 0.8585716347 | L93: 31.12862414 | M93: 0.8300966438 | N93: 2.133777778 | O93: 0.4686523641 | P93: 28 | Q93: 2.000416667 | R93: 0.499895855 | S93: 30 | T93: =IF(E93="","",I93*60*N93) -> 4801 | U93: =IF(E93="","",(I93+I93/7.5*0.5)*3600) -> 144000 | V93: =IF(E93="","",40/1.2) -> 33.33333333 | W93: =IF(B93="","",ISEVEN(B93)) -> FALSE | X93: =IF(B93="","",IF(W93=TRUE,IF(F93="I","TAK","NIE"),IF(F93="I","NIE",IF(F93="III","NIE","TAK")))) -> NIE | Y93: =IF(B93="","",IF(AND(X93="NIE",Z93="NIE"),"TAK","NIE")) -> TAK | Z93: =IF(B93="","",IF(F93="III","TAK","NIE")) -> NIE | AA93: =IF(E93="","",IF(X93="TAK","Zmiana A",IF(Y93="TAK","Zmiana B","Zmiana C"))) -> Zmiana B
A94: =IF(E94="","",TEXT(WEEKDAY(IF(E94=0,"",E94),1),"dddd")) -> piątek | B94: =IF(E94="","",WEEKNUM(IF(E94=0,"",E94),1)) -> 7 | C94: =IF(E94="","",TEXT(IF(E94=0,"",MONTH(E94))*30,"mmmm")) -> luty | D94: =YEAR(Tabela2[[#This Row],[Data]]) -> 2018 | E94: 2018-02-16 | F94: II | G94: 6263 | H94: 6863 | I94: 22.5 | J94: 18.75311187 | K94: 0.7001383051 | L94: 11.52955217 | M94: 0.5124245411 | N94: 1.144444444 | O94: 0.8737864078 | P94: 52 | Q94: 1.072916667 | R94: 0.932038835 | S94: 56 | T94: =IF(E94="","",I94*60*N94) -> 1545 | U94: =IF(E94="","",(I94+I94/7.5*0.5)*3600) -> 86400 | V94: =IF(E94="","",40/1.2) -> 33.33333333 | W94: =IF(B94="","",ISEVEN(B94)) -> FALSE | X94: =IF(B94="","",IF(W94=TRUE,IF(F94="I","TAK","NIE"),IF(F94="I","NIE",IF(F94="III","NIE","TAK")))) -> TAK | Y94: =IF(B94="","",IF(AND(X94="NIE",Z94="NIE"),"TAK","NIE")) -> NIE | Z94: =IF(B94="","",IF(F94="III","TAK","NIE")) -> NIE | AA94: =IF(E94="","",IF(X94="TAK","Zmiana A",IF(Y94="TAK","Zmiana B","Zmiana C"))) -> Zmiana A
A95: =IF(E95="","",TEXT(WEEKDAY(IF(E95=0,"",E95),1),"dddd")) -> poniedziałek | B95: =IF(E95="","",WEEKNUM(IF(E95=0,"",E95),1)) -> 8 | C95: =IF(E95="","",TEXT(IF(E95=0,"",MONTH(E95))*30,"mmmm")) -> luty | D95: =YEAR(Tabela2[[#This Row],[Data]]) -> 2018 | E95: 2018-02-19 | F95: I | G95: 5528 | H95: 6128 | I95: 22.5 | J95: 26.02466736 | K95: 1.023318549 | L95: 21.52024042 | M95: 0.9564551299 | N95: 3.002222222 | O95: 0.3330866025 | P95: 20 | Q95: 2.814583333 | R95: 0.355292376 | S95: 21 | T95: =IF(E95="","",I95*60*N95) -> 4053 | U95: =IF(E95="","",(I95+I95/7.5*0.5)*3600) -> 86400 | V95: =IF(E95="","",40/1.2) -> 33.33333333 | W95: =IF(B95="","",ISEVEN(B95)) -> TRUE | X95: =IF(B95="","",IF(W95=TRUE,IF(F95="I","TAK","NIE"),IF(F95="I","NIE",IF(F95="III","NIE","TAK")))) -> TAK | Y95: =IF(B95="","",IF(AND(X95="NIE",Z95="NIE"),"TAK","NIE")) -> NIE | Z95: =IF(B95="","",IF(F95="III","TAK","NIE")) -> NIE | AA95: =IF(E95="","",IF(X95="TAK","Zmiana A",IF(Y95="TAK","Zmiana B","Zmiana C"))) -> Zmiana A
A96: =IF(E96="","",TEXT(WEEKDAY(IF(E96=0,"",E96),1),"dddd")) -> poniedziałek | B96: =IF(E96="","",WEEKNUM(IF(E96=0,"",E96),1)) -> 8 | C96: =IF(E96="","",TEXT(IF(E96=0,"",MONTH(E96))*30,"mmmm")) -> luty | D96: =YEAR(Tabela2[[#This Row],[Data]]) -> 2018 | E96: 2018-02-19 | F96: II | G96: 2287 | H96: 2687 | I96: 22.5 | J96: 23.21438607 | K96: 0.8984171586 | L96: 19.01947998 | M96: 0.8453102213 | N96: 1.347407407 | O96: 0.7421660253 | P96: 45 | Q96: 1.263194444 | R96: 0.7916437603 | S96: 47 | T96: =IF(E96="","",I96*60*N96) -> 1819 | U96: =IF(E96="","",(I96+I96/7.5*0.5)*3600) -> 86400 | V96: =IF(E96="","",40/1.2) -> 33.33333333 | W96: =IF(B96="","",ISEVEN(B96)) -> TRUE | X96: =IF(B96="","",IF(W96=TRUE,IF(F96="I","TAK","NIE"),IF(F96="I","NIE",IF(F96="III","NIE","TAK")))) -> NIE | Y96: =IF(B96="","",IF(AND(X96="NIE",Z96="NIE"),"TAK","NIE")) -> TAK | Z96: =IF(B96="","",IF(F96="III","TAK","NIE")) -> NIE | AA96: =IF(E96="","",IF(X96="TAK","Zmiana A",IF(Y96="TAK","Zmiana B","Zmiana C"))) -> Zmiana B
A97: =IF(E97="","",TEXT(WEEKDAY(IF(E97=0,"",E97),1),"dddd")) -> poniedziałek | B97: =IF(E97="","",WEEKNUM(IF(E97=0,"",E97),1)) -> 8 | C97: =IF(E97="","",TEXT(IF(E97=0,"",MONTH(E97))*30,"mmmm")) -> luty | D97: =YEAR(Tabela2[[#This Row],[Data]]) -> 2018 | E97: 2018-02-19 | F97: III | G97: 3489 | H97: 3639 | I97: 15 | J97: 20.10793651 | K97: 1.140529101 | L97: 13.95135555 | M97: 0.9300903703 | N97: 3.296666667 | O97: 0.3033367037 | P97: 18 | Q97: 3.090625 | R97: 0.3235591507 | S97: 19 | T97: =IF(E97="","",I97*60*N97) -> 2967 | U97: =IF(E97="","",(I97+I97/7.5*0.5)*3600) -> 57600 | V97: =IF(E97="","",40/1.2) -> 33.33333333 | W97: =IF(B97="","",ISEVEN(B97)) -> TRUE | X97: =IF(B97="","",IF(W97=TRUE,IF(F97="I","TAK","NIE"),IF(F97="I","NIE",IF(F97="III","NIE","TAK")))) -> NIE | Y97: =IF(B97="","",IF(AND(X97="NIE",Z97="NIE"),"TAK","NIE")) -> NIE | Z97: =IF(B97="","",IF(F97="III","TAK","NIE")) -> TAK | AA97: =IF(E97="","",IF(X97="TAK","Zmiana A",IF(Y97="TAK","Zmiana B","Zmiana C"))) -> Zmiana C
A98: wtorek | B98: 8 | C98: luty | D98: =YEAR(Tabela2[[#This Row],[Data]]) -> 2018 | E98: 2018-02-20 | F98: I | G98: 6194 | H98: 6844 | I98: 30 | J98: 27.40555743 | K98: 0.813518581 | L98: 20.11413344 | M98: 0.6704711146 | N98: 2.306666667 | O98: 0.4335260116 | P98: 26 | Q98: 2.1625 | R98: 0.4624277457 | S98: 28 | T98: =IF(E98="","",I98*60*N98) -> 4152 | U98: =IF(E98="","",(I98+I98/7.5*0.5)*3600) -> 115200 | V98: =IF(E98="","",40/1.2) -> 33.33333333 | W98: =IF(B98="","",ISEVEN(B98)) -> TRUE | X98: =IF(B98="","",IF(W98=TRUE,IF(F98="I","TAK","NIE"),IF(F98="I","NIE",IF(F98="III","NIE","TAK")))) -> TAK | Y98: =IF(B98="","",IF(AND(X98="NIE",Z98="NIE"),"TAK","NIE")) -> NIE | Z98: =IF(B98="","",IF(F98="III","TAK","NIE")) -> NIE | AA98: =IF(E98="","",IF(X98="TAK","Zmiana A",IF(Y98="TAK","Zmiana B","Zmiana C"))) -> Zmiana A
A99: wtorek | B99: 8 | C99: luty | D99: =YEAR(Tabela2[[#This Row],[Data]]) -> 2018 | E99: 2018-02-20 | F99: II | G99: 1593 | H99: 1793 | I99: 13 | J99: 14.73447619 | K99: 0.9026520147 | L99: 10.37602272 | M99: 0.7981555939 | N99: 1.219230769 | O99: 0.8201892744 | P99: 49 | Q99: 1.132142857 | R99: 0.8832807571 | S99: 53 | T99: =IF(E99="","",I99*60*N99) -> 951 | U99: =IF(E99="","",(I99+I99/7.5*0.5)*3600) -> 49920 | V99: =IF(E99="","",40/1.2) -> 33.33333333 | W99: =IF(B99="","",ISEVEN(B99)) -> TRUE | X99: =IF(B99="","",IF(W99=TRUE,IF(F99="I","TAK","NIE"),IF(F99="I","NIE",IF(F99="III","NIE","TAK")))) -> NIE | Y99: =IF(B99="","",IF(AND(X99="NIE",Z99="NIE"),"TAK","NIE")) -> TAK | Z99: =IF(B99="","",IF(F99="III","TAK","NIE")) -> NIE | AA99: =IF(E99="","",IF(X99="TAK","Zmiana A",IF(Y99="TAK","Zmiana B","Zmiana C"))) -> Zmiana B
A100: wtorek | B100: 8 | C100: luty | D100: =YEAR(Tabela2[[#This Row],[Data]]) -> 2018 | E100: 2018-02-20 | F100: III | G100: 3741 | H100: 3991 | I100: 15 | J100: 17.56279915 | K100: 0.9708532767 | L100: 11.11115948 | M100: 0.7407439652 | N100: 3.561111111 | O100: 0.2808112324 | P100: 17 | Q100: 3.338541667 | R100: 0.2995319813 | S100: 18 | T100: =IF(E100="","",I100*60*N100) -> 3205 | U100: =IF(E100="","",(I100+I100/7.5*0.5)*3600) -> 57600 | V100: =IF(E100="","",40/1.2) -> 33.33333333 | W100: =IF(B100="","",ISEVEN(B100)) -> TRUE | X100: =IF(B100="","",IF(W100=TRUE,IF(F100="I","TAK","NIE"),IF(F100="I","NIE",IF(F100="III","NIE","TAK")))) -> NIE | Y100: =IF(B100="","",IF(AND(X100="NIE",Z100="NIE"),"TAK","NIE")) -> NIE | Z100: =IF(B100="","",IF(F100="III","TAK","NIE")) -> TAK | AA100: =IF(E100="","",IF(X100="TAK","Zmiana A",IF(Y100="TAK","Zmiana B","Zmiana C"))) -> Zmiana C
A101: środa | B101: 8 | C101: luty | D101: =YEAR(Tabela2[[#This Row],[Data]]) -> 2018 | E101: 2018-02-21 | F101: I | G101: 6580 | H101: 7380 | I101: 37.5 | J101: 38.66530465 | K101: 0.9510747906 | L101: 34.20116461 | M101: 0.9120310563 | N101: 2.242222222 | O101: 0.4459861249 | P101: 27 | Q101: 2.102083333 | R101: 0.4757185332 | S101: 29 | T101: =IF(E101="","",I101*60*N101) -> 5045 | U101: =IF(E101="","",(I101+I101/7.5*0.5)*3600) -> 144000 | V101: =IF(E101="","",40/1.2) -> 33.33333333 | W101: =IF(B101="","",ISEVEN(B101)) -> TRUE | X101: =IF(B101="","",IF(W101=TRUE,IF(F101="I","TAK","NIE"),IF(F101="I","NIE",IF(F101="III","NIE","TAK")))) -> TAK | Y101: =IF(B101="","",IF(AND(X101="NIE",Z101="NIE"),"TAK","NIE")) -> NIE | Z101: =IF(B101="","",IF(F101="III","TAK","NIE")) -> NIE | AA101: =IF(E101="","",IF(X101="TAK","Zmiana A",IF(Y101="TAK","Zmiana B","Zmiana C"))) -> Zmiana A
A102: środa | B102: 8 | C102: luty | D102: =YEAR(Tabela2[[#This Row],[Data]]) -> 2018 | E102: 2018-02-21 | F102: III | G102: 7313 | H102: 7713 | I102: 15 | J102: 17.56279915 | K102: 0.9708532767 | L102: 12.57326106 | M102: 0.8382174038 | N102: 3.561111111 | O102: 0.2808112324 | P102: 17 | Q102: 3.338541667 | R102: 0.2995319813 | S102: 18 | T102: =IF(E102="","",I102*60*N102) -> 3205 | U102: =IF(E102="","",(I102+I102/7.5*0.5)*3600) -> 57600 | V102: =IF(E102="","",40/1.2) -> 33.33333333 | W102: =IF(B102="","",ISEVEN(B102)) -> TRUE | X102: =IF(B102="","",IF(W102=TRUE,IF(F102="I","TAK","NIE"),IF(F102="I","NIE",IF(F102="III","NIE","TAK")))) -> NIE | Y102: =IF(B102="","",IF(AND(X102="NIE",Z102="NIE"),"TAK","NIE")) -> NIE | Z102: =IF(B102="","",IF(F102="III","TAK","NIE")) -> TAK | AA102: =IF(E102="","",IF(X102="TAK","Zmiana A",IF(Y102="TAK","Zmiana B","Zmiana C"))) -> Zmiana C
A103: =IF(E103="","",TEXT(WEEKDAY(IF(E103=0,"",E103),1),"dddd")) -> środa | B103: =IF(E103="","",WEEKNUM(IF(E103=0,"",E103),1)) -> 8 | C103: =IF(E103="","",TEXT(IF(E103=0,"",MONTH(E103))*30,"mmmm")) -> luty | D103: =YEAR(Tabela2[[#This Row],[Data]]) -> 2018 | E103: 2018-02-21 | F103: III | G103: 7313 | H103: 7713 | I103: 15 | J103: 18.69793057 | K103: 1.046528705 | L103: 12.36036938 | M103: 0.8240246251 | N103: 3.217777778 | O103: 0.3107734807 | P103: 19 | Q103: 3.016666667 | R103: 0.3314917127 | S103: 20 | T103: =IF(E103="","",I103*60*N103) -> 2896 | U103: =IF(E103="","",(I103+I103/7.5*0.5)*3600) -> 57600 | V103: =IF(E103="","",40/1.2) -> 33.33333333 | W103: =IF(B103="","",ISEVEN(B103)) -> TRUE | X103: =IF(B103="","",IF(W103=TRUE,IF(F103="I","TAK","NIE"),IF(F103="I","NIE",IF(F103="III","NIE","TAK")))) -> NIE | Y103: =IF(B103="","",IF(AND(X103="NIE",Z103="NIE"),"TAK","NIE")) -> NIE | Z103: =IF(B103="","",IF(F103="III","TAK","NIE")) -> TAK | AA103: =IF(E103="","",IF(X103="TAK","Zmiana A",IF(Y103="TAK","Zmiana B","Zmiana C"))) -> Zmiana C
A104: czwartek | B104: 8 | C104: luty | D104: =YEAR(Tabela2[[#This Row],[Data]]) -> 2018 | E104: 2018-02-22 | F104: II | G104: 1285 | H104: 1585 | I104: 7.5 | J104: 7.731556408 | K104: 0.6308741878 | L104: 3.304231754 | M104: 0.4405642338 | N104: 1.284444444 | O104: 0.7785467128 | P104: 47 | Q104: 1.204166667 | R104: 0.830449827 | S104: 50 | T104: =IF(E104="","",I104*60*N104) -> 578 | U104: =IF(E104="","",(I104+I104/7.5*0.5)*3600) -> 28800 | V104: =IF(E104="","",40/1.2) -> 33.33333333 | W104: =IF(B104="","",ISEVEN(B104)) -> TRUE | X104: =IF(B104="","",IF(W104=TRUE,IF(F104="I","TAK","NIE"),IF(F104="I","NIE",IF(F104="III","NIE","TAK")))) -> NIE | Y104: =IF(B104="","",IF(AND(X104="NIE",Z104="NIE"),"TAK","NIE")) -> TAK | Z104: =IF(B104="","",IF(F104="III","TAK","NIE")) -> NIE | AA104: =IF(E104="","",IF(X104="TAK","Zmiana A",IF(Y104="TAK","Zmiana B","Zmiana C"))) -> Zmiana B
A105: czwartek | B105: 8 | C105: luty | D105: =YEAR(Tabela2[[#This Row],[Data]]) -> 2018 | E105: 2018-02-22 | F105: III | G105: 2991 | H105: 3241 | I105: 15 | J105: 19.68439063 | K105: 1.112292709 | L105: 15.3161956 | M105: 1.021079706 | N105: 3.042222222 | O105: 0.3287070855 | P105: 20 | Q105: 2.852083333 | R105: 0.3506208912 | S105: 21 | T105: =IF(E105="","",I105*60*N105) -> 2738 | U105: =IF(E105="","",(I105+I105/7.5*0.5)*3600) -> 57600 | V105: =IF(E105="","",40/1.2) -> 33.33333333 | W105: =IF(B105="","",ISEVEN(B105)) -> TRUE | X105: =IF(B105="","",IF(W105=TRUE,IF(F105="I","TAK","NIE"),IF(F105="I","NIE",IF(F105="III","NIE","TAK")))) -> NIE | Y105: =IF(B105="","",IF(AND(X105="NIE",Z105="NIE"),"TAK","NIE")) -> NIE | Z105: =IF(B105="","",IF(F105="III","TAK","NIE")) -> TAK | AA105: =IF(E105="","",IF(X105="TAK","Zmiana A",IF(Y105="TAK","Zmiana B","Zmiana C"))) -> Zmiana C
A106: piątek | B106: 8 | C106: luty | D106: =YEAR(Tabela2[[#This Row],[Data]]) -> 2018 | E106: 2018-02-23 | F106: I | G106: 13187 | H106: 14487 | I106: 45 | J106: 43.11946927 | K106: 0.8915437616 | L106: 36.68008684 | M106: 0.8151130409 | N106: 1.975185185 | O106: 0.5062816426 | P106: 30 | Q106: 1.851736111 | R106: 0.5400337521 | S106: 32 | T106: =IF(E106="","",I106*60*N106) -> 5333 | U106: =IF(E106="","",(I106+I106/7.5*0.5)*3600) -> 172800 | V106: =IF(E106="","",40/1.2) -> 33.33333333 | W106: =IF(B106="","",ISEVEN(B106)) -> TRUE | X106: =IF(B106="","",IF(W106=TRUE,IF(F106="I","TAK","NIE"),IF(F106="I","NIE",IF(F106="III","NIE","TAK")))) -> TAK | Y106: =IF(B106="","",IF(AND(X106="NIE",Z106="NIE"),"TAK","NIE")) -> NIE | Z106: =IF(B106="","",IF(F106="III","TAK","NIE")) -> NIE | AA106: =IF(E106="","",IF(X106="TAK","Zmiana A",IF(Y106="TAK","Zmiana B","Zmiana C"))) -> Zmiana A
A107: piątek | B107: 8 | C107: luty | D107: =YEAR(Tabela2[[#This Row],[Data]]) -> 2018 | E107: 2018-02-23 | F107: I | G107: 13187 | H107: 14487 | I107: 45 | J107: 43.11946927 | K107: 0.8915437616 | L107: 39.06030138 | M107: 0.8680066974 | N107: 1.975185185 | O107: 0.5062816426 | P107: 30 | Q107: 1.851736111 | R107: 0.5400337521 | S107: 32 | T107: =IF(E107="","",I107*60*N107) -> 5333 | U107: =IF(E107="","",(I107+I107/7.5*0.5)*3600) -> 172800 | V107: =IF(E107="","",40/1.2) -> 33.33333333 | W107: =IF(B107="","",ISEVEN(B107)) -> TRUE | X107: =IF(B107="","",IF(W107=TRUE,IF(F107="I","TAK","NIE"),IF(F107="I","NIE",IF(F107="III","NIE","TAK")))) -> TAK | Y107: =IF(B107="","",IF(AND(X107="NIE",Z107="NIE"),"TAK","NIE")) -> NIE | Z107: =IF(B107="","",IF(F107="III","TAK","NIE")) -> NIE | AA107: =IF(E107="","",IF(X107="TAK","Zmiana A",IF(Y107="TAK","Zmiana B","Zmiana C"))) -> Zmiana A
A108: piątek | B108: 8 | C108: luty | D108: =YEAR(Tabela2[[#This Row],[Data]]) -> 2018 | E108: 2018-02-23 | F108: III | G108: 3712 | H108: 4062 | I108: 15 | J108: 18.59128734 | K108: 1.039419156 | L108: 13.19060449 | M108: 0.8793736327 | N108: 3.074444444 | O108: 0.3252620166 | P108: 20 | Q108: 2.882291667 | R108: 0.3469461511 | S108: 21 | T108: =IF(E108="","",I108*60*N108) -> 2767 | U108: =IF(E108="","",(I108+I108/7.5*0.5)*3600) -> 57600 | V108: =IF(E108="","",40/1.2) -> 33.33333333 | W108: =IF(B108="","",ISEVEN(B108)) -> TRUE | X108: =IF(B108="","",IF(W108=TRUE,IF(F108="I","TAK","NIE"),IF(F108="I","NIE",IF(F108="III","NIE","TAK")))) -> NIE | Y108: =IF(B108="","",IF(AND(X108="NIE",Z108="NIE"),"TAK","NIE")) -> NIE | Z108: =IF(B108="","",IF(F108="III","TAK","NIE")) -> TAK | AA108: =IF(E108="","",IF(X108="TAK","Zmiana A",IF(Y108="TAK","Zmiana B","Zmiana C"))) -> Zmiana C
A109: =IF(E109="","",TEXT(WEEKDAY(IF(E109=0,"",E109),1),"dddd")) -> sobota | B109: =IF(E109="","",WEEKNUM(IF(E109=0,"",E109),1)) -> 8 | C109: =IF(E109="","",TEXT(IF(E109=0,"",MONTH(E109))*30,"mmmm")) -> luty | D109: =YEAR(Tabela2[[#This Row],[Data]]) -> 2018 | E109: 2018-02-24 | F109: I | G109: 1346 | H109: 1546 | I109: 7.5 | J109: 8.733857143 | K109: 0.7645142857 | L109: 2.236960009 | M109: 0.2982613345 | N109: 1.724444444 | O109: 0.5798969072 | P109: 35 | Q109: 1.437037037 | R109: 0.6958762887 | S109: 42 | T109: =IF(E109="","",I109*60*N109) -> 776 | U109: =IF(E109="","",(I109+I109/7.5*0.5)*3600) -> 28800 | V109: =IF(E109="","",40/1.2) -> 33.33333333 | W109: =IF(B109="","",ISEVEN(B109)) -> TRUE | X109: =IF(B109="","",IF(W109=TRUE,IF(F109="I","TAK","NIE"),IF(F109="I","NIE",IF(F109="III","NIE","TAK")))) -> TAK | Y109: =IF(B109="","",IF(AND(X109="NIE",Z109="NIE"),"TAK","NIE")) -> NIE | Z109: =IF(B109="","",IF(F109="III","TAK","NIE")) -> NIE | AA109: =IF(E109="","",IF(X109="TAK","Zmiana A",IF(Y109="TAK","Zmiana B","Zmiana C"))) -> Zmiana A
A110: poniedziałek | B110: 9 | C110: luty | D110: =YEAR(Tabela2[[#This Row],[Data]]) -> 2018 | E110: 2018-02-26 | F110: I | G110: 1668 | H110: 1968 | I110: 37.5 | J110: 50.61296288 | K110: 1.26967901 | L110: 44.5741981 | M110: 1.188645283 | N110: 2.28 | O110: 0.4385964912 | P110: 26 | Q110: 2.1375 | R110: 0.4678362573 | S110: 28 | T110: =IF(E110="","",I110*60*N110) -> 5130 | U110: =IF(E110="","",(I110+I110/7.5*0.5)*3600) -> 144000 | V110: =IF(E110="","",40/1.2) -> 33.33333333 | W110: =IF(B110="","",ISEVEN(B110)) -> FALSE | X110: =IF(B110="","",IF(W110=TRUE,IF(F110="I","TAK","NIE"),IF(F110="I","NIE",IF(F110="III","NIE","TAK")))) -> NIE | Y110: =IF(B110="","",IF(AND(X110="NIE",Z110="NIE"),"TAK","NIE")) -> TAK | Z110: =IF(B110="","",IF(F110="III","TAK","NIE")) -> NIE | AA110: =IF(E110="","",IF(X110="TAK","Zmiana A",IF(Y110="TAK","Zmiana B","Zmiana C"))) -> Zmiana B
A111: poniedziałek | B111: 9 | C111: luty | D111: =YEAR(Tabela2[[#This Row],[Data]]) -> 2018 | E111: 2018-02-26 | F111: II | G111: 13681 | H111: 15381 | I111: 15 | J111: 10.73461236 | K111: 0.5156408239 | L111: 3.663750792 | M111: 0.2442500528 | N111: 1.093333333 | O111: 0.9146341463 | P111: 55 | Q111: 1.025 | R111: 0.9756097561 | S111: 59 | T111: =IF(E111="","",I111*60*N111) -> 984 | U111: =IF(E111="","",(I111+I111/7.5*0.5)*3600) -> 57600 | V111: =IF(E111="","",40/1.2) -> 33.33333333 | W111: =IF(B111="","",ISEVEN(B111)) -> FALSE | X111: =IF(B111="","",IF(W111=TRUE,IF(F111="I","TAK","NIE"),IF(F111="I","NIE",IF(F111="III","NIE","TAK")))) -> TAK | Y111: =IF(B111="","",IF(AND(X111="NIE",Z111="NIE"),"TAK","NIE")) -> NIE | Z111: =IF(B111="","",IF(F111="III","TAK","NIE")) -> NIE | AA111: =IF(E111="","",IF(X111="TAK","Zmiana A",IF(Y111="TAK","Zmiana B","Zmiana C"))) -> Zmiana A
A112: poniedziałek | B112: 9 | C112: luty | D112: =YEAR(Tabela2[[#This Row],[Data]]) -> 2018 | E112: 2018-02-26 | F112: I | G112: 1668 | H112: 1968 | I112: 37.5 | J112: 50.61296288 | K112: 1.26967901 | L112: 43.30911276 | M112: 1.154909674 | N112: 2.28 | O112: 0.4385964912 | P112: 26 | Q112: 2.1375 | R112: 0.4678362573 | S112: 28 | T112: =IF(E112="","",I112*60*N112) -> 5130 | U112: =IF(E112="","",(I112+I112/7.5*0.5)*3600) -> 144000 | V112: =IF(E112="","",40/1.2) -> 33.33333333 | W112: =IF(B112="","",ISEVEN(B112)) -> FALSE | X112: =IF(B112="","",IF(W112=TRUE,IF(F112="I","TAK","NIE"),IF(F112="I","NIE",IF(F112="III","NIE","TAK")))) -> NIE | Y112: =IF(B112="","",IF(AND(X112="NIE",Z112="NIE"),"TAK","NIE")) -> TAK | Z112: =IF(B112="","",IF(F112="III","TAK","NIE")) -> NIE | AA112: =IF(E112="","",IF(X112="TAK","Zmiana A",IF(Y112="TAK","Zmiana B","Zmiana C"))) -> Zmiana B
A113: poniedziałek | B113: 9 | C113: luty | D113: =YEAR(Tabela2[[#This Row],[Data]]) -> 2018 | E113: 2018-02-26 | F113: III | G113: 3615 | H113: 3865 | I113: 22.5 | J113: 21.90833333 | K113: 0.8403703704 | L113: 15.50433271 | M113: 0.6890814537 | N113: 2.336296296 | O113: 0.4280279011 | P113: 26 | Q113: 2.190277778 | R113: 0.4565630945 | S113: 27 | T113: =IF(E113="","",I113*60*N113) -> 3154 | U113: =IF(E113="","",(I113+I113/7.5*0.5)*3600) -> 86400 | V113: =IF(E113="","",40/1.2) -> 33.33333333 | W113: =IF(B113="","",ISEVEN(B113)) -> FALSE | X113: =IF(B113="","",IF(W113=TRUE,IF(F113="I","TAK","NIE"),IF(F113="I","NIE",IF(F113="III","NIE","TAK")))) -> NIE | Y113: =IF(B113="","",IF(AND(X113="NIE",Z113="NIE"),"TAK","NIE")) -> NIE | Z113: =IF(B113="","",IF(F113="III","TAK","NIE")) -> TAK | AA113: =IF(E113="","",IF(X113="TAK","Zmiana A",IF(Y113="TAK","Zmiana B","Zmiana C"))) -> Zmiana C
A114: wtorek | B114: 9 | C114: luty | D114: =YEAR(Tabela2[[#This Row],[Data]]) -> 2018 | E114: 2018-02-27 | F114: I | G114: 1660 | H114: 1960 | I114: 30 | J114: 30.91805558 | K114: 0.9306018528 | L114: 23.03152 | M114: 0.7677173332 | N114: 2.451111111 | O114: 0.4079782412 | P114: 24 | Q114: 2.297916667 | R114: 0.4351767906 | S114: 26 | T114: =IF(E114="","",I114*60*N114) -> 4412 | U114: =IF(E114="","",(I114+I114/7.5*0.5)*3600) -> 115200 | V114: =IF(E114="","",40/1.2) -> 33.33333333 | W114: =IF(B114="","",ISEVEN(B114)) -> FALSE | X114: =IF(B114="","",IF(W114=TRUE,IF(F114="I","TAK","NIE"),IF(F114="I","NIE",IF(F114="III","NIE","TAK")))) -> NIE | Y114: =IF(B114="","",IF(AND(X114="NIE",Z114="NIE"),"TAK","NIE")) -> TAK | Z114: =IF(B114="","",IF(F114="III","TAK","NIE")) -> NIE | AA114: =IF(E114="","",IF(X114="TAK","Zmiana A",IF(Y114="TAK","Zmiana B","Zmiana C"))) -> Zmiana B
A115: =IF(E115="","",TEXT(WEEKDAY(IF(E115=0,"",E115),1),"dddd")) -> wtorek | B115: =IF(E115="","",WEEKNUM(IF(E115=0,"",E115),1)) -> 9 | C115: =IF(E115="","",TEXT(IF(E115=0,"",MONTH(E115))*30,"mmmm")) -> luty | D115: =YEAR(Tabela2[[#This Row],[Data]]) -> 2018 | E115: 2018-02-27 | F115: II | G115: 12677 | H115: 14227 | I115: 15 | J115: 8.309882232 | K115: 0.3539921488 | L115: 1.561816024 | M115: 0.1041210683 | N115: 1.035555556 | O115: 0.9656652361 | P115: 58 | Q115: 0.9708333333 | R115: 1.030042918 | S115: 62 | T115: =IF(E115="","",I115*60*N115) -> 932 | U115: =IF(E115="","",(I115+I115/7.5*0.5)*3600) -> 57600 | V115: =IF(E115="","",40/1.2) -> 33.33333333 | W115: =IF(B115="","",ISEVEN(B115)) -> FALSE | X115: =IF(B115="","",IF(W115=TRUE,IF(F115="I","TAK","NIE"),IF(F115="I","NIE",IF(F115="III","NIE","TAK")))) -> TAK | Y115: =IF(B115="","",IF(AND(X115="NIE",Z115="NIE"),"TAK","NIE")) -> NIE | Z115: =IF(B115="","",IF(F115="III","TAK","NIE")) -> NIE | AA115: =IF(E115="","",IF(X115="TAK","Zmiana A",IF(Y115="TAK","Zmiana B","Zmiana C"))) -> Zmiana A
A116: wtorek | B116: 9 | C116: luty | D116: =YEAR(Tabela2[[#This Row],[Data]]) -> 2018 | E116: 2018-02-27 | F116: I | G116: 1660 | H116: 1960 | I116: 37.5 | J116: 50.61296288 | K116: 1.26967901 | L116: 43.27596537 | M116: 1.154025743 | N116: 2.28 | O116: 0.4385964912 | P116: 26 | Q116: 2.1375 | R116: 0.4678362573 | S116: 28 | T116: =IF(E116="","",I116*60*N116) -> 5130 | U116: =IF(E116="","",(I116+I116/7.5*0.5)*3600) -> 144000 | V116: =IF(E116="","",40/1.2) -> 33.33333333 | W116: =IF(B116="","",ISEVEN(B116)) -> FALSE | X116: =IF(B116="","",IF(W116=TRUE,IF(F116="I","TAK","NIE"),IF(F116="I","NIE",IF(F116="III","NIE","TAK")))) -> NIE | Y116: =IF(B116="","",IF(AND(X116="NIE",Z116="NIE"),"TAK","NIE")) -> TAK | Z116: =IF(B116="","",IF(F116="III","TAK","NIE")) -> NIE | AA116: =IF(E116="","",IF(X116="TAK","Zmiana A",IF(Y116="TAK","Zmiana B","Zmiana C"))) -> Zmiana B
A117: wtorek | B117: 9 | C117: luty | D117: =YEAR(Tabela2[[#This Row],[Data]]) -> 2018 | E117: 2018-02-27 | F117: III | G117: 3428 | H117: 3728 | I117: 22.5 | J117: 24.70962885 | K117: 0.9648723934 | L117: 19.39408536 | M117: 0.8619593495 | N117: 2.30962963 | O117: 0.4329698525 | P117: 26 | Q117: 2.165277778 | R117: 0.4618345093 | S117: 28 | T117: =IF(E117="","",I117*60*N117) -> 3118 | U117: =IF(E117="","",(I117+I117/7.5*0.5)*3600) -> 86400 | V117: =IF(E117="","",40/1.2) -> 33.33333333 | W117: =IF(B117="","",ISEVEN(B117)) -> FALSE | X117: =IF(B117="","",IF(W117=TRUE,IF(F117="I","TAK","NIE"),IF(F117="I","NIE",IF(F117="III","NIE","TAK")))) -> NIE | Y117: =IF(B117="","",IF(AND(X117="NIE",Z117="NIE"),"TAK","NIE")) -> NIE | Z117: =IF(B117="","",IF(F117="III","TAK","NIE")) -> TAK | AA117: =IF(E117="","",IF(X117="TAK","Zmiana A",IF(Y117="TAK","Zmiana B","Zmiana C"))) -> Zmiana C
A118: środa | B118: 9 | C118: luty | D118: =YEAR(Tabela2[[#This Row],[Data]]) -> 2018 | E118: 2018-02-28 | F118: I | G118: 1352 | H118: 1602 | I118: 37.5 | J118: 50.61296288 | K118: 1.26967901 | L118: 46.42514837 | M118: 1.238003956 | N118: 2.28 | O118: 0.4385964912 | P118: 26 | Q118: 2.1375 | R118: 0.4678362573 | S118: 28 | T118: =IF(E118="","",I118*60*N118) -> 5130 | U118: =IF(E118="","",(I118+I118/7.5*0.5)*3600) -> 144000 | V118: =IF(E118="","",40/1.2) -> 33.33333333 | W118: =IF(B118="","",ISEVEN(B118)) -> FALSE | X118: =IF(B118="","",IF(W118=TRUE,IF(F118="I","TAK","NIE"),IF(F118="I","NIE",IF(F118="III","NIE","TAK")))) -> NIE | Y118: =IF(B118="","",IF(AND(X118="NIE",Z118="NIE"),"TAK","NIE")) -> TAK | Z118: =IF(B118="","",IF(F118="III","TAK","NIE")) -> NIE | AA118: =IF(E118="","",IF(X118="TAK","Zmiana A",IF(Y118="TAK","Zmiana B","Zmiana C"))) -> Zmiana B
A119: środa | B119: 9 | C119: luty | D119: =YEAR(Tabela2[[#This Row],[Data]]) -> 2018 | E119: 2018-02-28 | F119: II | G119: 13253 | H119: 14953 | I119: 15 | J119: 11.42952381 | K119: 0.561968254 | L119: 4.833684429 | M119: 0.3222456286 | N119: 0.7966666667 | O119: 1.255230126 | P119: 75 | Q119: 0.746875 | R119: 1.338912134 | S119: 80 | T119: =IF(E119="","",I119*60*N119) -> 717 | U119: =IF(E119="","",(I119+I119/7.5*0.5)*3600) -> 57600 | V119: =IF(E119="","",40/1.2) -> 33.33333333 | W119: =IF(B119="","",ISEVEN(B119)) -> FALSE | X119: =IF(B119="","",IF(W119=TRUE,IF(F119="I","TAK","NIE"),IF(F119="I","NIE",IF(F119="III","NIE","TAK")))) -> TAK | Y119: =IF(B119="","",IF(AND(X119="NIE",Z119="NIE"),"TAK","NIE")) -> NIE | Z119: =IF(B119="","",IF(F119="III","TAK","NIE")) -> NIE | AA119: =IF(E119="","",IF(X119="TAK","Zmiana A",IF(Y119="TAK","Zmiana B","Zmiana C"))) -> Zmiana A
A120: środa | B120: 9 | C120: luty | D120: =YEAR(Tabela2[[#This Row],[Data]]) -> 2018 | E120: 2018-02-28 | F120: I | G120: 1352 | H120: 1602 | I120: 37.5 | J120: 50.61296288 | K120: 1.26967901 | L120: 46.20947369 | M120: 1.232252632 | N120: 2.28 | O120: 0.4385964912 | P120: 26 | Q120: 2.1375 | R120: 0.4678362573 | S120: 28 | T120: =IF(E120="","",I120*60*N120) -> 5130 | U120: =IF(E120="","",(I120+I120/7.5*0.5)*3600) -> 144000 | V120: =IF(E120="","",40/1.2) -> 33.33333333 | W120: =IF(B120="","",ISEVEN(B120)) -> FALSE | X120: =IF(B120="","",IF(W120=TRUE,IF(F120="I","TAK","NIE"),IF(F120="I","NIE",IF(F120="III","NIE","TAK")))) -> NIE | Y120: =IF(B120="","",IF(AND(X120="NIE",Z120="NIE"),"TAK","NIE")) -> TAK | Z120: =IF(B120="","",IF(F120="III","TAK","NIE")) -> NIE | AA120: =IF(E120="","",IF(X120="TAK","Zmiana A",IF(Y120="TAK","Zmiana B","Zmiana C"))) -> Zmiana B
A121: środa | B121: 9 | C121: luty | D121: =YEAR(Tabela2[[#This Row],[Data]]) -> 2018 | E121: 2018-02-28 | F121: III | G121: 3968 | H121: 4218 | I121: 22.5 | J121: 23.63557626 | K121: 0.9171367226 | L121: 18.1276203 | M121: 0.8056720134 | N121: 2.396296296 | O121: 0.4173106646 | P121: 25 | Q121: 2.246527778 | R121: 0.4451313756 | S121: 27 | T121: =IF(E121="","",I121*60*N121) -> 3235 | U121: =IF(E121="","",(I121+I121/7.5*0.5)*3600) -> 86400 | V121: =IF(E121="","",40/1.2) -> 33.33333333 | W121: =IF(B121="","",ISEVEN(B121)) -> FALSE | X121: =IF(B121="","",IF(W121=TRUE,IF(F121="I","TAK","NIE"),IF(F121="I","NIE",IF(F121="III","NIE","TAK")))) -> NIE | Y121: =IF(B121="","",IF(AND(X121="NIE",Z121="NIE"),"TAK","NIE")) -> NIE | Z121: =IF(B121="","",IF(F121="III","TAK","NIE")) -> TAK | AA121: =IF(E121="","",IF(X121="TAK","Zmiana A",IF(Y121="TAK","Zmiana B","Zmiana C"))) -> Zmiana C
A122: =IF(E122="","",TEXT(WEEKDAY(IF(E122=0,"",E122),1),"dddd")) -> czwartek | B122: =IF(E122="","",WEEKNUM(IF(E122=0,"",E122),1)) -> 9 | C122: =IF(E122="","",TEXT(IF(E122=0,"",MONTH(E122))*30,"mmmm")) -> marzec | D122: =YEAR(Tabela2[[#This Row],[Data]]) -> 2018 | E122: 2018-03-01 | F122: I | G122: 1718 | H122: 2068 | I122: 30 | J122: 34.43695563 | K122: 1.147898521 | L122: 32.53976746 | M122: 1.084658915 | N122: 2.526111111 | O122: 0.3958654058 | P122: 24 | Q122: 2.368229167 | R122: 0.4222564328 | S122: 25 | T122: =IF(E122="","",I122*60*N122) -> 4547 | U122: =IF(E122="","",(I122+I122/7.5*0.5)*3600) -> 115200 | V122: =IF(E122="","",40/1.2) -> 33.33333333 | W122: =IF(B122="","",ISEVEN(B122)) -> FALSE | X122: =IF(B122="","",IF(W122=TRUE,IF(F122="I","TAK","NIE"),IF(F122="I","NIE",IF(F122="III","NIE","TAK")))) -> NIE | Y122: =IF(B122="","",IF(AND(X122="NIE",Z122="NIE"),"TAK","NIE")) -> TAK | Z122: =IF(B122="","",IF(F122="III","TAK","NIE")) -> NIE | AA122: =IF(E122="","",IF(X122="TAK","Zmiana A",IF(Y122="TAK","Zmiana B","Zmiana C"))) -> Zmiana B
A123: czwartek | B123: 9 | C123: marzec | D123: =YEAR(Tabela2[[#This Row],[Data]]) -> 2018 | E123: 2018-03-01 | F123: II | G123: 12440 | H123: 13890 | I123: 14 | J123: 9.437862606 | K123: 0.6741330433 | L123: 10.57253183 | M123: 0.7551808452 | N123: 1.021428571 | O123: 0.979020979 | P123: 59 | Q123: 0.9533333333 | R123: 1.048951049 | S123: 63 | T123: =IF(E123="","",I123*60*N123) -> 858 | U123: =IF(E123="","",(I123+I123/7.5*0.5)*3600) -> 53760 | V123: =IF(E123="","",40/1.2) -> 33.33333333 | W123: =IF(B123="","",ISEVEN(B123)) -> FALSE | X123: =IF(B123="","",IF(W123=TRUE,IF(F123="I","TAK","NIE"),IF(F123="I","NIE",IF(F123="III","NIE","TAK")))) -> TAK | Y123: =IF(B123="","",IF(AND(X123="NIE",Z123="NIE"),"TAK","NIE")) -> NIE | Z123: =IF(B123="","",IF(F123="III","TAK","NIE")) -> NIE | AA123: =IF(E123="","",IF(X123="TAK","Zmiana A",IF(Y123="TAK","Zmiana B","Zmiana C"))) -> Zmiana A
A124: czwartek | B124: 9 | C124: marzec | D124: =YEAR(Tabela2[[#This Row],[Data]]) -> 2018 | E124: 2018-03-01 | F124: I | G124: 1718 | H124: 2068 | I124: 37.5 | J124: 49.61296288 | K124: 1.323012344 | L124: 51.23900449 | M124: 1.366373453 | N124: 2.28 | O124: 0.4385964912 | P124: 26 | Q124: 2.1375 | R124: 0.4678362573 | S124: 28 | T124: =IF(E124="","",I124*60*N124) -> 5130 | U124: =IF(E124="","",(I124+I124/7.5*0.5)*3600) -> 144000 | V124: =IF(E124="","",40/1.2) -> 33.33333333 | W124: =IF(B124="","",ISEVEN(B124)) -> FALSE | X124: =IF(B124="","",IF(W124=TRUE,IF(F124="I","TAK","NIE"),IF(F124="I","NIE",IF(F124="III","NIE","TAK")))) -> NIE | Y124: =IF(B124="","",IF(AND(X124="NIE",Z124="NIE"),"TAK","NIE")) -> TAK | Z124: =IF(B124="","",IF(F124="III","TAK","NIE")) -> NIE | AA124: =IF(E124="","",IF(X124="TAK","Zmiana A",IF(Y124="TAK","Zmiana B","Zmiana C"))) -> Zmiana B
A125: czwartek | B125: 9 | C125: marzec | D125: =YEAR(Tabela2[[#This Row],[Data]]) -> 2018 | E125: 2018-03-01 | F125: III | G125: 3927 | H125: 4127 | I125: 22.5 | J125: 29.07529331 | K125: 1.292235258 | L125: 29.92218665 | M125: 1.329874962 | N125: 2.766666667 | O125: 0.3614457831 | P125: 22 | Q125: 2.59375 | R125: 0.3855421687 | S125: 23 | T125: =IF(E125="","",I125*60*N125) -> 3735 | U125: =IF(E125="","",(I125+I125/7.5*0.5)*3600) -> 86400 | V125: =IF(E125="","",40/1.2) -> 33.33333333 | W125: =IF(B125="","",ISEVEN(B125)) -> FALSE | X125: =IF(B125="","",IF(W125=TRUE,IF(F125="I","TAK","NIE"),IF(F125="I","NIE",IF(F125="III","NIE","TAK")))) -> NIE | Y125: =IF(B125="","",IF(AND(X125="NIE",Z125="NIE"),"TAK","NIE")) -> NIE | Z125: =IF(B125="","",IF(F125="III","TAK","NIE")) -> TAK | AA125: =IF(E125="","",IF(X125="TAK","Zmiana A",IF(Y125="TAK","Zmiana B","Zmiana C"))) -> Zmiana C
A126: piątek | B126: 9 | C126: marzec | D126: =YEAR(Tabela2[[#This Row],[Data]]) -> 2018 | E126: 2018-03-02 | F126: I | G126: 5008 | H126: 5408 | I126: 22.5 | J126: 25.61044073 | K126: 1.13824181 | L126: 23.73023206 | M126: 1.05467698 | N126: 2.785925926 | O126: 0.3589470885 | P126: 22 | Q126: 2.611805556 | R126: 0.3828768944 | S126: 23 | T126: =IF(E126="","",I126*60*N126) -> 3761 | U126: =IF(E126="","",(I126+I126/7.5*0.5)*3600) -> 86400 | V126: =IF(E126="","",40/1.2) -> 33.33333333 | W126: =IF(B126="","",ISEVEN(B126)) -> FALSE | X126: =IF(B126="","",IF(W126=TRUE,IF(F126="I","TAK","NIE"),IF(F126="I","NIE",IF(F126="III","NIE","TAK")))) -> NIE | Y126: =IF(B126="","",IF(AND(X126="NIE",Z126="NIE"),"TAK","NIE")) -> TAK | Z126: =IF(B126="","",IF(F126="III","TAK","NIE")) -> NIE | AA126: =IF(E126="","",IF(X126="TAK","Zmiana A",IF(Y126="TAK","Zmiana B","Zmiana C"))) -> Zmiana B
A127: piątek | B127: 9 | C127: marzec | D127: =YEAR(Tabela2[[#This Row],[Data]]) -> 2018 | E127: 2018-03-02 | F127: II | G127: 5509 | H127: 6109 | I127: 15 | J127: 8.748343685 | K127: 0.5832229124 | L127: 10.37983354 | M127: 0.6919889029 | N127: 0.6944444444 | O127: 1.44 | P127: 86 | Q127: 0.6510416667 | R127: 1.536 | S127: 92 | T127: =IF(E127="","",I127*60*N127) -> 625 | U127: =IF(E127="","",(I127+I127/7.5*0.5)*3600) -> 57600 | V127: =IF(E127="","",40/1.2) -> 33.33333333 | W127: =IF(B127="","",ISEVEN(B127)) -> FALSE | X127: =IF(B127="","",IF(W127=TRUE,IF(F127="I","TAK","NIE"),IF(F127="I","NIE",IF(F127="III","NIE","TAK")))) -> TAK | Y127: =IF(B127="","",IF(AND(X127="NIE",Z127="NIE"),"TAK","NIE")) -> NIE | Z127: =IF(B127="","",IF(F127="III","TAK","NIE")) -> NIE | AA127: =IF(E127="","",IF(X127="TAK","Zmiana A",IF(Y127="TAK","Zmiana B","Zmiana C"))) -> Zmiana A
A128: =IF(E128="","",TEXT(WEEKDAY(IF(E128=0,"",E128),1),"dddd")) -> sobota | B128: =IF(E128="","",WEEKNUM(IF(E128=0,"",E128),1)) -> 9 | C128: =IF(E128="","",TEXT(IF(E128=0,"",MONTH(E128))*30,"mmmm")) -> marzec | D128: =YEAR(Tabela2[[#This Row],[Data]]) -> 2018 | E128: 2018-03-03 | F128: I | G128: 3116 | H128: 3466 | I128: 22.5 | J128: 25.41964286 | K128: 1.129761905 | L128: 26.35107455 | M128: 1.171158869 | N128: 1.677777778 | O128: 0.5960264901 | P128: 36 | Q128: 1.572916667 | R128: 0.6357615894 | S128: 38 | T128: =IF(E128="","",I128*60*N128) -> 2265 | U128: =IF(E128="","",(I128+I128/7.5*0.5)*3600) -> 86400 | V128: =IF(E128="","",40/1.2) -> 33.33333333 | W128: =IF(B128="","",ISEVEN(B128)) -> FALSE | X128: =IF(B128="","",IF(W128=TRUE,IF(F128="I","TAK","NIE"),IF(F128="I","NIE",IF(F128="III","NIE","TAK")))) -> NIE | Y128: =IF(B128="","",IF(AND(X128="NIE",Z128="NIE"),"TAK","NIE")) -> TAK | Z128: =IF(B128="","",IF(F128="III","TAK","NIE")) -> NIE | AA128: =IF(E128="","",IF(X128="TAK","Zmiana A",IF(Y128="TAK","Zmiana B","Zmiana C"))) -> Zmiana B
A129: =IF(E129="","",TEXT(WEEKDAY(IF(E129=0,"",E129),1),"dddd")) -> poniedziałek | B129: =IF(E129="","",WEEKNUM(IF(E129=0,"",E129),1)) -> 10 | C129: =IF(E129="","",TEXT(IF(E129=0,"",MONTH(E129))*30,"mmmm")) -> marzec | D129: =YEAR(Tabela2[[#This Row],[Data]]) -> 2018 | E129: 2018-03-05 | F129: I | G129: 7842 | H129: 8842 | I129: 41 | J129: 36.47987991 | K129: 0.8897531685 | L129: 37.2846545 | M129: 0.909381817 | N129: 2.177642276 | O129: 0.4592122457 | P129: 28 | Q129: 2.029166667 | R129: 0.4928131417 | S129: 30 | T129: =IF(E129="","",I129*60*N129) -> 5357 | U129: =IF(E129="","",(I129+I129/7.5*0.5)*3600) -> 157440 | V129: =IF(E129="","",40/1.2) -> 33.33333333 | W129: =IF(B129="","",ISEVEN(B129)) -> TRUE | X129: =IF(B129="","",IF(W129=TRUE,IF(F129="I","TAK","NIE"),IF(F129="I","NIE",IF(F129="III","NIE","TAK")))) -> TAK | Y129: =IF(B129="","",IF(AND(X129="NIE",Z129="NIE"),"TAK","NIE")) -> NIE | Z129: =IF(B129="","",IF(F129="III","TAK","NIE")) -> NIE | AA129: =IF(E129="","",IF(X129="TAK","Zmiana A",IF(Y129="TAK","Zmiana B","Zmiana C"))) -> Zmiana A
A130: =IF(E130="","",TEXT(WEEKDAY(IF(E130=0,"",E130),1),"dddd")) -> sobota | B130: =IF(E130="","",WEEKNUM(IF(E130=0,"",E130),1)) -> 9 | C130: =IF(E130="","",TEXT(IF(E130=0,"",MONTH(E130))*30,"mmmm")) -> marzec | D130: =YEAR(Tabela2[[#This Row],[Data]]) -> 2018 | E130: 2018-03-03 | F130: II | G130: 2451 | H130: 2601 | I130: 22.5 | J130: 33.29796969 | K130: 1.479909764 | L130: 35.18407194 | M130: 1.563736531 | N130: 1.808148148 | O130: 0.5530520279 | P130: 33 | Q130: 1.695138889 | R130: 0.589922163 | S130: 35 | T130: =IF(E130="","",I130*60*N130) -> 2441 | U130: =IF(E130="","",(I130+I130/7.5*0.5)*3600) -> 86400 | V130: =IF(E130="","",40/1.2) -> 33.33333333 | W130: =IF(B130="","",ISEVEN(B130)) -> FALSE | X130: =IF(B130="","",IF(W130=TRUE,IF(F130="I","TAK","NIE"),IF(F130="I","NIE",IF(F130="III","NIE","TAK")))) -> TAK | Y130: =IF(B130="","",IF(AND(X130="NIE",Z130="NIE"),"TAK","NIE")) -> NIE | Z130: =IF(B130="","",IF(F130="III","TAK","NIE")) -> NIE | AA130: =IF(E130="","",IF(X130="TAK","Zmiana A",IF(Y130="TAK","Zmiana B","Zmiana C"))) -> Zmiana A
A131: =IF(E131="","",TEXT(WEEKDAY(IF(E131=0,"",E131),1),"dddd")) -> poniedziałek | B131: =IF(E131="","",WEEKNUM(IF(E131=0,"",E131),1)) -> 10 | C131: =IF(E131="","",TEXT(IF(E131=0,"",MONTH(E131))*30,"mmmm")) -> marzec | D131: =YEAR(Tabela2[[#This Row],[Data]]) -> 2018 | E131: 2018-03-05 | F131: III | G131: 3194 | H131: 3444 | I131: 7.5 | J131: 10.26871377 | K131: 1.369161837 | L131: 8.515926817 | M131: 1.135456909 | N131: 5.548888889 | O131: 0.1802162595 | P131: 11 | Q131: 5.202083333 | R131: 0.1922306768 | S131: 12 | T131: =IF(E131="","",I131*60*N131) -> 2497 | U131: =IF(E131="","",(I131+I131/7.5*0.5)*3600) -> 28800 | V131: =IF(E131="","",40/1.2) -> 33.33333333 | W131: =IF(B131="","",ISEVEN(B131)) -> TRUE | X131: =IF(B131="","",IF(W131=TRUE,IF(F131="I","TAK","NIE"),IF(F131="I","NIE",IF(F131="III","NIE","TAK")))) -> NIE | Y131: =IF(B131="","",IF(AND(X131="NIE",Z131="NIE"),"TAK","NIE")) -> NIE | Z131: =IF(B131="","",IF(F131="III","TAK","NIE")) -> TAK | AA131: =IF(E131="","",IF(X131="TAK","Zmiana A",IF(Y131="TAK","Zmiana B","Zmiana C"))) -> Zmiana C
A132: =IF(E132="","",TEXT(WEEKDAY(IF(E132=0,"",E132),1),"dddd")) -> wtorek | B132: =IF(E132="","",WEEKNUM(IF(E132=0,"",E132),1)) -> 10 | C132: =IF(E132="","",TEXT(IF(E132=0,"",MONTH(E132))*30,"mmmm")) -> marzec | D132: =YEAR(Tabela2[[#This Row],[Data]]) -> 2018 | E132: 2018-03-06 | F132: II | G132: 7923 | H132: 8873 | I132: 37.5 | J132: 34.75250809 | K132: 0.9267335491 | L132: 35.17146545 | M132: 0.9379057455 | N132: 2.029333333 | O132: 0.4927726675 | P132: 30 | Q132: 1.9025 | R132: 0.5256241787 | S132: 32 | T132: =IF(E132="","",I132*60*N132) -> 4566 | U132: =IF(E132="","",(I132+I132/7.5*0.5)*3600) -> 144000 | V132: =IF(E132="","",40/1.2) -> 33.33333333 | W132: =IF(B132="","",ISEVEN(B132)) -> TRUE | X132: =IF(B132="","",IF(W132=TRUE,IF(F132="I","TAK","NIE"),IF(F132="I","NIE",IF(F132="III","NIE","TAK")))) -> NIE | Y132: =IF(B132="","",IF(AND(X132="NIE",Z132="NIE"),"TAK","NIE")) -> TAK | Z132: =IF(B132="","",IF(F132="III","TAK","NIE")) -> NIE | AA132: =IF(E132="","",IF(X132="TAK","Zmiana A",IF(Y132="TAK","Zmiana B","Zmiana C"))) -> Zmiana B
A133: =IF(E133="","",TEXT(WEEKDAY(IF(E133=0,"",E133),1),"dddd")) -> wtorek | B133: =IF(E133="","",WEEKNUM(IF(E133=0,"",E133),1)) -> 10 | C133: =IF(E133="","",TEXT(IF(E133=0,"",MONTH(E133))*30,"mmmm")) -> marzec | D133: =YEAR(Tabela2[[#This Row],[Data]]) -> 2018 | E133: 2018-03-06 | F133: II | G133: 7923 | H133: 8873 | I133: 22.5 | J133: 15.63253968 | K133: 0.6947795414 | L133: 15.7823307 | M133: 0.7014369202 | N133: 0.862962963 | O133: 1.158798283 | P133: 70 | Q133: 0.8090277778 | R133: 1.236051502 | S133: 74 | T133: =IF(E133="","",I133*60*N133) -> 1165 | U133: =IF(E133="","",(I133+I133/7.5*0.5)*3600) -> 86400 | V133: =IF(E133="","",40/1.2) -> 33.33333333 | W133: =IF(B133="","",ISEVEN(B133)) -> TRUE | X133: =IF(B133="","",IF(W133=TRUE,IF(F133="I","TAK","NIE"),IF(F133="I","NIE",IF(F133="III","NIE","TAK")))) -> NIE | Y133: =IF(B133="","",IF(AND(X133="NIE",Z133="NIE"),"TAK","NIE")) -> TAK | Z133: =IF(B133="","",IF(F133="III","TAK","NIE")) -> NIE | AA133: =IF(E133="","",IF(X133="TAK","Zmiana A",IF(Y133="TAK","Zmiana B","Zmiana C"))) -> Zmiana B
A134: środa | B134: 10 | C134: marzec | D134: =YEAR(Tabela2[[#This Row],[Data]]) -> 2018 | E134: 2018-03-07 | F134: I | G134: 6476 | H134: 7326 | I134: 33.5 | J134: 31.49399715 | K134: 0.940119318 | L134: 30.58297815 | M134: 0.9129247208 | N134: 2.267661692 | O134: 0.4409828872 | P134: 26 | Q134: 2.110185185 | R134: 0.4738920579 | S134: 28 | T134: =IF(E134="","",I134*60*N134) -> 4558 | U134: =IF(E134="","",(I134+I134/7.5*0.5)*3600) -> 128640 | V134: =IF(E134="","",40/1.2) -> 33.33333333 | W134: =IF(B134="","",ISEVEN(B134)) -> TRUE | X134: =IF(B134="","",IF(W134=TRUE,IF(F134="I","TAK","NIE"),IF(F134="I","NIE",IF(F134="III","NIE","TAK")))) -> TAK | Y134: =IF(B134="","",IF(AND(X134="NIE",Z134="NIE"),"TAK","NIE")) -> NIE | Z134: =IF(B134="","",IF(F134="III","TAK","NIE")) -> NIE | AA134: =IF(E134="","",IF(X134="TAK","Zmiana A",IF(Y134="TAK","Zmiana B","Zmiana C"))) -> Zmiana A
A135: środa | B135: 10 | C135: marzec | D135: =YEAR(Tabela2[[#This Row],[Data]]) -> 2018 | E135: 2018-03-07 | F135: II | G135: 2445 | H135: 2845 | I135: 22.5 | J135: 19.77262439 | K135: 0.8787833064 | L135: 18.83585446 | M135: 0.837149087 | N135: 0.8940740741 | O135: 1.118475559 | P135: 67 | Q135: 0.8381944444 | R135: 1.193040597 | S135: 72 | T135: =IF(E135="","",I135*60*N135) -> 1207 | U135: =IF(E135="","",(I135+I135/7.5*0.5)*3600) -> 86400 | V135: =IF(E135="","",40/1.2) -> 33.33333333 | W135: =IF(B135="","",ISEVEN(B135)) -> TRUE | X135: =IF(B135="","",IF(W135=TRUE,IF(F135="I","TAK","NIE"),IF(F135="I","NIE",IF(F135="III","NIE","TAK")))) -> NIE | Y135: =IF(B135="","",IF(AND(X135="NIE",Z135="NIE"),"TAK","NIE")) -> TAK | Z135: =IF(B135="","",IF(F135="III","TAK","NIE")) -> NIE | AA135: =IF(E135="","",IF(X135="TAK","Zmiana A",IF(Y135="TAK","Zmiana B","Zmiana C"))) -> Zmiana B
A136: środa | B136: 10 | C136: marzec | D136: =YEAR(Tabela2[[#This Row],[Data]]) -> 2018 | E136: 2018-03-07 | F136: III | G136: 2606 | H136: 2706 | I136: 7.5 | J136: 9.285714286 | K136: 1.238095238 | L136: 9.345357669 | M136: 1.246047689 | N136: 45.2 | O136: 0.02212389381 | P136: 1 | Q136: 42.375 | R136: 0.02359882006 | S136: 1 | T136: =IF(E136="","",I136*60*N136) -> 20340 | U136: =IF(E136="","",(I136+I136/7.5*0.5)*3600) -> 28800 | V136: =IF(E136="","",40/1.2) -> 33.33333333 | W136: =IF(B136="","",ISEVEN(B136)) -> TRUE | X136: =IF(B136="","",IF(W136=TRUE,IF(F136="I","TAK","NIE"),IF(F136="I","NIE",IF(F136="III","NIE","TAK")))) -> NIE | Y136: =IF(B136="","",IF(AND(X136="NIE",Z136="NIE"),"TAK","NIE")) -> NIE | Z136: =IF(B136="","",IF(F136="III","TAK","NIE")) -> TAK | AA136: =IF(E136="","",IF(X136="TAK","Zmiana A",IF(Y136="TAK","Zmiana B","Zmiana C"))) -> Zmiana C
A137: czwartek | B137: 10 | C137: marzec | D137: =YEAR(Tabela2[[#This Row],[Data]]) -> 2018 | E137: 2018-03-08 | F137: I | G137: 5109 | H137: 5709 | I137: 33.5 | J137: 28.25084541 | K137: 0.8433088182 | L137: 28.70684341 | M137: 0.8569206988 | N137: 1.988059701 | O137: 0.503003003 | P137: 30 | Q137: 1.85 | R137: 0.5405405405 | S137: 32 | T137: =IF(E137="","",I137*60*N137) -> 3996 | U137: =IF(E137="","",(I137+I137/7.5*0.5)*3600) -> 128640 | V137: =IF(E137="","",40/1.2) -> 33.33333333 | W137: =IF(B137="","",ISEVEN(B137)) -> TRUE | X137: =IF(B137="","",IF(W137=TRUE,IF(F137="I","TAK","NIE"),IF(F137="I","NIE",IF(F137="III","NIE","TAK")))) -> TAK | Y137: =IF(B137="","",IF(AND(X137="NIE",Z137="NIE"),"TAK","NIE")) -> NIE | Z137: =IF(B137="","",IF(F137="III","TAK","NIE")) -> NIE | AA137: =IF(E137="","",IF(X137="TAK","Zmiana A",IF(Y137="TAK","Zmiana B","Zmiana C"))) -> Zmiana A
A138: czwartek | B138: 10 | C138: marzec | D138: =YEAR(Tabela2[[#This Row],[Data]]) -> 2018 | E138: 2018-03-08 | F138: II | G138: 3217 | H138: 3717 | I138: 22.5 | J138: 24.58385753 | K138: 1.09261589 | L138: 26.10879896 | M138: 1.160391065 | N138: 1.633333333 | O138: 0.612244898 | P138: 37 | Q138: 1.53125 | R138: 0.6530612245 | S138: 39 | T138: =IF(E138="","",I138*60*N138) -> 2205 | U138: =IF(E138="","",(I138+I138/7.5*0.5)*3600) -> 86400 | V138: =IF(E138="","",40/1.2) -> 33.33333333 | W138: =IF(B138="","",ISEVEN(B138)) -> TRUE | X138: =IF(B138="","",IF(W138=TRUE,IF(F138="I","TAK","NIE"),IF(F138="I","NIE",IF(F138="III","NIE","TAK")))) -> NIE | Y138: =IF(B138="","",IF(AND(X138="NIE",Z138="NIE"),"TAK","NIE")) -> TAK | Z138: =IF(B138="","",IF(F138="III","TAK","NIE")) -> NIE | AA138: =IF(E138="","",IF(X138="TAK","Zmiana A",IF(Y138="TAK","Zmiana B","Zmiana C"))) -> Zmiana B
A139: =IF(E139="","",TEXT(WEEKDAY(IF(E139=0,"",E139),1),"dddd")) -> czwartek | B139: =IF(E139="","",WEEKNUM(IF(E139=0,"",E139),1)) -> 10 | C139: =IF(E139="","",TEXT(IF(E139=0,"",MONTH(E139))*30,"mmmm")) -> marzec | D139: =YEAR(Tabela2[[#This Row],[Data]]) -> 2018 | E139: 2018-03-08 | F139: III | G139: 2624 | H139: 2674 | I139: 7.5 | J139: 9.551587302 | K139: 1.273544974 | L139: 11.20536386 | M139: 1.494048515 | N139: 5.348888889 | O139: 0.1869547154 | P139: 11 | Q139: 5.014583333 | R139: 0.1994183631 | S139: 12 | T139: =IF(E139="","",I139*60*N139) -> 2407 | U139: =IF(E139="","",(I139+I139/7.5*0.5)*3600) -> 28800 | V139: =IF(E139="","",40/1.2) -> 33.33333333 | W139: =IF(B139="","",ISEVEN(B139)) -> TRUE | X139: =IF(B139="","",IF(W139=TRUE,IF(F139="I","TAK","NIE"),IF(F139="I","NIE",IF(F139="III","NIE","TAK")))) -> NIE | Y139: =IF(B139="","",IF(AND(X139="NIE",Z139="NIE"),"TAK","NIE")) -> NIE | Z139: =IF(B139="","",IF(F139="III","TAK","NIE")) -> TAK | AA139: =IF(E139="","",IF(X139="TAK","Zmiana A",IF(Y139="TAK","Zmiana B","Zmiana C"))) -> Zmiana C
A140: piątek | B140: 10 | C140: marzec | D140: =YEAR(Tabela2[[#This Row],[Data]]) -> 2018 | E140: 2018-03-09 | F140: I | G140: 5947 | H140: 6747 | I140: 37.5 | J140: 32.50321545 | K140: 0.8667524119 | L140: 33.81728553 | M140: 0.9017942808 | N140: 2.085333333 | O140: 0.4795396419 | P140: 29 | Q140: 1.955 | R140: 0.5115089514 | S140: 31 | T140: =IF(E140="","",I140*60*N140) -> 4692 | U140: =IF(E140="","",(I140+I140/7.5*0.5)*3600) -> 144000 | V140: =IF(E140="","",40/1.2) -> 33.33333333 | W140: =IF(B140="","",ISEVEN(B140)) -> TRUE | X140: =IF(B140="","",IF(W140=TRUE,IF(F140="I","TAK","NIE"),IF(F140="I","NIE",IF(F140="III","NIE","TAK")))) -> TAK | Y140: =IF(B140="","",IF(AND(X140="NIE",Z140="NIE"),"TAK","NIE")) -> NIE | Z140: =IF(B140="","",IF(F140="III","TAK","NIE")) -> NIE | AA140: =IF(E140="","",IF(X140="TAK","Zmiana A",IF(Y140="TAK","Zmiana B","Zmiana C"))) -> Zmiana A
A141: piątek | B141: 10 | C141: marzec | D141: =YEAR(Tabela2[[#This Row],[Data]]) -> 2018 | E141: 2018-03-09 | F141: II | G141: 2561 | H141: 2961 | I141: 22.5 | J141: 22.84477886 | K141: 1.015323505 | L141: 23.39308719 | M141: 1.039692764 | N141: 1.007407407 | O141: 0.9926470588 | P141: 60 | Q141: 0.9444444444 | R141: 1.058823529 | S141: 64 | T141: =IF(E141="","",I141*60*N141) -> 1360 | U141: =IF(E141="","",(I141+I141/7.5*0.5)*3600) -> 86400 | V141: =IF(E141="","",40/1.2) -> 33.33333333 | W141: =IF(B141="","",ISEVEN(B141)) -> TRUE | X141: =IF(B141="","",IF(W141=TRUE,IF(F141="I","TAK","NIE"),IF(F141="I","NIE",IF(F141="III","NIE","TAK")))) -> NIE | Y141: =IF(B141="","",IF(AND(X141="NIE",Z141="NIE"),"TAK","NIE")) -> TAK | Z141: =IF(B141="","",IF(F141="III","TAK","NIE")) -> NIE | AA141: =IF(E141="","",IF(X141="TAK","Zmiana A",IF(Y141="TAK","Zmiana B","Zmiana C"))) -> Zmiana B
A142: piątek | B142: 10 | C142: marzec | D142: =YEAR(Tabela2[[#This Row],[Data]]) -> 2018 | E142: 2018-03-09 | F142: III | G142: 2573 | H142: 2723 | I142: 7.5 | J142: 9.649393091 | K142: 1.286585745 | L142: 9.70422621 | M142: 1.293896828 | N142: 5.368888889 | O142: 0.1862582781 | P142: 11 | Q142: 5.033333333 | R142: 0.1986754967 | S142: 12 | T142: =IF(E142="","",I142*60*N142) -> 2416 | U142: =IF(E142="","",(I142+I142/7.5*0.5)*3600) -> 28800 | V142: =IF(E142="","",40/1.2) -> 33.33333333 | W142: =IF(B142="","",ISEVEN(B142)) -> TRUE | X142: =IF(B142="","",IF(W142=TRUE,IF(F142="I","TAK","NIE"),IF(F142="I","NIE",IF(F142="III","NIE","TAK")))) -> NIE | Y142: =IF(B142="","",IF(AND(X142="NIE",Z142="NIE"),"TAK","NIE")) -> NIE | Z142: =IF(B142="","",IF(F142="III","TAK","NIE")) -> TAK | AA142: =IF(E142="","",IF(X142="TAK","Zmiana A",IF(Y142="TAK","Zmiana B","Zmiana C"))) -> Zmiana C
A143: sobota | B143: 10 | C143: marzec | D143: =YEAR(Tabela2[[#This Row],[Data]]) -> 2018 | E143: 2018-03-10 | F143: I | G143: 3673 | H143: 3973 | I143: 22.5 | J143: 34.66991187 | K143: 1.540884972 | L143: 35.41654648 | M143: 1.574068732 | N143: 2.004444444 | O143: 0.4988913525 | P143: 30 | Q143: 1.879166667 | R143: 0.5321507761 | S143: 32 | T143: =IF(E143="","",I143*60*N143) -> 2706 | U143: =IF(E143="","",(I143+I143/7.5*0.5)*3600) -> 86400 | V143: =IF(E143="","",40/1.2) -> 33.33333333 | W143: =IF(B143="","",ISEVEN(B143)) -> TRUE | X143: =IF(B143="","",IF(W143=TRUE,IF(F143="I","TAK","NIE"),IF(F143="I","NIE",IF(F143="III","NIE","TAK")))) -> TAK | Y143: =IF(B143="","",IF(AND(X143="NIE",Z143="NIE"),"TAK","NIE")) -> NIE | Z143: =IF(B143="","",IF(F143="III","TAK","NIE")) -> NIE | AA143: =IF(E143="","",IF(X143="TAK","Zmiana A",IF(Y143="TAK","Zmiana B","Zmiana C"))) -> Zmiana A
A144: poniedziałek | B144: 11 | C144: marzec | D144: =YEAR(Tabela2[[#This Row],[Data]]) -> 2018 | E144: 2018-03-12 | F144: I | G144: 5853 | H144: 6303 | I144: 30 | J144: 34.31085143 | K144: 1.143695048 | L144: 34.91266506 | M144: 1.163755502 | N144: 2.767222222 | O144: 0.3613732182 | P144: 22 | Q144: 2.594270833 | R144: 0.3854647661 | S144: 23 | T144: =IF(E144="","",I144*60*N144) -> 4981 | U144: =IF(E144="","",(I144+I144/7.5*0.5)*3600) -> 115200 | V144: =IF(E144="","",40/1.2) -> 33.33333333 | W144: =IF(B144="","",ISEVEN(B144)) -> FALSE | X144: =IF(B144="","",IF(W144=TRUE,IF(F144="I","TAK","NIE"),IF(F144="I","NIE",IF(F144="III","NIE","TAK")))) -> NIE | Y144: =IF(B144="","",IF(AND(X144="NIE",Z144="NIE"),"TAK","NIE")) -> TAK | Z144: =IF(B144="","",IF(F144="III","TAK","NIE")) -> NIE | AA144: =IF(E144="","",IF(X144="TAK","Zmiana A",IF(Y144="TAK","Zmiana B","Zmiana C"))) -> Zmiana B
A145: =IF(E145="","",TEXT(WEEKDAY(IF(E145=0,"",E145),1),"dddd")) -> poniedziałek | B145: =IF(E145="","",WEEKNUM(IF(E145=0,"",E145),1)) -> 11 | C145: =IF(E145="","",TEXT(IF(E145=0,"",MONTH(E145))*30,"mmmm")) -> marzec | D145: =YEAR(Tabela2[[#This Row],[Data]]) -> 2018 | E145: 2018-03-12 | F145: II | G145: 7758 | H145: 8508 | I145: 30 | J145: 32.46311342 | K145: 1.082103781 | L145: 32.53607616 | M145: 1.084535872 | N145: 2.296111111 | O145: 0.4355189935 | P145: 26 | Q145: 2.152604167 | R145: 0.464553593 | S145: 28 | T145: =IF(E145="","",I145*60*N145) -> 4133 | U145: =IF(E145="","",(I145+I145/7.5*0.5)*3600) -> 115200 | V145: =IF(E145="","",40/1.2) -> 33.33333333 | W145: =IF(B145="","",ISEVEN(B145)) -> FALSE | X145: =IF(B145="","",IF(W145=TRUE,IF(F145="I","TAK","NIE"),IF(F145="I","NIE",IF(F145="III","NIE","TAK")))) -> TAK | Y145: =IF(B145="","",IF(AND(X145="NIE",Z145="NIE"),"TAK","NIE")) -> NIE | Z145: =IF(B145="","",IF(F145="III","TAK","NIE")) -> NIE | AA145: =IF(E145="","",IF(X145="TAK","Zmiana A",IF(Y145="TAK","Zmiana B","Zmiana C"))) -> Zmiana A
A146: poniedziałek | B146: 11 | C146: marzec | D146: =YEAR(Tabela2[[#This Row],[Data]]) -> 2018 | E146: 2018-03-12 | F146: III | G146: 2821 | H146: 2971 | I146: 13.5 | J146: 17.76526252 | K146: 1.315945372 | L146: 19.71836465 | M146: 1.460619603 | N146: 3.280246914 | O146: 0.3048550997 | P146: 18 | Q146: 3.054022989 | R146: 0.327436959 | S146: 20 | T146: =IF(E146="","",I146*60*N146) -> 2657 | U146: =IF(E146="","",(I146+I146/7.5*0.5)*3600) -> 51840 | V146: =IF(E146="","",40/1.2) -> 33.33333333 | W146: =IF(B146="","",ISEVEN(B146)) -> FALSE | X146: =IF(B146="","",IF(W146=TRUE,IF(F146="I","TAK","NIE"),IF(F146="I","NIE",IF(F146="III","NIE","TAK")))) -> NIE | Y146: =IF(B146="","",IF(AND(X146="NIE",Z146="NIE"),"TAK","NIE")) -> NIE | Z146: =IF(B146="","",IF(F146="III","TAK","NIE")) -> TAK | AA146: =IF(E146="","",IF(X146="TAK","Zmiana A",IF(Y146="TAK","Zmiana B","Zmiana C"))) -> Zmiana C
A147: wtorek | B147: 11 | C147: marzec | D147: =YEAR(Tabela2[[#This Row],[Data]]) -> 2018 | E147: 2018-03-13 | F147: I | G147: 6166 | H147: 4730 | I147: 30 | J147: 31.19857857 | K147: 1.039952619 | L147: 29.81002934 | M147: 0.9936676446 | N147: 2.446111111 | O147: 0.4088121735 | P147: 25 | Q147: 2.293229167 | R147: 0.4360663184 | S147: 26 | T147: =IF(E147="","",I147*60*N147) -> 4403 | U147: =IF(E147="","",(I147+I147/7.5*0.5)*3600) -> 115200 | V147: =IF(E147="","",40/1.2) -> 33.33333333 | W147: =IF(B147="","",ISEVEN(B147)) -> FALSE | X147: =IF(B147="","",IF(W147=TRUE,IF(F147="I","TAK","NIE"),IF(F147="I","NIE",IF(F147="III","NIE","TAK")))) -> NIE | Y147: =IF(B147="","",IF(AND(X147="NIE",Z147="NIE"),"TAK","NIE")) -> TAK | Z147: =IF(B147="","",IF(F147="III","TAK","NIE")) -> NIE | AA147: =IF(E147="","",IF(X147="TAK","Zmiana A",IF(Y147="TAK","Zmiana B","Zmiana C"))) -> Zmiana B
A148: wtorek | B148: 11 | C148: marzec | D148: =YEAR(Tabela2[[#This Row],[Data]]) -> 2018 | E148: 2018-03-13 | F148: II | G148: 5193 | H148: 5893 | I148: 30 | J148: 24.23978123 | K148: 0.8079927076 | L148: 25.30318071 | M148: 0.843439357 | N148: 2.627777778 | O148: 0.3805496829 | P148: 23 | Q148: 2.463541667 | R148: 0.4059196617 | S148: 24 | T148: =IF(E148="","",I148*60*N148) -> 4730 | U148: =IF(E148="","",(I148+I148/7.5*0.5)*3600) -> 115200 | V148: =IF(E148="","",40/1.2) -> 33.33333333 | W148: =IF(B148="","",ISEVEN(B148)) -> FALSE | X148: =IF(B148="","",IF(W148=TRUE,IF(F148="I","TAK","NIE"),IF(F148="I","NIE",IF(F148="III","NIE","TAK")))) -> TAK | Y148: =IF(B148="","",IF(AND(X148="NIE",Z148="NIE"),"TAK","NIE")) -> NIE | Z148: =IF(B148="","",IF(F148="III","TAK","NIE")) -> NIE | AA148: =IF(E148="","",IF(X148="TAK","Zmiana A",IF(Y148="TAK","Zmiana B","Zmiana C"))) -> Zmiana A
A149: wtorek | B149: 11 | C149: marzec | D149: =YEAR(Tabela2[[#This Row],[Data]]) -> 2018 | E149: 2018-03-13 | F149: III | G149: 2949 | H149: 2973 | I149: 15 | J149: 18.34349593 | K149: 1.222899729 | L149: 16.89129532 | M149: 1.126086355 | N149: 3.303333333 | O149: 0.3027245207 | P149: 18 | Q149: 3.096875 | R149: 0.3229061554 | S149: 19 | T149: =IF(E149="","",I149*60*N149) -> 2973 | U149: =IF(E149="","",(I149+I149/7.5*0.5)*3600) -> 57600 | V149: =IF(E149="","",40/1.2) -> 33.33333333 | W149: =IF(B149="","",ISEVEN(B149)) -> FALSE | X149: =IF(B149="","",IF(W149=TRUE,IF(F149="I","TAK","NIE"),IF(F149="I","NIE",IF(F149="III","NIE","TAK")))) -> NIE | Y149: =IF(B149="","",IF(AND(X149="NIE",Z149="NIE"),"TAK","NIE")) -> NIE | Z149: =IF(B149="","",IF(F149="III","TAK","NIE")) -> TAK | AA149: =IF(E149="","",IF(X149="TAK","Zmiana A",IF(Y149="TAK","Zmiana B","Zmiana C"))) -> Zmiana C
A150: środa | B150: 11 | C150: marzec | D150: =YEAR(Tabela2[[#This Row],[Data]]) -> 2018 | E150: 2018-03-14 | F150: III | G150: 4116 | H150: 2797 | I150: 15 | J150: 17.16543787 | K150: 1.144362525 | L150: 16.47029925 | M150: 1.09801995 | N150: 3.107777778 | O150: 0.3217733286 | P150: 19 | Q150: 2.913541667 | R150: 0.3432248838 | S150: 21 | T150: =IF(E150="","",I150*60*N150) -> 2797 | U150: =IF(E150="","",(I150+I150/7.5*0.5)*3600) -> 57600 | V150: =IF(E150="","",40/1.2) -> 33.33333333 | W150: =IF(B150="","",ISEVEN(B150)) -> FALSE | X150: =IF(B150="","",IF(W150=TRUE,IF(F150="I","TAK","NIE"),IF(F150="I","NIE",IF(F150="III","NIE","TAK")))) -> NIE | Y150: =IF(B150="","",IF(AND(X150="NIE",Z150="NIE"),"TAK","NIE")) -> NIE | Z150: =IF(B150="","",IF(F150="III","TAK","NIE")) -> TAK | AA150: =IF(E150="","",IF(X150="TAK","Zmiana A",IF(Y150="TAK","Zmiana B","Zmiana C"))) -> Zmiana C
A151: czwartek | B151: 11 | C151: marzec | D151: =YEAR(Tabela2[[#This Row],[Data]]) -> 2018 | E151: 2018-03-15 | F151: III | G151: 3156 | H151: 2758 | I151: 15 | J151: 16.80793651 | K151: 1.120529101 | L151: 16.81966131 | M151: 1.121310754 | N151: 3.064444444 | O151: 0.3263234228 | P151: 20 | Q151: 2.872916667 | R151: 0.3480783176 | S151: 21 | T151: =IF(E151="","",I151*60*N151) -> 2758 | U151: =IF(E151="","",(I151+I151/7.5*0.5)*3600) -> 57600 | V151: =IF(E151="","",40/1.2) -> 33.33333333 | W151: =IF(B151="","",ISEVEN(B151)) -> FALSE | X151: =IF(B151="","",IF(W151=TRUE,IF(F151="I","TAK","NIE"),IF(F151="I","NIE",IF(F151="III","NIE","TAK")))) -> NIE | Y151: =IF(B151="","",IF(AND(X151="NIE",Z151="NIE"),"TAK","NIE")) -> NIE | Z151: =IF(B151="","",IF(F151="III","TAK","NIE")) -> TAK | AA151: =IF(E151="","",IF(X151="TAK","Zmiana A",IF(Y151="TAK","Zmiana B","Zmiana C"))) -> Zmiana C
A152: piątek | B152: 11 | C152: marzec | D152: =YEAR(Tabela2[[#This Row],[Data]]) -> 2018 | E152: 2018-03-16 | F152: I | G152: 1882 | H152: 1382 | I152: 37.5 | J152: 52.96010263 | K152: 1.412269403 | L152: 52.61460465 | M152: 1.403056124 | N152: 2.779555556 | O152: 0.3597697474 | P152: 22 | Q152: 2.605833333 | R152: 0.3837543972 | S152: 23 | T152: =IF(E152="","",I152*60*N152) -> 6254 | U152: =IF(E152="","",(I152+I152/7.5*0.5)*3600) -> 144000 | V152: =IF(E152="","",40/1.2) -> 33.33333333 | W152: =IF(B152="","",ISEVEN(B152)) -> FALSE | X152: =IF(B152="","",IF(W152=TRUE,IF(F152="I","TAK","NIE"),IF(F152="I","NIE",IF(F152="III","NIE","TAK")))) -> NIE | Y152: =IF(B152="","",IF(AND(X152="NIE",Z152="NIE"),"TAK","NIE")) -> TAK | Z152: =IF(B152="","",IF(F152="III","TAK","NIE")) -> NIE | AA152: =IF(E152="","",IF(X152="TAK","Zmiana A",IF(Y152="TAK","Zmiana B","Zmiana C"))) -> Zmiana B
A153: piątek | B153: 11 | C153: marzec | D153: =YEAR(Tabela2[[#This Row],[Data]]) -> 2018 | E153: 2018-03-16 | F153: II | G153: 7432 | H153: 6254 | I153: 24 | J153: 17.70466667 | K153: 0.7376944444 | L153: 17.97694431 | M153: 0.7490393463 | N153: 0.9597222222 | O153: 1.041968162 | P153: 63 | Q153: 0.8858974359 | R153: 1.128798842 | S153: 68 | T153: =IF(E153="","",I153*60*N153) -> 1382 | U153: =IF(E153="","",(I153+I153/7.5*0.5)*3600) -> 92160 | V153: =IF(E153="","",40/1.2) -> 33.33333333 | W153: =IF(B153="","",ISEVEN(B153)) -> FALSE | X153: =IF(B153="","",IF(W153=TRUE,IF(F153="I","TAK","NIE"),IF(F153="I","NIE",IF(F153="III","NIE","TAK")))) -> TAK | Y153: =IF(B153="","",IF(AND(X153="NIE",Z153="NIE"),"TAK","NIE")) -> NIE | Z153: =IF(B153="","",IF(F153="III","TAK","NIE")) -> NIE | AA153: =IF(E153="","",IF(X153="TAK","Zmiana A",IF(Y153="TAK","Zmiana B","Zmiana C"))) -> Zmiana A
A154: piątek | B154: 11 | C154: marzec | D154: =YEAR(Tabela2[[#This Row],[Data]]) -> 2018 | E154: 2018-03-16 | F154: III | G154: 3647 | H154: 3134 | I154: 15 | J154: 16.24603175 | K154: 1.083068783 | L154: 16.22156494 | M154: 1.081437663 | N154: 3.482222222 | O154: 0.2871729419 | P154: 17 | Q154: 3.264583333 | R154: 0.3063178047 | S154: 18 | T154: =IF(E154="","",I154*60*N154) -> 3134 | U154: =IF(E154="","",(I154+I154/7.5*0.5)*3600) -> 57600 | V154: =IF(E154="","",40/1.2) -> 33.33333333 | W154: =IF(B154="","",ISEVEN(B154)) -> FALSE | X154: =IF(B154="","",IF(W154=TRUE,IF(F154="I","TAK","NIE"),IF(F154="I","NIE",IF(F154="III","NIE","TAK")))) -> NIE | Y154: =IF(B154="","",IF(AND(X154="NIE",Z154="NIE"),"TAK","NIE")) -> NIE | Z154: =IF(B154="","",IF(F154="III","TAK","NIE")) -> TAK | AA154: =IF(E154="","",IF(X154="TAK","Zmiana A",IF(Y154="TAK","Zmiana B","Zmiana C"))) -> Zmiana C
A155: poniedziałek | B155: 12 | C155: marzec | D155: =YEAR(Tabela2[[#This Row],[Data]]) -> 2018 | E155: 2018-03-19 | F155: I | G155: 12999 | H155: 10360 | I155: 37.5 | J155: 39.47045432 | K155: 1.052545449 | L155: 38.53211821 | M155: 1.027523152 | N155: 2.302222222 | O155: 0.4343629344 | P155: 26 | Q155: 2.158333333 | R155: 0.4633204633 | S155: 28 | T155: =IF(E155="","",I155*60*N155) -> 5180 | U155: =IF(E155="","",(I155+I155/7.5*0.5)*3600) -> 144000 | V155: =IF(E155="","",40/1.2) -> 33.33333333 | W155: =IF(B155="","",ISEVEN(B155)) -> TRUE | X155: =IF(B155="","",IF(W155=TRUE,IF(F155="I","TAK","NIE"),IF(F155="I","NIE",IF(F155="III","NIE","TAK")))) -> TAK | Y155: =IF(B155="","",IF(AND(X155="NIE",Z155="NIE"),"TAK","NIE")) -> NIE | Z155: =IF(B155="","",IF(F155="III","TAK","NIE")) -> NIE | AA155: =IF(E155="","",IF(X155="TAK","Zmiana A",IF(Y155="TAK","Zmiana B","Zmiana C"))) -> Zmiana A
A156: poniedziałek | B156: 12 | C156: marzec | D156: =YEAR(Tabela2[[#This Row],[Data]]) -> 2018 | E156: 2018-03-19 | F156: I | G156: 12999 | H156: 10360 | I156: 37.5 | J156: 39.47045432 | K156: 1.052545449 | L156: 38.25267315 | M156: 1.020071284 | N156: 2.302222222 | O156: 0.4343629344 | P156: 26 | Q156: 2.158333333 | R156: 0.4633204633 | S156: 28 | T156: =IF(E156="","",I156*60*N156) -> 5180 | U156: =IF(E156="","",(I156+I156/7.5*0.5)*3600) -> 144000 | V156: =IF(E156="","",40/1.2) -> 33.33333333 | W156: =IF(B156="","",ISEVEN(B156)) -> TRUE | X156: =IF(B156="","",IF(W156=TRUE,IF(F156="I","TAK","NIE"),IF(F156="I","NIE",IF(F156="III","NIE","TAK")))) -> TAK | Y156: =IF(B156="","",IF(AND(X156="NIE",Z156="NIE"),"TAK","NIE")) -> NIE | Z156: =IF(B156="","",IF(F156="III","TAK","NIE")) -> NIE | AA156: =IF(E156="","",IF(X156="TAK","Zmiana A",IF(Y156="TAK","Zmiana B","Zmiana C"))) -> Zmiana A
A157: poniedziałek | B157: 12 | C157: marzec | D157: =YEAR(Tabela2[[#This Row],[Data]]) -> 2018 | E157: 2018-03-19 | F157: II | G157: 3779 | H157: 3395 | I157: 22.5 | J157: 26.97595705 | K157: 1.198931424 | L157: 28.18072081 | M157: 1.252476481 | N157: 2.514814815 | O157: 0.3976435935 | P157: 24 | Q157: 2.357638889 | R157: 0.4241531664 | S157: 25 | T157: =IF(E157="","",I157*60*N157) -> 3395 | U157: =IF(E157="","",(I157+I157/7.5*0.5)*3600) -> 86400 | V157: =IF(E157="","",40/1.2) -> 33.33333333 | W157: =IF(B157="","",ISEVEN(B157)) -> TRUE | X157: =IF(B157="","",IF(W157=TRUE,IF(F157="I","TAK","NIE"),IF(F157="I","NIE",IF(F157="III","NIE","TAK")))) -> NIE | Y157: =IF(B157="","",IF(AND(X157="NIE",Z157="NIE"),"TAK","NIE")) -> TAK | Z157: =IF(B157="","",IF(F157="III","TAK","NIE")) -> NIE | AA157: =IF(E157="","",IF(X157="TAK","Zmiana A",IF(Y157="TAK","Zmiana B","Zmiana C"))) -> Zmiana B
A158: poniedziałek | B158: 12 | C158: marzec | D158: =YEAR(Tabela2[[#This Row],[Data]]) -> 2018 | E158: 2018-03-19 | F158: III | G158: 4034 | H158: 3865 | I158: 22.5 | J158: 24.97704949 | K158: 1.110091088 | L158: 25.88122805 | M158: 1.150276802 | N158: 2.862962963 | O158: 0.3492884864 | P158: 21 | Q158: 2.684027778 | R158: 0.3725743855 | S158: 22 | T158: =IF(E158="","",I158*60*N158) -> 3865 | U158: =IF(E158="","",(I158+I158/7.5*0.5)*3600) -> 86400 | V158: =IF(E158="","",40/1.2) -> 33.33333333 | W158: =IF(B158="","",ISEVEN(B158)) -> TRUE | X158: =IF(B158="","",IF(W158=TRUE,IF(F158="I","TAK","NIE"),IF(F158="I","NIE",IF(F158="III","NIE","TAK")))) -> NIE | Y158: =IF(B158="","",IF(AND(X158="NIE",Z158="NIE"),"TAK","NIE")) -> NIE | Z158: =IF(B158="","",IF(F158="III","TAK","NIE")) -> TAK | AA158: =IF(E158="","",IF(X158="TAK","Zmiana A",IF(Y158="TAK","Zmiana B","Zmiana C"))) -> Zmiana C
A159: wtorek | B159: 12 | C159: marzec | D159: =YEAR(Tabela2[[#This Row],[Data]]) -> 2018 | E159: 2018-03-20 | F159: I | G159: 6816 | H159: 5595 | I159: 37.5 | J159: 46.22347202 | K159: 1.23262592 | L159: 46.95817587 | M159: 1.252218023 | N159: 2.486666667 | O159: 0.4021447721 | P159: 24 | Q159: 2.33125 | R159: 0.4289544236 | S159: 26 | T159: =IF(E159="","",I159*60*N159) -> 5595 | U159: =IF(E159="","",(I159+I159/7.5*0.5)*3600) -> 144000 | V159: =IF(E159="","",40/1.2) -> 33.33333333 | W159: =IF(B159="","",ISEVEN(B159)) -> TRUE | X159: =IF(B159="","",IF(W159=TRUE,IF(F159="I","TAK","NIE"),IF(F159="I","NIE",IF(F159="III","NIE","TAK")))) -> TAK | Y159: =IF(B159="","",IF(AND(X159="NIE",Z159="NIE"),"TAK","NIE")) -> NIE | Z159: =IF(B159="","",IF(F159="III","TAK","NIE")) -> NIE | AA159: =IF(E159="","",IF(X159="TAK","Zmiana A",IF(Y159="TAK","Zmiana B","Zmiana C"))) -> Zmiana A
A160: =IF(E160="","",TEXT(WEEKDAY(IF(E160=0,"",E160),1),"dddd")) -> wtorek | B160: =IF(E160="","",WEEKNUM(IF(E160=0,"",E160),1)) -> 12 | C160: =IF(E160="","",TEXT(IF(E160=0,"",MONTH(E160))*30,"mmmm")) -> marzec | D160: =YEAR(Tabela2[[#This Row],[Data]]) -> 2018 | E160: 2018-03-20 | F160: II | G160: 3809 | H160: 3055 | I160: 22.5 | J160: 23.03696249 | K160: 1.023864999 | L160: 23.70710836 | M160: 1.053649261 | N160: 2.262962963 | O160: 0.441898527 | P160: 27 | Q160: 2.121527778 | R160: 0.4713584288 | S160: 28 | T160: =IF(E160="","",I160*60*N160) -> 3055 | U160: =IF(E160="","",(I160+I160/7.5*0.5)*3600) -> 86400 | V160: =IF(E160="","",40/1.2) -> 33.33333333 | W160: =IF(B160="","",ISEVEN(B160)) -> TRUE | X160: =IF(B160="","",IF(W160=TRUE,IF(F160="I","TAK","NIE"),IF(F160="I","NIE",IF(F160="III","NIE","TAK")))) -> NIE | Y160: =IF(B160="","",IF(AND(X160="NIE",Z160="NIE"),"TAK","NIE")) -> TAK | Z160: =IF(B160="","",IF(F160="III","TAK","NIE")) -> NIE | AA160: =IF(E160="","",IF(X160="TAK","Zmiana A",IF(Y160="TAK","Zmiana B","Zmiana C"))) -> Zmiana B
A161: wtorek | B161: 12 | C161: marzec | D161: =YEAR(Tabela2[[#This Row],[Data]]) -> 2018 | E161: 2018-03-20 | F161: III | G161: 3712 | H161: 3144 | I161: 22.5 | J161: 23.63888889 | K161: 1.050617284 | L161: 21.67029789 | M161: 0.9631243507 | N161: 2.328888889 | O161: 0.429389313 | P161: 26 | Q161: 2.183333333 | R161: 0.4580152672 | S161: 27 | T161: =IF(E161="","",I161*60*N161) -> 3144 | U161: =IF(E161="","",(I161+I161/7.5*0.5)*3600) -> 86400 | V161: =IF(E161="","",40/1.2) -> 33.33333333 | W161: =IF(B161="","",ISEVEN(B161)) -> TRUE | X161: =IF(B161="","",IF(W161=TRUE,IF(F161="I","TAK","NIE"),IF(F161="I","NIE",IF(F161="III","NIE","TAK")))) -> NIE | Y161: =IF(B161="","",IF(AND(X161="NIE",Z161="NIE"),"TAK","NIE")) -> NIE | Z161: =IF(B161="","",IF(F161="III","TAK","NIE")) -> TAK | AA161: =IF(E161="","",IF(X161="TAK","Zmiana A",IF(Y161="TAK","Zmiana B","Zmiana C"))) -> Zmiana C
A162: środa | B162: 12 | C162: marzec | D162: =YEAR(Tabela2[[#This Row],[Data]]) -> 2018 | E162: 2018-03-21 | F162: I | G162: 6051 | H162: 4613 | I162: 37.5 | J162: 35.21294563 | K162: 0.9390118836 | L162: 35.96592222 | M162: 0.9590912592 | N162: 2.050222222 | O162: 0.4877520052 | P162: 29 | Q162: 1.922083333 | R162: 0.5202688055 | S162: 31 | T162: =IF(E162="","",I162*60*N162) -> 4613 | U162: =IF(E162="","",(I162+I162/7.5*0.5)*3600) -> 144000 | V162: =IF(E162="","",40/1.2) -> 33.33333333 | W162: =IF(B162="","",ISEVEN(B162)) -> TRUE | X162: =IF(B162="","",IF(W162=TRUE,IF(F162="I","TAK","NIE"),IF(F162="I","NIE",IF(F162="III","NIE","TAK")))) -> TAK | Y162: =IF(B162="","",IF(AND(X162="NIE",Z162="NIE"),"TAK","NIE")) -> NIE | Z162: =IF(B162="","",IF(F162="III","TAK","NIE")) -> NIE | AA162: =IF(E162="","",IF(X162="TAK","Zmiana A",IF(Y162="TAK","Zmiana B","Zmiana C"))) -> Zmiana A
A163: środa | B163: 12 | C163: marzec | D163: =YEAR(Tabela2[[#This Row],[Data]]) -> 2018 | E163: 2018-03-21 | F163: II | G163: 1963 | H163: 1558 | I163: 14.5 | J163: 15.95848361 | K163: 1.100585076 | L163: 15.2951553 | M163: 1.054838297 | N163: 1.790804598 | O163: 0.5584082157 | P163: 34 | Q163: 1.622916667 | R163: 0.6161745828 | S163: 37 | T163: =IF(E163="","",I163*60*N163) -> 1558 | U163: =IF(E163="","",(I163+I163/7.5*0.5)*3600) -> 55680 | V163: =IF(E163="","",40/1.2) -> 33.33333333 | W163: =IF(B163="","",ISEVEN(B163)) -> TRUE | X163: =IF(B163="","",IF(W163=TRUE,IF(F163="I","TAK","NIE"),IF(F163="I","NIE",IF(F163="III","NIE","TAK")))) -> NIE | Y163: =IF(B163="","",IF(AND(X163="NIE",Z163="NIE"),"TAK","NIE")) -> TAK | Z163: =IF(B163="","",IF(F163="III","TAK","NIE")) -> NIE | AA163: =IF(E163="","",IF(X163="TAK","Zmiana A",IF(Y163="TAK","Zmiana B","Zmiana C"))) -> Zmiana B
A164: środa | B164: 12 | C164: marzec | D164: =YEAR(Tabela2[[#This Row],[Data]]) -> 2018 | E164: 2018-03-21 | F164: III | G164: 3441 | H164: 2651 | I164: 18 | J164: 14.68174603 | K164: 0.8156525573 | L164: 16.66261719 | M164: 0.9257009552 | N164: 2.45462963 | O164: 0.4073934364 | P164: 24 | Q164: 2.265811966 | R164: 0.4413428895 | S164: 26 | T164: =IF(E164="","",I164*60*N164) -> 2651 | U164: =IF(E164="","",(I164+I164/7.5*0.5)*3600) -> 69120 | V164: =IF(E164="","",40/1.2) -> 33.33333333 | W164: =IF(B164="","",ISEVEN(B164)) -> TRUE | X164: =IF(B164="","",IF(W164=TRUE,IF(F164="I","TAK","NIE"),IF(F164="I","NIE",IF(F164="III","NIE","TAK")))) -> NIE | Y164: =IF(B164="","",IF(AND(X164="NIE",Z164="NIE"),"TAK","NIE")) -> NIE | Z164: =IF(B164="","",IF(F164="III","TAK","NIE")) -> TAK | AA164: =IF(E164="","",IF(X164="TAK","Zmiana A",IF(Y164="TAK","Zmiana B","Zmiana C"))) -> Zmiana C
A165: czwartek | B165: 12 | C165: marzec | D165: =YEAR(Tabela2[[#This Row],[Data]]) -> 2018 | E165: 2018-03-22 | F165: I | G165: 6777 | H165: 4889 | I165: 31.5 | J165: 30.43242035 | K165: 0.9661085825 | L165: 32.17449722 | M165: 1.02141261 | N165: 2.586772487 | O165: 0.3865821231 | P165: 23 | Q165: 2.396568627 | R165: 0.417263244 | S165: 25 | T165: =IF(E165="","",I165*60*N165) -> 4889 | U165: =IF(E165="","",(I165+I165/7.5*0.5)*3600) -> 120960 | V165: =IF(E165="","",40/1.2) -> 33.33333333 | W165: =IF(B165="","",ISEVEN(B165)) -> TRUE | X165: =IF(B165="","",IF(W165=TRUE,IF(F165="I","TAK","NIE"),IF(F165="I","NIE",IF(F165="III","NIE","TAK")))) -> TAK | Y165: =IF(B165="","",IF(AND(X165="NIE",Z165="NIE"),"TAK","NIE")) -> NIE | Z165: =IF(B165="","",IF(F165="III","TAK","NIE")) -> NIE | AA165: =IF(E165="","",IF(X165="TAK","Zmiana A",IF(Y165="TAK","Zmiana B","Zmiana C"))) -> Zmiana A
A166: =IF(E166="","",TEXT(WEEKDAY(IF(E166=0,"",E166),1),"dddd")) -> czwartek | B166: =IF(E166="","",WEEKNUM(IF(E166=0,"",E166),1)) -> 12 | C166: =IF(E166="","",TEXT(IF(E166=0,"",MONTH(E166))*30,"mmmm")) -> marzec | D166: =YEAR(Tabela2[[#This Row],[Data]]) -> 2018 | E166: 2018-03-22 | F166: II | G166: 3211 | H166: 2795 | I166: 22.5 | J166: 10.96442743 | K166: 0.4873078856 | L166: 12.67100897 | M166: 0.563155954 | N166: 1.419259259 | O166: 0.7045929019 | P166: 42 | Q166: 1.330555556 | R166: 0.751565762 | S166: 45 | T166: =IF(E166="","",I166*60*N166) -> 1916 | U166: =IF(E166="","",(I166+I166/7.5*0.5)*3600) -> 86400 | V166: =IF(E166="","",40/1.2) -> 33.33333333 | W166: =IF(B166="","",ISEVEN(B166)) -> TRUE | X166: =IF(B166="","",IF(W166=TRUE,IF(F166="I","TAK","NIE"),IF(F166="I","NIE",IF(F166="III","NIE","TAK")))) -> NIE | Y166: =IF(B166="","",IF(AND(X166="NIE",Z166="NIE"),"TAK","NIE")) -> TAK | Z166: =IF(B166="","",IF(F166="III","TAK","NIE")) -> NIE | AA166: =IF(E166="","",IF(X166="TAK","Zmiana A",IF(Y166="TAK","Zmiana B","Zmiana C"))) -> Zmiana B
A167: =IF(E167="","",TEXT(WEEKDAY(IF(E167=0,"",E167),1),"dddd")) -> czwartek | B167: =IF(E167="","",WEEKNUM(IF(E167=0,"",E167),1)) -> 12 | C167: =IF(E167="","",TEXT(IF(E167=0,"",MONTH(E167))*30,"mmmm")) -> marzec | D167: =YEAR(Tabela2[[#This Row],[Data]]) -> 2018 | E167: 2018-03-22 | F167: II | G167: 3211 | H167: 2795 | I167: 15 | J167: 4.940669782 | K167: 0.3293779855 | L167: 3.996228002 | M167: 0.2664152001 | N167: 0.9766666667 | O167: 1.023890785 | P167: 61 | Q167: 0.915625 | R167: 1.092150171 | S167: 66 | T167: =IF(E167="","",I167*60*N167) -> 879 | U167: =IF(E167="","",(I167+I167/7.5*0.5)*3600) -> 57600 | V167: =IF(E167="","",40/1.2) -> 33.33333333 | W167: =IF(B167="","",ISEVEN(B167)) -> TRUE | X167: =IF(B167="","",IF(W167=TRUE,IF(F167="I","TAK","NIE"),IF(F167="I","NIE",IF(F167="III","NIE","TAK")))) -> NIE | Y167: =IF(B167="","",IF(AND(X167="NIE",Z167="NIE"),"TAK","NIE")) -> TAK | Z167: =IF(B167="","",IF(F167="III","TAK","NIE")) -> NIE | AA167: =IF(E167="","",IF(X167="TAK","Zmiana A",IF(Y167="TAK","Zmiana B","Zmiana C"))) -> Zmiana B
A168: =IF(E168="","",TEXT(WEEKDAY(IF(E168=0,"",E168),1),"dddd")) -> czwartek | B168: =IF(E168="","",WEEKNUM(IF(E168=0,"",E168),1)) -> 12 | C168: =IF(E168="","",TEXT(IF(E168=0,"",MONTH(E168))*30,"mmmm")) -> marzec | D168: =YEAR(Tabela2[[#This Row],[Data]]) -> 2018 | E168: 2018-03-22 | F168: III | G168: 3838 | H168: 3180 | I168: 22.5 | J168: 23.69957796 | K168: 1.053314576 | L168: 21.91906608 | M168: 0.9741807145 | N168: 2.355555556 | O168: 0.4245283019 | P168: 25 | Q168: 2.208333333 | R168: 0.4528301887 | S168: 27 | T168: =IF(E168="","",I168*60*N168) -> 3180 | U168: =IF(E168="","",(I168+I168/7.5*0.5)*3600) -> 86400 | V168: =IF(E168="","",40/1.2) -> 33.33333333 | W168: =IF(B168="","",ISEVEN(B168)) -> TRUE | X168: =IF(B168="","",IF(W168=TRUE,IF(F168="I","TAK","NIE"),IF(F168="I","NIE",IF(F168="III","NIE","TAK")))) -> NIE | Y168: =IF(B168="","",IF(AND(X168="NIE",Z168="NIE"),"TAK","NIE")) -> NIE | Z168: =IF(B168="","",IF(F168="III","TAK","NIE")) -> TAK | AA168: =IF(E168="","",IF(X168="TAK","Zmiana A",IF(Y168="TAK","Zmiana B","Zmiana C"))) -> Zmiana C
L191: 3

Sheet Wykresy
BB1: Miesiąc | BC1: (Wszystko) | BF1: Rok: | BG1: 2018 | BT1: Rok: | BU1: 2018
BB3: Etykiety wierszy | BC3: Średnia z Wsp. pakowania przy 8h [s/szt] | BF3: Suma z % Wydajność | BG3: Etykiety kolumn | BT3: Średnia z % Wydajność | BU3: Etykiety kolumn
BB4: 1900-01-01 | BF4: Etykiety wierszy | BG4: Zmiana B | BH4: Zmiana A | BI4: Zmiana C | BJ4: Suma końcowa | BT4: Etykiety wierszy | BU4: Zmiana B | BV4: Zmiana A | BW4: Zmiana C | BX4: Suma końcowa
BB5: (puste) | BF5: Styczeń | BG5: 0.7562125202 | BH5: 0.796897824 | BI5: 0.8754806366 | BJ5: 0.8009928764 | BT5: 1 | BU5: 0.8433305369 | BV5: 0.9083601286 | BW5: 0.8097753025 | BX5: 0.8661804108
BB6: (puste) | BF6: Luty | BG6: 1.077499102 | BH6: 1.065611733 | BI6: 1.024174677 | BJ6: 1.057660469 | BT6: 2 | BU6: 0.7195860321 | BV6: 0.729034694 | BW6: 0.8613937416 | BX6: 0.7555545733
BB7: (puste) | BF7: Marzec | BG7: 0.984002194 | BH7: 0.9695226234 | BI7: 0.9251468759 | BJ7: 0.9635898436 | BT7: 3 | BU7: 0.7556869508 | BV7: 0.7496697726 | BW7: 0.9472422062 | BX7: 0.7837205201
BB8: 2018-01-03 | BC8: 37.33333333 | BF8: Suma końcowa | BG8: 0.8919601675 | BH8: 0.94891393 | BI8: 0.9419714211 | BJ8: 0.9334136231 | BT8: 4 | BU8: 0.7195373812 | BV8: 0.8155536443 | BW8: 0.8598030985 | BX8: 0.806043983
BB9: I | BC9: 24 | BT9: 5 | BU9: 0.7280149082 | BV9: 0.7327827361 | BW9: 0.8770408681 | BX9: 0.7785279995
BB10: II | BC10: 61 | BT10: 6 | BU10: 1.058692856 | BV10: 1.041556095 | BW10: 1.007775926 | BX10: 1.036622009
BB11: III | BC11: 27 | BT11: 7 | BU11: 1.133164236 | BV11: 1.096817646 | BW11: 1.054764513 | BX11: 1.10134905
BB12: 2018-01-05 | BC12: 35.66666667 | BT12: 8 | BU12: 1.174249758 | BV12: 1.108116339 | BW12: 1.065894757 | BX12: 1.098740843
BB13: I | BC13: 33 | BT13: 9 | BU13: 1.134279025 | BV13: 1.119144823 | BW13: 1.066943366 | BX13: 1.11288574
BB14: II | BC14: 51 | BT14: 10 | BU14: 1.1393534 | BV14: 1.122215719 | BW14: 1.05001364 | BX14: 1.113009432
BB15: III | BC15: 23 | BT15: 11 | BU15: 0.8578864848 | BV15: 0.9361395596 | BW15: 0.8768050812 | BX15: 0.9014760776
BB16: 2018-01-08 | BC16: 26 | BT16: 12 | BU16: 0.8464974142 | BV16: 0.7798609196 | BW16: 0.8545757072 | BX16: 0.8125103425
BB17: I | BC17: 28 | BT17: Suma końcowa | BU17: 0.8919601675 | BV17: 0.94891393 | BW17: 0.9419714211 | BX17: 0.9334136231
BB18: II | BC18: 28
BB19: III | BC19: 22
BB20: 2018-01-09 | BC20: 28.33333333
BB21: I | BC21: 36
BB22: II | BC22: 29
C23: Wartości | M23: Wartości | BB23: III | BC23: 20
B24: Etykiety wierszy | C24: Suma z s/szt | D24: Średnia z Cel miesięczny (s/szt.) | L24: Etykiety wierszy | M24: Suma z Zrealizowana ilość | N24: Suma z % braków | BB24: 2018-01-10 | BC24: 29.33333333
B25: styczeń | C25: 28.82245609 | D25: 33.33333333 | L25: 2018 | M25: 571824 | N25: 0.01494166037 | AI25: Obciążenie stanowisk | AJ25: Etykiety kolumn | BB25: I | BC25: 21
B26: luty | C26: 29.27492634 | D26: 33.33333333 | L26: Styczeń | M26: 209903 | N26: 0.01603597852 | AI26: Miesiąc | AJ26: Zmiana A | AK26: Zmiana B | AL26: Zmiana C | AM26: Średnia: | BB26: II | BC26: 46
B27: marzec | C27: 25.64974245 | D27: 33.33333333 | L27: Luty | M27: 194132 | N27: 0.009936538026 | AI27: styczeń | AJ27: 0.946574931 | AK27: 1.030276541 | AL27: 1.181755556 | AM27: 1.050211483 | BB27: III | BC27: 21
B28: Suma końcowa | C28: 27.97200521 | D28: 33.33333333 | L28: Marzec | M28: 167789 | N28: 0.01936360548 | AI28: luty | AJ28: 0.8277451205 | AK28: 0.9813936526 | AL28: 0.9779759857 | AM28: 0.9242690191 | BB28: 2018-01-11 | BC28: 28.33333333
L29: Suma końcowa | M29: 571824 | N29: 0.01494166037 | AI29: marzec | AJ29: 0.9805445391 | AK29: 1.004890283 | AL29: 1.169721719 | AM29: 1.045701096 | BB29: I | BC29: 32
AI30: Średnia: | AJ30: 0.9088236911 | AK30: 1.005136765 | AL30: 1.102534271 | AM30: 1.001430864 | BB30: II | BC30: 33
BB31: III | BC31: 20
BB32: 2018-01-12 | BC32: 36.33333333
AI33: Zmiana | AJ33: (Wszystko) | BB33: II | BC33: 48.5
BB34: III | BC34: 12
AJ35: Wartości | BB35: 2018-01-15 | BC35: 38
AI36: Etykiety wierszy | AJ36: Planowana produkcja | AK36: Czas Dostępny | AL36: Zakładany Czas | BB36: I | BC36: 31
AI37: styczeń | AJ37: 281900 | AK37: 1352.5 | AL37: 1409.516066 | BB37: II | BC37: 45
AI38: luty | AJ38: 285810 | AK38: 1457.5 | AL38: 1583.783695 | BB38: 2018-01-16 | BC38: 12
AI39: marzec | AJ39: 227613 | AK39: 1131 | AL39: 1174.267806 | BB39: III | BC39: 12
AI40: Suma końcowa | AJ40: 795323 | AK40: 3941 | AL40: 4167.567567 | BB40: 2018-01-17 | BC40: 12 | BH40: Rok: | BI40: 2018
BB41: III | BC41: 12 | BH41: Miesiąc: | BI41: Marzec
BB42: 2018-01-18 | BC42: 28.33333333
BB43: I | BC43: 31 | BH43: Etykiety wierszy | BI43: Planowana Ilość | BJ43: Zrealizowana ilość
BB44: II | BC44: 42 | BH44: Zmiana B | BI44: 54695 | BJ44: 53820
BB45: III | BC45: 12 | BH45: Zmiana A | BI45: 114019 | BJ45: 110544
BB46: 2018-01-19 | BC46: 37.75 | BH46: Zmiana C | BI46: 46638 | BJ46: 43147
BB47: I | BC47: 32 | BH47: Suma końcowa | BI47: 215352 | BJ47: 207511
BB48: II | BC48: 75
BB49: III | BC49: 12
BB50: 2018-01-22 | BC50: 33.33333333
BB51: I | BC51: 21
BB52: II | BC52: 49
BB53: III | BC53: 30
BB54: 2018-01-23 | BC54: 40.4
BB55: I | BC55: 39.66666667
BB56: II | BC56: 59
BB57: III | BC57: 24
BB58: 2018-01-24 | BC58: 28.5
BB59: I | BC59: 23
BB60: II | BC60: 34
BB61: 2018-01-25 | BC61: 40.5
BB62: I | BC62: 27
BB63: II | BC63: 54
BB64: 2018-01-26 | BC64: 30.33333333
BB65: II | BC65: 67
B66: Etykiety wierszy | C66: Suma z s/szt | BB66: III | BC66: 12
B67: 1 | C67: 31.43777939 | AI67: Zmiana | AJ67: (Wszystko) | BB67: 2018-01-27 | BC67: 16
B68: 2 | C68: 28.64218716 | BB68: I | BC68: 16
B69: 3 | C69: 28.06739346 | AJ69: Wartości | BB69: 2018-01-29 | BC69: 37.66666667
B70: 4 | C70: 27.33912621 | AI70: Etykiety wierszy | AJ70: Planowanw Obciążenie [%] | AK70: Faktyczne obciążenie [%] | BB70: I | BC70: 17
B71: 5 | C71: 29.7063467 | AI71: styczeń | AJ71: 1.050211483 | AK71: 1.042365748 | BB71: II | BC71: 72
B72: 6 | C72: 28.16056462 | AI72: luty | AJ72: 0.9242690191 | AK72: 0.7538258902 | BB72: III | BC72: 24
B73: 7 | C73: 29.20754198 | AI73: marzec | AJ73: 1.045701096 | AK73: 1.05591208 | BB73: 2018-01-30 | BC73: 32
B74: 8 | C74: 26.86105897 | AI74: Suma końcowa | AJ74: 1.001430864 | AK74: 0.9373278233 | BB74: I | BC74: 24
B75: 9 | C75: 30.25074736 | BB75: II | BC75: 50
B76: 10 | C76: 21.01694915 | BB76: III | BC76: 22
B77: 11 | C77: 24.35699716 | BB77: 2018-01-31 | BC77: 32.66666667
B78: 12 | C78: 28.46761711 | BB78: I | BC78: 27
B79: Suma końcowa | C79: 27.57410336 | BB79: II | BC79: 48
BB80: III | BC80: 23
BB81: 2018-02-01 | BC81: 39.33333333
BB82: I | BC82: 27
BB83: II | BC83: 66
BB84: III | BC84: 25
BB85: 2018-02-02 | BC85: 41
BB86: I | BC86: 50
BB87: II | BC87: 50
BB88: III | BC88: 23
BB89: 2018-02-05 | BC89: 46.5
BB90: I | BC90: 30
BB91: II | BC91: 63
BB92: 2018-02-06 | BC92: 31.25
BB93: I | BC93: 28
BB94: II | BC94: 73
BB95: III | BC95: 12
BB96: 2018-02-07 | BC96: 42
BB97: I | BC97: 32
BB98: II | BC98: 82
BB99: III | BC99: 12
BB100: 2018-02-08 | BC100: 40
BB101: I | BC101: 25
BB102: II | BC102: 83
BB103: III | BC103: 12
BB104: 2018-02-09 | BC104: 32
BB105: I | BC105: 32
BB106: II | BC106: 52
BB107: III | BC107: 12
BB108: 2018-02-10 | BC108: 16
BB109: I | BC109: 16
BB110: 2018-02-12 | BC110: 18.33333333
BB111: I | BC111: 26
BB112: II | BC112: 17
BB113: III | BC113: 12
BB114: 2018-02-13 | BC114: 42.5
BB115: I | BC115: 24
BB116: II | BC116: 67
BB117: III | BC117: 12
BB118: 2018-02-14 | BC118: 44.66666667
BB119: I | BC119: 22
BB120: II | BC120: 94
BB121: III | BC121: 18
BB122: 2018-02-15 | BC122: 50
BB123: I | BC123: 34
BB124: II | BC124: 66
BB125: 2018-02-16 | BC125: 43
BB126: I | BC126: 30
BB127: II | BC127: 56
BB128: 2018-02-19 | BC128: 29
BB129: I | BC129: 21
BB130: II | BC130: 47
BB131: III | BC131: 19
BB132: 2018-02-20 | BC132: 33
BB133: I | BC133: 28
BB134: II | BC134: 53
BB135: III | BC135: 18
BB136: 2018-02-21 | BC136: 22.33333333
BB137: I | BC137: 29
BB138: III | BC138: 19
BB139: 2018-02-22 | BC139: 35.5
BB140: II | BC140: 50
BB141: III | BC141: 21
BB142: 2018-02-23 | BC142: 28.33333333
BB143: I | BC143: 32
BB144: III | BC144: 21
BB145: 2018-02-24 | BC145: 42
BB146: I | BC146: 42
BB147: 2018-02-26 | BC147: 35.5
BB148: I | BC148: 28
BB149: II | BC149: 59
BB150: III | BC150: 27
BB151: 2018-02-27 | BC151: 36
BB152: I | BC152: 27
BB153: II | BC153: 62
BB154: III | BC154: 28
BB155: 2018-02-28 | BC155: 40.75
BB156: I | BC156: 28
BB157: II | BC157: 80
BB158: III | BC158: 27
BB159: 2018-03-01 | BC159: 34.75
BB160: I | BC160: 26.5
BB161: II | BC161: 63
BB162: III | BC162: 23
BB163: 2018-03-02 | BC163: 57.5
BB164: I | BC164: 23
BB165: II | BC165: 92
BB166: 2018-03-03 | BC166: 36.5
BB167: I | BC167: 38
BB168: II | BC168: 35
BB169: 2018-03-05 | BC169: 21
BB170: I | BC170: 30
BB171: III | BC171: 12
BB172: 2018-03-06 | BC172: 53
BB173: II | BC173: 53
BB174: 2018-03-07 | BC174: 33.66666667
BB175: I | BC175: 28
BB176: II | BC176: 72
BB177: III | BC177: 1
BB178: 2018-03-08 | BC178: 27.66666667
BB179: I | BC179: 32
BB180: II | BC180: 39
BB181: III | BC181: 12
BB182: 2018-03-09 | BC182: 35.66666667
BB183: I | BC183: 31
BB184: II | BC184: 64
BB185: III | BC185: 12
BB186: 2018-03-10 | BC186: 32
BB187: I | BC187: 32
BB188: 2018-03-12 | BC188: 23.66666667
BB189: I | BC189: 23
BB190: II | BC190: 28
BB191: III | BC191: 20
BB192: 2018-03-13 | BC192: 23
BB193: I | BC193: 26
BB194: II | BC194: 24
BB195: III | BC195: 19
BB196: 2018-03-14 | BC196: 21
BB197: III | BC197: 21
BB198: 2018-03-15 | BC198: 21
BB199: III | BC199: 21
BB200: 2018-03-16 | BC200: 36.33333333
BB201: I | BC201: 23
... 19 more rows
